Workbook

Sheet About
A1: ABOUT the BIZCOMPS® Analyzer™
L2: Learn More About BIZCOMPS Here
B4: The BIZCOMPS Analyzer was created to assist BIZCOMPS subscribers in analyzing transactions from the database. The Analyzer contains a worksheet that will allow you to select and deselect transactions in Excel, which will update all the summary statistics for your comparables, create scatter graphs using your selected comparables, and will provide regression equations and valuation multiples for use in analyzing your transactions. Below is a summary of the worksheets provided in this Excel workbook. | L4: Read the BIZCOMPS® FAQ Page Here
B9: Definitions
B10: This worksheet provides definitions for all the fields in the BIZCOMPS database.
B12: All Trans
B13: This worksheet contains all the transactions you exported from the website into Excel. If you need to make adjustments to selling prices or other transactional details, do so on this sheet.
B16: Select Tools
B17: Use this worksheet to narrow down your selected comparables based on search parameters. Your selected comparables will appear on the "Manual Select" and "Trans Selected" worksheets. You can always revisit this sheet and make revisions.
B20: Manual Select
B21: Use this worksheet if you would like to manually select or deselect individual transactions based on criteria not included on the "Select Tools" worksheet. Your selected comparables will appear on the "Trans Selected" worksheet. You can always revisit this sheet and make revisions.
B25: Trans Selected
B26: This worksheet displays all the comparable transactions you have selected using the "Select Tools" worksheet and "Manual Select" worksheet. These will be the transactions that will be used to calculate your summary statistics, scatter graphs, regression equations, and valuation multiples.
B30: Statistics
B31: This worksheet will give you all your summary statistics for the transactions on your "Trans Selected" worksheet and your "All Trans" worksheet. You can always revisit the "Select Tools" worksheet and "Manual Select" worksheet to make revisions to your comparables.
B34: Scatter Graphs
B35: This series of worksheets contain scatter graphs of your selected transactions that appear on your "Trans Selected" worksheet. These graphs may be helpful in identifying outliers. The graphs also contain regression equations for your comparables.
B38: Multiples Analysis
B39: This worksheet calculates valuation multiples for your comparables that appear on the "Trans Selected" worksheet. This worksheet may serve as a sanity check for your valuation work, or another way to analyze the data.
B45: Note: The BIZCOMPS Analyzer may not be compatible with Apple's iWorks Numbers or Microsoft Excel for Apple.

Sheet Definitions
A1: BIZCOMPS® Definitions
B5: Legend for BIZCOMPS® Transaction Details
B6: Term | C6: Definition
B7: SIC | C7: Standard Industrial Classification code
B8: NAICS | C8: North American Industry Classification System code
B9: Business Description | C9: Products and services of business
B10: Annual Gross Sales | C10: Annual Gross Sales ($000's), normally net of sales tax
B11: Sale Date | C11: Actual date of sale
B12: SDE | C12: Seller's discretionary earnings ($000's) is calculated by adding to the most recent full year’s Net Income Before Taxes (NIBT): Amortization, Depreciation, Interest, Owner’s compensation, Owner’s benefits, Non-business related expenses, and onetime-only expenses. Normally to one working owner
B13: Sale Price | C13: Actual sale price ($000's), inventory has been deducted if it was included in sale price
B14: Ask Price | C14: Asking sale price of business ($000's), does not include inventory
B15: SDE/Annual Gross Sales | C15: Seller’s discretionary earnings divided by Annual Gross Sales
B16: Sale Price/Annual Gross Sales | C16: Sale price divided by Annual Gross Sales
B17: Sale Price/SDE | C17: Sale price divided by seller's discretionary earnings
B18: Percent Down | C18: Down payment as a percent of sale price
B19: Terms | C19: Terms of primary new or assumed loan
B20: Inventory Value | C20: Inventory at the time of sale ($000's)
B21: Furniture, Fixtures & Equipment (FFE) | C21: Estimate of value of furniture, fixtures & equipment ($000's)
B22: Rent/Annual Gross Sales | C22: Yearly rent divided by Annual Gross Sales
B23: Area | C23: Region or geographical location of business
B24: Days On Market | C24: Actual number of days business was on market
B25: Franchise Royalty | C25: Actual royalty less advertising percentage
B26: Number Of Employees | C26: Number of employees

Sheet Internal (hidden)
A1: Transaction Selection | D1: Custom Criteria | E1: Value | F1: Min Value | G1: Meets Min? | H1: Max Value | I1: Meets Max? | J1: Meets Criteria? | L1: Available SIC: | M1: 5812 | O1: Available NAICS: | P1: 722410
A2: Transaction ID | D2: SaleDate | E2: =IF(OFFSET('All Trans'!$A$1, $B$4 - 1, MATCH($D2, 'All Trans'!$1:$1, 0) - 1, 1, 1) = "", "", OFFSET('All Trans'!$A$1, $B$4 - 1, MATCH($D2, 'All Trans'!$1:$1, 0) - 1, 1, 1)) ->  | G2: =IF($F2 = "", TRUE, IF($E2 = "", FALSE, $E2 >= $F2)) -> TRUE | I2: =IF($H2 = "", TRUE, IF($E2 = "", FALSE, $E2 <= $H2)) -> TRUE | J2: =AND($G2, $I2) -> TRUE | M2: 5813 | P2: 722511
A3: Transaction Row (pre) | B3: =MATCH($B$2, 'All Trans'!$A:$A, 0) ->  | D3: SalePrice | E3: =IF(OFFSET('All Trans'!$A$1, $B$4 - 1, MATCH($D3, 'All Trans'!$1:$1, 0) - 1, 1, 1) = "", "", OFFSET('All Trans'!$A$1, $B$4 - 1, MATCH($D3, 'All Trans'!$1:$1, 0) - 1, 1, 1)) ->  | G3: TRUE | I3: TRUE | J3: TRUE | P3: 722513
A4: Transaction Row (post) | B4: =IF(ISERROR($B$3), -1, $B$3) -> -1 | D4: AnnualGross | E4: =IF(OFFSET('All Trans'!$A$1, $B$4 - 1, MATCH($D4, 'All Trans'!$1:$1, 0) - 1, 1, 1) = "", "", OFFSET('All Trans'!$A$1, $B$4 - 1, MATCH($D4, 'All Trans'!$1:$1, 0) - 1, 1, 1)) ->  | G4: TRUE | I4: TRUE | J4: TRUE | P4: 722515
A5: Criteria | B5: All Transactions | D5: SDEToAnnualGross | E5: =IF(OFFSET('All Trans'!$A$1, $B$4 - 1, MATCH($D5, 'All Trans'!$1:$1, 0) - 1, 1, 1) = "", "", OFFSET('All Trans'!$A$1, $B$4 - 1, MATCH($D5, 'All Trans'!$1:$1, 0) - 1, 1, 1)) ->  | G5: TRUE | I5: TRUE | J5: TRUE
A6: Meets Criteria | B6: =OFFSET(Criteria.Options, MATCH($B$5, Criteria.Options,0) - 1, 1, 1, 1) -> FALSE | D6: RentToAnnualGross | E6: =IF(OFFSET('All Trans'!$A$1, $B$4 - 1, MATCH($D6, 'All Trans'!$1:$1, 0) - 1, 1, 1) = "", "", OFFSET('All Trans'!$A$1, $B$4 - 1, MATCH($D6, 'All Trans'!$1:$1, 0) - 1, 1, 1)) ->  | G6: TRUE | I6: TRUE | J6: TRUE
D7: SDE | E7: =IF(OFFSET('All Trans'!$A$1, $B$4 - 1, MATCH($D7, 'All Trans'!$1:$1, 0) - 1, 1, 1) = "", "", OFFSET('All Trans'!$A$1, $B$4 - 1, MATCH($D7, 'All Trans'!$1:$1, 0) - 1, 1, 1)) ->  | G7: TRUE | I7: TRUE | J7: TRUE
A8: Criteria Options | B8: Meets Criteria? | D8: InventoryAmount | E8: =IF(OFFSET('All Trans'!$A$1, $B$4 - 1, MATCH($D8, 'All Trans'!$1:$1, 0) - 1, 1, 1) = "", "", OFFSET('All Trans'!$A$1, $B$4 - 1, MATCH($D8, 'All Trans'!$1:$1, 0) - 1, 1, 1)) ->  | G8: TRUE | I8: TRUE | J8: TRUE
A9: All Transactions | B9: =$B$4 > 0 -> FALSE | D9: FFE | E9: =IF(OFFSET('All Trans'!$A$1, $B$4 - 1, MATCH($D9, 'All Trans'!$1:$1, 0) - 1, 1, 1) = "", "", OFFSET('All Trans'!$A$1, $B$4 - 1, MATCH($D9, 'All Trans'!$1:$1, 0) - 1, 1, 1)) ->  | G9: TRUE | I9: TRUE | J9: TRUE
A10: Custom Criteria | B10: =IF(ISERROR(AND($J$2:$J$13)), FALSE, AND($J$2:$J$13) ) -> TRUE
F11: Match Value
D12: SICCode | E12: =IF(OFFSET('All Trans'!$A$1, $B$4 - 1, MATCH($D12, 'All Trans'!$1:$1, 0) - 1, 1, 1) = "", "", OFFSET('All Trans'!$A$1, $B$4 - 1, MATCH($D12, 'All Trans'!$1:$1, 0) - 1, 1, 1)) ->  | J12: =IF($F12 & $G12 & $H12 & $I12 = "", TRUE, IF($E12 = "", FALSE, OR(($E12 & "") = ($F12 & ""), ($E12 & "") = ($G12 & ""), ($E12 & "") = ($H12 & ""), ($E12 & "") = ($I12 & "")))) -> TRUE
D13: NAICSCode | E13: =IF(OFFSET('All Trans'!$A$1, $B$4 - 1, MATCH($D13, 'All Trans'!$1:$1, 0) - 1, 1, 1) = "", "", OFFSET('All Trans'!$A$1, $B$4 - 1, MATCH($D13, 'All Trans'!$1:$1, 0) - 1, 1, 1)) ->  | J13: TRUE
A27: Weights | B27: Multiples | C27: YesNo | D27: Percentages | E27: MinorityPercentages
A28: N/A | B28: N/A | C28: Yes | D28: 0 | E28: N/A
A29: 1 | B29: 10th Percentile | C29: No | D29: 0.01 | E29: 0.01
A30: 2 | B30: 25th Percentile | D30: 0.02 | E30: 0.02
A31: 3 | B31: Median | D31: 0.03 | E31: 0.03
A32: 4 | B32: 75th Percentile | D32: 0.04 | E32: 0.04
A33: 5 | B33: 90th Percentile | D33: 0.05 | E33: 0.05
B34: Harmonic Mean | D34: 0.06 | E34: 0.06
B35: Mean | D35: 0.07 | E35: 0.07
D36: 0.08 | E36: 0.08
D37: 0.09 | E37: 0.09
D38: 0.1 | E38: 0.1
D39: 0.11 | E39: 0.11
D40: 0.12 | E40: 0.12
D41: 0.13 | E41: 0.13
D42: 0.14 | E42: 0.14
D43: 0.15 | E43: 0.15
D44: 0.16 | E44: 0.16
D45: 0.17 | E45: 0.17
D46: 0.18 | E46: 0.18
D47: 0.19 | E47: 0.19
D48: 0.2 | E48: 0.2
D49: 0.21 | E49: 0.21
D50: 0.22 | E50: 0.22
D51: 0.23 | E51: 0.23
D52: 0.24 | E52: 0.24
D53: 0.25 | E53: 0.25
D54: 0.26 | E54: 0.26
D55: 0.27 | E55: 0.27
D56: 0.28 | E56: 0.28
D57: 0.29 | E57: 0.29
D58: 0.3 | E58: 0.3
D59: 0.31 | E59: 0.31
D60: 0.32 | E60: 0.32
D61: 0.33 | E61: 0.33
D62: 0.34 | E62: 0.34
D63: 0.35 | E63: 0.35
D64: 0.36 | E64: 0.36
D65: 0.37 | E65: 0.37
D66: 0.38 | E66: 0.38
D67: 0.39 | E67: 0.39
D68: 0.4 | E68: 0.4
D69: 0.41 | E69: 0.41
D70: 0.42 | E70: 0.42
D71: 0.43 | E71: 0.43
D72: 0.44 | E72: 0.44
D73: 0.45 | E73: 0.45
D74: 0.46 | E74: 0.46
D75: 0.47 | E75: 0.47
D76: 0.48 | E76: 0.48
D77: 0.49 | E77: 0.49
D78: 0.5 | E78: 0.5
D79: 0.51 | E79: 0.51
D80: 0.52 | E80: 0.52
D81: 0.53 | E81: 0.53
D82: 0.54 | E82: 0.54
D83: 0.55 | E83: 0.55
D84: 0.56 | E84: 0.56
D85: 0.57 | E85: 0.57
D86: 0.58 | E86: 0.58
D87: 0.59 | E87: 0.59
D88: 0.6 | E88: 0.6
D89: 0.61 | E89: 0.61
D90: 0.62 | E90: 0.62
D91: 0.63 | E91: 0.63
D92: 0.64 | E92: 0.64
D93: 0.65 | E93: 0.65
D94: 0.66 | E94: 0.66
D95: 0.67 | E95: 0.67
D96: 0.68
D97: 0.69
D98: 0.7
D99: 0.71
D100: 0.72
D101: 0.73
D102: 0.74
D103: 0.75
D104: 0.76
D105: 0.77
D106: 0.78
D107: 0.79
D108: 0.8
D109: 0.81
D110: 0.82
D111: 0.83
D112: 0.84
D113: 0.85
D114: 0.86
D115: 0.87
D116: 0.88
D117: 0.89
D118: 0.9
D119: 0.91
D120: 0.92
D121: 0.93
D122: 0.94
D123: 0.95
D124: 0.96
D125: 0.97
D126: 0.98
D127: 0.99
D128: 1

Sheet All Trans
A1: TransactionID | B1: SICCode | C1: SICCodeGeneral | D1: NAICSGeneral | E1: NAICSCode | F1: BusinessDescription | G1: Area | H1: Country | I1: AnnualGross | J1: SaleDate | K1: SDE | L1: SalePrice | M1: AskPrice | N1: SDEtoAnnualGross | O1: SalePriceToAnnualGross | P1: SalePriceToSDE | Q1: PercentDown | R1: Terms | S1: InventoryAmount | T1: FFE | U1: RentToAnnualGross | V1: DaysOnMarket | W1: FranchiseRoyalty | X1: NumberOfEmployees
A2: 11351 | B2: =TEXT("5812","0000") -> 5812 | C2: =TEXT("58","00") -> 58 | D2: =TEXT("722","000") -> 722 | E2: 722513 | F2: Fast Food-Burgers | G2: Southeast | H2: United States | I2: 2550 | J2: 2014-03-31 | K2: 315 | L2: 1300 | M2: 1300 | N2: 0.124 | O2: 0.51 | P2: 4.127 | S2: 13 | W2: No
A3: 10989 | B3: 5812 | C3: 58 | D3: 722 | E3: 722513 | F3: Fast Food-Burgers | G3: South Atlantic | H3: United States | I3: 2500 | J3: 2014-02-28 | K3: 505 | L3: 2200 | M3: 2400 | N3: 0.202 | O3: 0.88 | P3: 4.356 | S3: 15 | W3: No
A4: 4033 | B4: 5812 | C4: 58 | D4: 722 | E4: 722511 | F4: Restr-Family | G4: Florida | H4: United States | I4: 2235 | J4: 2014-04-14 | K4: 342 | L4: 650 | M4: 975 | N4: 0.153 | O4: 0.291 | P4: 1.901 | Q4: 1 | S4: 0 | T4: 50 | V4: 120 | W4: No | X4: 7
A5: 5394 | B5: 5812 | C5: 58 | D5: 722 | E5: 722511 | F5: Restr-Ethnic | G5: Florida | H5: United States | I5: 2190 | J5: 2014-05-05 | K5: 413 | L5: 492 | M5: 642 | N5: 0.189 | O5: 0.225 | P5: 1.191 | Q5: 0.2 | R5: 1 Yr @ 4% | S5: 8 | T5: 89 | V5: 65 | W5: Y-5% | X5: 15
A6: 11659 | B6: 5812 | C6: 58 | D6: 722 | E6: 722511 | F6: Restr W/Cocktails | G6: Texas | H6: United States | I6: 1702 | J6: 2014-07-14 | K6: 143 | L6: 388 | M6: 783 | N6: 0.084 | O6: 0.228 | P6: 2.713 | Q6: 0.3 | S6: 0 | T6: 15 | W6: No
A7: 1059 | B7: 5812 | C7: 58 | D7: 722 | E7: 722513 | F7: Bakery-Restaurant | G7: Colorado | H7: United States | I7: 1588 | J7: 2014-02-28 | K7: 247 | L7: 500 | M7: 500 | N7: 0.156 | O7: 0.315 | P7: 2.024 | Q7: 0.48 | S7: 25 | T7: 100 | V7: 150 | W7: No | X7: 2
A8: 10765 | B8: 5812 | C8: 58 | D8: 722 | E8: 722511 | F8: Restr-Family | G8: San Jose, CA | H8: United States | I8: 1543 | J8: 2014-04-28 | K8: 180 | L8: 250 | M8: 395 | N8: 0.117 | O8: 0.162 | P8: 1.389 | S8: 0 | W8: No
A9: 7403 | B9: 5812 | C9: 58 | D9: 722 | E9: 722511 | F9: Restr W/Cocktails | G9: Houston, TX | H9: United States | I9: 1527 | J9: 2014-12-05 | K9: 356 | L9: 700 | M9: 750 | N9: 0.233 | O9: 0.458 | P9: 1.966 | S9: 0 | T9: 359 | W9: No | X9: 2 FT/10 PT
A10: 8932 | B10: 5812 | C10: 58 | D10: 722 | E10: 722511 | F10: Restr-Family | G10: New England | H10: United States | I10: 1411 | J10: 2014-05-19 | K10: 258 | L10: 325 | M10: 775 | N10: 0.183 | O10: 0.23 | P10: 1.26 | Q10: 0.16 | R10: 20 Yrs @ 2% | S10: 11 | T10: 259 | V10: 36 | W10: No | X10: 5 FT/3 PT
A11: 3538 | B11: 5812 | C11: 58 | D11: 722 | E11: 722511 | F11: Restr-Italian | G11: Florida | H11: United States | I11: 1381 | J11: 2014-06-30 | K11: 219 | L11: 400 | M11: 450 | N11: 0.159 | O11: 0.29 | P11: 1.826 | Q11: 0.45 | R11: 5 Yrs @ 5% | S11: 1 | T11: 80 | W11: No | X11: 5
A12: 11837 | B12: 5812 | C12: 58 | D12: 722 | E12: 722511 | F12: Mexican Buffett | G12: Tyler, TX | H12: United States | I12: 1363 | J12: 2014-03-28 | K12: 229 | L12: 229 | M12: 239 | N12: 0.168 | O12: 0.168 | P12: 1 | Q12: 1 | S12: 10 | T12: 130 | U12: 0.009 | W12: No
A13: 6513 | B13: 5812 | C13: 58 | D13: 722 | E13: 722511 | F13: Bagel Restaurant | G13: Florida | H13: United States | I13: 1200 | J13: 2014-09-08 | K13: 315 | L13: 575 | M13: 650 | N13: 0.263 | O13: 0.479 | P13: 1.825 | Q13: 1 | S13: 0 | T13: 125 | W13: No | X13: 1 FT/2 PT
A14: 10692 | B14: 5812 | C14: 58 | D14: 722 | E14: 722513 | F14: Fast Food Cafe | G14: San Francisco, CA | H14: United States | I14: 1134 | J14: 2014-10-15 | K14: 231 | L14: 650 | M14: 650 | N14: 0.204 | O14: 0.573 | P14: 2.814 | Q14: 0.3 | S14: 0 | U14: 0.05 | W14: No
A15: 4137 | B15: 5812 | C15: 58 | D15: 722 | E15: 722511 | F15: Restr-Family | G15: Florida | H15: United States | I15: 1100 | J15: 2014-07-07 | K15: 150 | L15: 345 | M15: 384 | N15: 0.136 | O15: 0.314 | P15: 2.3 | Q15: 1 | S15: 15 | T15: 50 | V15: 292 | W15: No | X15: 7
A16: 11035 | B16: 5812 | C16: 58 | D16: 722 | E16: 722511 | F16: Restr-Family | G16: South Dakota | H16: United States | I16: 1100 | J16: 2014-05-21 | K16: 148 | L16: 532 | M16: 542 | N16: 0.135 | O16: 0.484 | P16: 3.595 | R16: 5.5 Yrs @ 5.5% | S16: 8 | W16: No
A17: 9321 | B17: 5812 | C17: 58 | D17: 722 | E17: 722511 | F17: Restr-Family | G17: Oklahoma | H17: United States | I17: 1078 | J17: 2014-08-04 | K17: 118 | L17: 341 | M17: 391 | N17: 0.109 | O17: 0.316 | P17: 2.89 | Q17: 1 | S17: 9 | T17: 164 | W17: No | X17: 7 FT/2 PT
A18: 3777 | B18: 5812 | C18: 58 | D18: 722 | E18: 722511 | F18: Restr W/Cocktails | G18: Florida | H18: United States | I18: 1050 | J18: 2014-09-10 | K18: 97 | L18: 100 | M18: 115 | N18: 0.092 | O18: 0.095 | P18: 1.031 | Q18: 0.5 | R18: 4 Yrs @ 6% | S18: 10 | T18: 50 | V18: 192 | W18: No | X18: 6
A19: 6688 | B19: 5812 | C19: 58 | D19: 722 | E19: 722511 | F19: Restr-Italian/Pizza | G19: Florida | H19: United States | I19: 1036 | J19: 2014-08-25 | K19: 174 | L19: 115 | M19: 190 | N19: 0.168 | O19: 0.111 | P19: 0.661 | Q19: 1 | S19: 35 | W19: No | X19: 1 FT/5 PT
A20: 7525 | B20: 5812 | C20: 58 | D20: 722 | E20: 722511 | F20: Restr-Family | G20: Incline Village, NV | H20: United States | I20: 991 | J20: 2014-09-02 | K20: 117 | L20: 200 | M20: 259 | N20: 0.118 | O20: 0.202 | P20: 1.709 | Q20: 0.26 | S20: 0 | W20: No | X20: 2 FT/2 PT
A21: 9210 | B21: 5812 | C21: 58 | D21: 722 | E21: 722511 | F21: Restr-Family | G21: Northern Nevada | H21: United States | I21: 991 | J21: 2014-09-02 | K21: 117 | L21: 200 | M21: 255 | N21: 0.118 | O21: 0.202 | P21: 1.709 | Q21: 0.26 | R21: 5 Yrs @ 6% | S21: 4 | U21: 0.042 | V21: 100 | W21: No | X21: 6 FT/6 PT
A22: 7580 | B22: 5812 | C22: 58 | D22: 722 | E22: 722511 | F22: Restr-Family | G22: Iowa | H22: United States | I22: 960 | J22: 2014-02-28 | K22: 203 | L22: 408 | M22: 417 | N22: 0.211 | O22: 0.425 | P22: 2.01 | S22: 0 | T22: 175 | V22: 231 | W22: No | X22: 2 FT/3 PT
A23: 12361 | B23: 5812 | C23: 58 | D23: 722 | E23: 722511 | F23: Restr-Family | G23: Peoria, AZ | H23: United States | I23: 932 | J23: 2014-12-03 | L23: 295 | M23: 295 | O23: 0.317 | Q23: 1 | S23: 0 | W23: No
A24: 5389 | B24: 5812 | C24: 58 | D24: 722 | E24: 722511 | F24: Restr-Family | G24: Florida | H24: United States | I24: 858 | J24: 2014-01-09 | K24: 42 | L24: 92 | M24: 85 | N24: 0.049 | O24: 0.107 | P24: 2.19 | Q24: 0.6 | S24: 8 | W24: No | X24: 15
A25: 4034 | B25: 5812 | C25: 58 | D25: 722 | E25: 722511 | F25: Restr-Barbeque | G25: Florida | H25: United States | I25: 850 | J25: 2014-11-30 | K25: 80 | L25: 100 | M25: 175 | N25: 0.094 | O25: 0.118 | P25: 1.25 | Q25: 0.75 | R25: 2 Yrs @ 0% | S25: 0 | V25: 120 | W25: No | X25: 7
A26: 3983 | B26: 5812 | C26: 58 | D26: 722 | E26: 722513 | F26: Fast Food Franchise | G26: Florida | H26: United States | I26: 840 | J26: 2014-09-30 | K26: 85 | L26: 120 | M26: 145 | N26: 0.101 | O26: 0.143 | P26: 1.412 | Q26: 0.92 | R26: 1 Yr | S26: 0 | W26: No | X26: 6
A27: 3996 | B27: 5812 | C27: 58 | D27: 722 | E27: 722511 | F27: Restr-Italian/Pizza | G27: Florida | H27: United States | I27: 814 | J27: 2014-08-04 | K27: 58 | L27: 130 | M27: 145 | N27: 0.071 | O27: 0.16 | P27: 2.241 | Q27: 1 | S27: 5 | T27: 35 | W27: Y-12.5% | X27: 6
A28: 10694 | B28: 5812 | C28: 58 | D28: 722 | E28: 722515 | F28: Franchise-Soft Serve | G28: San Francisco, CA | H28: United States | I28: 790 | J28: 2014-08-01 | K28: 114 | L28: 185 | M28: 194 | N28: 0.144 | O28: 0.234 | P28: 1.623 | S28: 5 | U28: 0.038 | W28: No
A29: 8230 | B29: 5812 | C29: 58 | D29: 722 | E29: 722513 | F29: Fast Food-Yogurt | G29: Massachusetts | H29: United States | I29: 775 | J29: 2014-06-13 | K29: 193 | L29: 550 | M29: 550 | N29: 0.249 | O29: 0.71 | P29: 2.85 | Q29: 1 | S29: 0 | T29: 125 | W29: No | X29: 3 FT/4 PT
A30: 11721 | B30: 5812 | C30: 58 | D30: 722 | E30: 722511 | F30: Restr-Family | G30: Texas | H30: United States | I30: 752 | J30: 2014-04-30 | K30: 40 | L30: 355 | M30: 432 | N30: 0.053 | O30: 0.472 | P30: 8.875 | S30: 18 | T30: 59 | U30: 0.08 | W30: No
A31: 3660 | B31: 5812 | C31: 58 | D31: 722 | E31: 722511 | F31: Restr-Family | G31: Florida | H31: United States | I31: 735 | J31: 2014-01-31 | K31: 251 | L31: 350 | M31: 450 | N31: 0.341 | O31: 0.476 | P31: 1.394 | Q31: 0.46 | R31: 3 Yrs @ 5% | S31: 0 | T31: 50 | V31: 240 | W31: No | X31: 6
A32: 7944 | B32: 5812 | C32: 58 | D32: 722 | E32: 722511 | F32: Restr-Japanese | G32: Los Angeles, CA | H32: United States | I32: 720 | J32: 2014-10-31 | K32: 12 | L32: 149 | M32: 149 | N32: 0.017 | O32: 0.207 | P32: 12.417 | Q32: 1 | S32: 0 | V32: 258 | W32: No | X32: 3 FT/1 PT
A33: 12426 | B33: 5812 | C33: 58 | D33: 722 | E33: 722513 | F33: Deli W/Starbucks | G33: Tempe, AZ | H33: United States | I33: 720 | J33: 2014-03-28 | K33: 204 | L33: 400 | M33: 475 | N33: 0.283 | O33: 0.556 | P33: 1.961 | Q33: 1 | S33: 0 | T33: 35 | W33: No
A34: 3788 | B34: 5812 | C34: 58 | D34: 722 | E34: 722511 | F34: Restr-Steakhouse | G34: Florida | H34: United States | I34: 720 | J34: 2014-02-28 | K34: 240 | L34: 182 | M34: 195 | N34: 0.333 | O34: 0.253 | P34: 0.758 | Q34: 0.48 | R34: 2 Mos @ 0% | S34: 5 | V34: 210 | W34: No | X34: 6
A35: 1061 | B35: 5812 | C35: 58 | D35: 722 | E35: 722513 | F35: Restr-Breakfast Only | G35: Colorado | H35: United States | I35: 701 | J35: 2014-03-31 | K35: 86 | L35: 222 | M35: 222 | N35: 0.123 | O35: 0.317 | P35: 2.581 | Q35: 1 | S35: 3 | T35: 35 | V35: 150 | W35: No | X35: 2
A36: 12332 | B36: 5812 | C36: 58 | D36: 722 | E36: 722511 | F36: Restr-Barbeque | G36: Casa Grande, AZ | H36: United States | I36: 700 | J36: 2014-12-16 | K36: 59 | L36: 30 | M36: 60 | N36: 0.084 | O36: 0.043 | P36: 0.508 | Q36: 1 | S36: 0 | T36: 10 | W36: No
A37: 5313 | B37: 5812 | C37: 58 | D37: 722 | E37: 722511 | F37: Restr-Family | G37: Florida | H37: United States | I37: 700 | J37: 2014-04-24 | K37: 75 | L37: 95 | M37: 140 | N37: 0.107 | O37: 0.136 | P37: 1.267 | Q37: 1 | S37: 0 | T37: 50 | U37: 0.07 | V37: 85 | W37: No | X37: 15
A38: 7408 | B38: 5812 | C38: 58 | D38: 722 | E38: 722513 | F38: Fast Food-Mexican | G38: Houston, TX | H38: United States | I38: 658 | J38: 2014-01-02 | K38: 183 | L38: 450 | M38: 500 | N38: 0.278 | O38: 0.684 | P38: 2.459 | Q38: 1 | S38: 0 | T38: 293 | U38: 0.12 | V38: 948 | W38: No | X38: 2 FT/11 PT
A39: 4838 | B39: 5812 | C39: 58 | D39: 722 | E39: 722513 | F39: Fast Food-Pizza | G39: Florida | H39: United States | I39: 653 | J39: 2014-06-09 | K39: 97 | L39: 162 | M39: 194 | N39: 0.149 | O39: 0.248 | P39: 1.67 | Q39: 0.77 | R39: 3 Yrs @ 5% | S39: 5 | T39: 66 | W39: No | X39: 10
A40: 3532 | B40: 5812 | C40: 58 | D40: 722 | E40: 722513 | F40: Fast Food-Pizza | G40: Florida | H40: United States | I40: 650 | J40: 2014-04-30 | K40: 195 | L40: 168 | M40: 210 | N40: 0.3 | O40: 0.258 | P40: 0.862 | Q40: 1 | S40: 0 | T40: 150 | W40: No | X40: 5
A41: 11018 | B41: 5812 | C41: 58 | D41: 722 | E41: 722511 | F41: Restr W/Cocktails | G41: South Dakota | H41: United States | I41: 644 | J41: 2014-08-12 | K41: 82 | L41: 25 | M41: 328 | N41: 0.127 | O41: 0.039 | P41: 0.305 | R41: 1 | S41: 61 | T41: 25 | W41: No
A42: 10769 | B42: 5812 | C42: 58 | D42: 722 | E42: 722513 | F42: Franch-Sandwiches | G42: San Jose, CA | H42: United States | I42: 633 | J42: 2014-03-11 | K42: 113 | L42: 490 | M42: 550 | N42: 0.179 | O42: 0.774 | P42: 4.336 | S42: 0 | W42: No
A43: 9425 | B43: 5812 | C43: 58 | D43: 722 | E43: 722515 | F43: Fast Food-Yogurt | G43: Orange County, CA | H43: United States | I43: 603 | J43: 2014-02-21 | K43: 52 | L43: 104 | M43: 104 | N43: 0.086 | O43: 0.172 | P43: 2 | S43: 0 | W43: No | X43: 8 FT/1 PT
A44: 7923 | B44: 5812 | C44: 58 | D44: 722 | E44: 722511 | F44: Restr-Family | G44: Los Angeles, CA | H44: United States | I44: 600 | J44: 2014-10-21 | K44: 180 | L44: 450 | M44: 450 | N44: 0.3 | O44: 0.75 | P44: 2.5 | Q44: 1 | S44: 0 | V44: 160 | W44: No | X44: 3 FT/1 PT
A45: 7921 | B45: 5812 | C45: 58 | D45: 722 | E45: 722515 | F45: Coffee/Sandwiches | G45: Los Angeles, CA | H45: United States | I45: 576 | J45: 2014-03-10 | K45: 144 | L45: 275 | M45: 295 | N45: 0.25 | O45: 0.477 | P45: 1.91 | Q45: 1 | S45: 0 | V45: 158 | W45: No | X45: 3 FT/1 PT
A46: 5111 | B46: 5812 | C46: 58 | D46: 722 | E46: 722511 | F46: Restr-Family | G46: Florida | H46: United States | I46: 575 | J46: 2014-12-05 | K46: 115 | L46: 140 | M46: 204 | N46: 0.2 | O46: 0.243 | P46: 1.217 | Q46: 0.93 | R46: 10 Yrs @ 6% | S46: 5 | T46: 50 | W46: No | X46: 12
A47: 3779 | B47: 5812 | C47: 58 | D47: 722 | E47: 722511 | F47: Restr-Family | G47: Florida | H47: United States | I47: 575 | J47: 2014-12-31 | K47: 136 | L47: 161 | M47: 162 | N47: 0.237 | O47: 0.28 | P47: 1.184 | S47: 3 | T47: 45 | V47: 200 | W47: No | X47: 6
A48: 12362 | B48: 5812 | C48: 58 | D48: 722 | E48: 722511 | F48: Restr-Family | G48: Phoenix, AZ | H48: United States | I48: 560 | J48: 2014-03-28 | K48: 71 | L48: 70 | M48: 100 | N48: 0.127 | O48: 0.125 | P48: 0.986 | Q48: 1 | S48: 0 | T48: 50 | W48: No
A49: 6374 | B49: 5812 | C49: 58 | D49: 722 | E49: 722511 | F49: Restr-Family | G49: Florida | H49: United States | I49: 550 | J49: 2014-09-19 | K49: 190 | L49: 251 | M49: 271 | N49: 0.345 | O49: 0.456 | P49: 1.321 | Q49: 1 | S49: 4 | T49: 55 | V49: 7 | W49: No | X49: 1 FT/2 PT
A50: 8030 | B50: 5812 | C50: 58 | D50: 722 | E50: 722511 | F50: Restr-Family | G50: Los Angeles, CA | H50: United States | I50: 550 | J50: 2014-07-22 | K50: 0 | L50: 195 | M50: 195 | N50: 0 | O50: 0.355 | Q50: 1 | S50: 3 | T50: 45 | W50: No | X50: 3 FT/1 PT
A51: 10997 | B51: 5812 | C51: 58 | D51: 722 | E51: 722513 | F51: Bakery Restaurant | G51: South Carolina | H51: United States | I51: 525 | J51: 2014-06-06 | K51: 110 | L51: 225 | M51: 225 | N51: 0.21 | O51: 0.429 | P51: 2.045 | Q51: 0.22 | R51: 5 Yrs @ 6% | S51: 2 | T51: 25 | U51: 0.069 | W51: No
A52: 3146 | B52: 5812 | C52: 58 | D52: 722 | E52: 722511 | F52: Restr-Italian/Pizza | G52: Florida | H52: United States | I52: 519 | J52: 2014-08-31 | K52: 138 | L52: 115 | M52: 140 | N52: 0.266 | O52: 0.222 | P52: 0.833 | Q52: 1 | S52: 5 | T52: 80 | V52: 360 | W52: Yes | X52: 4
A53: 12327 | B53: 5812 | C53: 58 | D53: 722 | E53: 722511 | F53: Restr W/Cocktails | G53: Tempe, AZ | H53: United States | I53: 515 | J53: 2014-02-14 | K53: 75 | L53: 100 | M53: 160 | N53: 0.146 | O53: 0.194 | P53: 1.333 | Q53: 1 | S53: 0 | T53: 160 | W53: No
A54: 3453 | B54: 5812 | C54: 58 | D54: 722 | E54: 722511 | F54: Restr-Family | G54: Florida | H54: United States | I54: 514 | J54: 2014-11-30 | K54: 137 | L54: 219 | M54: 244 | N54: 0.267 | O54: 0.426 | P54: 1.599 | Q54: 0.67 | R54: 3 Yrs @ 6% | S54: 6 | T54: 33 | W54: No | X54: 5
A55: 10668 | B55: 5812 | C55: 58 | D55: 722 | E55: 722515 | F55: Tea House | G55: San Francisco, CA | H55: United States | I55: 477 | J55: 2014-06-13 | K55: 80 | L55: 97 | M55: 132 | N55: 0.168 | O55: 0.203 | P55: 1.213 | Q55: 0.8 | R55: 3 Yrs@ 5% | S55: 28 | U55: 0.25 | W55: No
A56: 10748 | B56: 5812 | C56: 58 | D56: 722 | E56: 722515 | F56: Tea House | G56: San Jose, CA | H56: United States | I56: 477 | J56: 2014-06-13 | K56: 80 | L56: 125 | M56: 160 | N56: 0.168 | O56: 0.262 | P56: 1.563 | S56: 0 | W56: No
A57: 5547 | B57: 5812 | C57: 58 | D57: 722 | E57: 722513 | F57: Fast Food-Yogurt | G57: Florida | H57: United States | I57: 475 | J57: 2014-08-28 | K57: 135 | L57: 413 | M57: 425 | N57: 0.284 | O57: 0.869 | P57: 3.059 | S57: 0 | T57: 125 | W57: No | X57: 18
A58: 3446 | B58: 5812 | C58: 58 | D58: 722 | E58: 722513 | F58: Restr-Breakfast/Lunch | G58: Florida | H58: United States | I58: 470 | J58: 2014-04-30 | K58: 95 | L58: 139 | M58: 149 | N58: 0.202 | O58: 0.296 | P58: 1.463 | Q58: 1 | S58: 10 | T58: 60 | W58: No | X58: 5
A59: 12425 | B59: 5812 | C59: 58 | D59: 722 | E59: 722513 | F59: Deli W/Starbucks | G59: Phoenix, AZ | H59: United States | I59: 468 | J59: 2014-03-28 | K59: 132 | L59: 260 | M59: 275 | N59: 0.282 | O59: 0.556 | P59: 1.97 | Q59: 0.81 | S59: 0 | T59: 60 | W59: No
A60: 9291 | B60: 5812 | C60: 58 | D60: 722 | E60: 722511 | F60: Restr-Family | G60: Ohio | H60: United States | I60: 450 | J60: 2014-09-29 | K60: 62 | L60: 112 | M60: 104 | N60: 0.138 | O60: 0.249 | P60: 1.806 | Q60: 0.1 | R60: 7 Yrs @ 6% | S60: 5 | T60: 30 | V60: 138 | W60: No | X60: 7 FT/10 PT
A61: 42 | B61: 5812 | C61: 58 | D61: 722 | E61: 722515 | F61: Coffee House | G61: Aptos, CA | H61: United States | I61: 438 | J61: 2014-07-13 | K61: 62 | L61: 150 | M61: 200 | N61: 0.142 | O61: 0.342 | P61: 2.419 | S61: 0 | V61: 75 | W61: No | X61: 1
A62: 2654 | B62: 5812 | C62: 58 | D62: 722 | E62: 722511 | F62: Restr-Barbeque | G62: Florida | H62: United States | I62: 423 | J62: 2014-02-24 | K62: 65 | L62: 120 | M62: 120 | N62: 0.154 | O62: 0.284 | P62: 1.846 | Q62: 0.83 | R62: 1.5 Yrs @ 6% | S62: 0 | T62: 30 | V62: 60 | W62: No | X62: 4
A63: 12375 | B63: 5812 | C63: 58 | D63: 722 | E63: 722513 | F63: Restr-Breakfast Only | G63: Scottsdale, AZ | H63: United States | I63: 421 | J63: 2014-03-04 | K63: 37 | L63: 37 | M63: 37 | N63: 0.088 | O63: 0.088 | P63: 1 | Q63: 1 | S63: 3 | T63: 40 | W63: No
A64: 12381 | B64: 5812 | C64: 58 | D64: 722 | E64: 722511 | F64: Restr-Sushi | G64: Phoenix, AZ | H64: United States | I64: 420 | J64: 2014-07-28 | K64: 137 | L64: 100 | M64: 150 | N64: 0.326 | O64: 0.238 | P64: 0.73 | Q64: 1 | S64: 0 | T64: 45 | W64: No
A65: 5623 | B65: 5812 | C65: 58 | D65: 722 | E65: 722511 | F65: Restr-Family | G65: Florida | H65: United States | I65: 420 | J65: 2014-06-16 | K65: 82 | L65: 86 | M65: 91 | N65: 0.195 | O65: 0.205 | P65: 1.049 | Q65: 0.55 | R65: 3 Yrs @ 6% | S65: 4 | T65: 15 | V65: 425 | W65: No | X65: 20
A66: 8443 | B66: 5812 | C66: 58 | D66: 722 | E66: 722513 | F66: Fast Food-Pizza | G66: Minneapolis, MN | H66: United States | I66: 414 | J66: 2014-05-16 | K66: 78 | L66: 215 | M66: 215 | N66: 0.188 | O66: 0.519 | P66: 2.756 | Q66: 0.9 | R66: 1Yr @ 0% | S66: 5 | T66: 25 | W66: No | X66: 4 FT/1 PT
A67: 3441 | B67: 5812 | C67: 58 | D67: 722 | E67: 722515 | F67: Fast Food-Yogurt | G67: Florida | H67: United States | I67: 401 | J67: 2014-07-31 | K67: 120 | L67: 205 | M67: 295 | N67: 0.299 | O67: 0.511 | P67: 1.708 | Q67: 1 | S67: 4 | T67: 135 | W67: No | X67: 5
A68: 12382 | B68: 5812 | C68: 58 | D68: 722 | E68: 722511 | F68: Restr-Sushi | G68: Tucson, AZ | H68: United States | I68: 400 | J68: 2014-09-29 | K68: 55 | L68: 150 | M68: 150 | N68: 0.138 | O68: 0.375 | P68: 2.727 | Q68: 0.27 | S68: 5 | T68: 83 | W68: No
A69: 3182 | B69: 5812 | C69: 58 | D69: 722 | E69: 722515 | F69: Self Serv-Yogurt | G69: Florida | H69: United States | I69: 395 | J69: 2014-04-01 | K69: 90 | L69: 215 | M69: 295 | N69: 0.228 | O69: 0.544 | P69: 2.389 | S69: 2 | V69: 293 | W69: No | X69: 5
A70: 12373 | B70: 5812 | C70: 58 | D70: 722 | E70: 722513 | F70: Breakfast/Lunch | G70: Phoenix, AZ | H70: United States | I70: 394 | J70: 2014-01-31 | K70: 120 | L70: 220 | M70: 220 | N70: 0.305 | O70: 0.558 | P70: 1.833 | Q70: 0.73 | S70: 0 | T70: 75 | W70: No
A71: 12365 | B71: 5812 | C71: 58 | D71: 722 | E71: 722511 | F71: Restr-Family | G71: Scottsdale, AZ | H71: United States | I71: 384 | J71: 2014-10-02 | L71: 155 | M71: 195 | O71: 0.404 | Q71: 1 | S71: 0 | W71: No
A72: 9372 | B72: 5812 | C72: 58 | D72: 722 | E72: 722511 | F72: Restr-Japanese | G72: Orange County, CA | H72: United States | I72: 384 | J72: 2014-08-27 | K72: 36 | L72: 99 | M72: 99 | N72: 0.094 | O72: 0.258 | P72: 2.75 | Q72: 0.5 | R72: 2 Yrs | S72: 5 | W72: No | X72: 7 FT/6 PT
A73: 1135 | B73: 5812 | C73: 58 | D73: 722 | E73: 722511 | F73: Fast Food-Sushi | G73: Costa Mesa, CA | H73: United States | I73: 380 | J73: 2014-03-26 | K73: 45 | L73: 195 | M73: 195 | N73: 0.118 | O73: 0.513 | P73: 4.333 | Q73: 1 | S73: 0 | U73: 0.12 | V73: 32 | W73: No | X73: 2
A74: 5965 | B74: 5812 | C74: 58 | D74: 722 | E74: 722513 | F74: Fast Food-Smoothies | G74: Florida | H74: United States | I74: 375 | J74: 2014-11-10 | K74: 28 | L74: 125 | M74: 148 | N74: 0.075 | O74: 0.333 | P74: 4.464 | Q74: 0.62 | R74: 3 Yrs @ 0% | S74: 2 | W74: No | X74: 40
A75: 3451 | B75: 5812 | C75: 58 | D75: 722 | E75: 722511 | F75: Restr-Seafood | G75: Florida | H75: United States | I75: 360 | J75: 2014-01-17 | K75: 90 | L75: 73 | M75: 86 | N75: 0.25 | O75: 0.203 | P75: 0.811 | Q75: 0.8 | R75: 2 Yrs @ 4% | S75: 2 | T75: 42 | W75: No | X75: 5
A76: 8037 | B76: 5812 | C76: 58 | D76: 722 | E76: 722511 | F76: Restr-Mexican | G76: Los Angeles, CA | H76: United States | I76: 360 | J76: 2014-03-11 | K76: 90 | L76: 87 | M76: 92 | N76: 0.25 | O76: 0.242 | P76: 0.967 | Q76: 0.39 | S76: 3 | V76: 211 | W76: No | X76: 3 FT/10 PT
A77: 7867 | B77: 5812 | C77: 58 | D77: 722 | E77: 722511 | F77: Restr-Mexican | G77: Los Angeles, CA | H77: United States | I77: 360 | J77: 2014-03-11 | K77: 90 | L77: 35 | M77: 95 | N77: 0.25 | O77: 0.097 | P77: 0.389 | Q77: 1 | S77: 4 | W77: No | X77: 3 Ft/ 2 PT
A78: 10652 | B78: 5812 | C78: 58 | D78: 722 | E78: 722513 | F78: Bakery Restaurant | G78: San Francisco, CA | H78: United States | I78: 350 | J78: 2014-07-31 | K78: 31 | L78: 70 | M78: 130 | N78: 0.089 | O78: 0.2 | P78: 2.258 | S78: 0 | U78: 0.13 | W78: No
A79: 7913 | B79: 5812 | C79: 58 | D79: 722 | E79: 722511 | F79: Restr-Japanese | G79: Los Angeles, CA | H79: United States | I79: 350 | J79: 2014-08-12 | K79: 20 | L79: 50 | M79: 50 | N79: 0.057 | O79: 0.143 | P79: 2.5 | Q79: 1 | S79: 0 | V79: 125 | W79: No | X79: 3 FT/1 PT
A80: 11672 | B80: 5812 | C80: 58 | D80: 722 | E80: 722515 | F80: Fast Food-Yogurt | G80: Texas | H80: United States | I80: 348 | J80: 2014-12-19 | K80: 75 | L80: 137 | M80: 170 | N80: 0.216 | O80: 0.394 | P80: 1.827 | S80: 0 | W80: No
A81: 2652 | B81: 5812 | C81: 58 | D81: 722 | E81: 722513 | F81: Deli-Submarines | G81: Florida | H81: United States | I81: 345 | J81: 2014-08-31 | K81: 48 | L81: 64 | M81: 89 | N81: 0.139 | O81: 0.186 | P81: 1.333 | Q81: 0.55 | R81: 2 Yrs @ 4% | S81: 1 | T81: 30 | V81: 57 | W81: No | X81: 4
A82: 9399 | B82: 5812 | C82: 58 | D82: 722 | E82: 722515 | F82: Fast Food-Ice Cream | G82: Orange County, CA | H82: United States | I82: 317 | J82: 2014-07-09 | K82: 65 | L82: 124 | M82: 124 | N82: 0.205 | O82: 0.391 | P82: 1.908 | Q82: 1 | S82: 4 | T82: 20 | U82: 0.14 | W82: No | X82: 8 FT/ 5 PT
A83: 7576 | B83: 5812 | C83: 58 | D83: 722 | E83: 722511 | F83: Restr-Steakhouse | G83: Iowa | H83: United States | I83: 316 | J83: 2014-10-22 | K83: 33 | L83: 71 | M83: 233 | N83: 0.104 | O83: 0.225 | P83: 2.152 | Q83: 1 | S83: 9 | T83: 33 | V83: 178 | W83: No | X83: 2 FT/3 PT
A84: 11723 | B84: 5812 | C84: 58 | D84: 722 | E84: 722511 | F84: Restr-Family | G84: Texas | H84: United States | I84: 315 | J84: 2014-03-31 | K84: 18 | L84: 70 | M84: 99 | N84: 0.057 | O84: 0.222 | P84: 3.889 | Q84: 1 | S84: 1 | T84: 70 | U84: 13 | W84: No
A85: 2964 | B85: 5812 | C85: 58 | D85: 722 | E85: 722513 | F85: Fast Food-Pizza | G85: Florida | H85: United States | I85: 312 | J85: 2014-06-17 | K85: 68 | L85: 79 | M85: 85 | N85: 0.218 | O85: 0.253 | P85: 1.162 | Q85: 1 | S85: 1 | T85: 35 | W85: No | X85: 4
A86: 12363 | B86: 5812 | C86: 58 | D86: 722 | E86: 722511 | F86: Restr-Family | G86: Prescott, AZ | H86: United States | I86: 304 | J86: 2014-09-12 | K86: 44 | L86: 90 | M86: 240 | N86: 0.145 | O86: 0.296 | P86: 2.045 | Q86: 1 | S86: 0 | W86: No
A87: 1866 | B87: 5812 | C87: 58 | D87: 722 | E87: 722511 | F87: Bagel Restaurant | G87: Florida | H87: United States | I87: 300 | J87: 2014-12-12 | K87: 60 | L87: 83 | M87: 90 | N87: 0.2 | O87: 0.277 | P87: 1.383 | Q87: 1 | S87: 0 | T87: 25 | V87: 30 | W87: No | X87: 3
A88: 9506 | B88: 5812 | C88: 58 | D88: 722 | E88: 722511 | F88: Restr W/Cocktails | G88: Oregon | H88: United States | I88: 295 | J88: 2014-09-02 | K88: 55 | L88: 110 | M88: 107 | N88: 0.186 | O88: 0.373 | P88: 2 | S88: 8 | W88: No | X88: 9 FT/`14 PT
A89: 10327 | B89: 5812 | C89: 58 | D89: 722 | E89: 722511 | F89: Restr-Chinese | G89: Riverside, CA | H89: United States | I89: 288 | J89: 2014-09-19 | K89: 24 | L89: 60 | M89: 125 | N89: 0.083 | O89: 0.208 | P89: 2.5 | Q89: 1 | S89: 0 | W89: No
A90: 12408 | B90: 5812 | C90: 58 | D90: 722 | E90: 722513 | F90: Fast Food-Pizza | G90: Gilbert, AZ | H90: United States | I90: 288 | J90: 2014-06-09 | K90: 55 | L90: 55 | M90: 70 | N90: 0.191 | O90: 0.191 | P90: 1 | Q90: 1 | S90: 3 | T90: 30 | W90: No
A91: 10326 | B91: 5812 | C91: 58 | D91: 722 | E91: 722511 | F91: Fast Food-Chinese | G91: Riverside, CA | H91: United States | I91: 288 | J91: 2014-04-09 | K91: 24 | L91: 55 | M91: 120 | N91: 0.083 | O91: 0.191 | P91: 2.292 | Q91: 1 | S91: 5 | U91: 0.1 | W91: No
A92: 12424 | B92: 5812 | C92: 58 | D92: 722 | E92: 722513 | F92: Deli W/Starbucks | G92: Phoenix, AZ | H92: United States | I92: 288 | J92: 2014-02-13 | K92: 60 | L92: 115 | M92: 170 | N92: 0.208 | O92: 0.399 | P92: 1.917 | Q92: 1 | S92: 0 | T92: 25 | W92: No
A93: 12380 | B93: 5812 | C93: 58 | D93: 722 | E93: 722511 | F93: Restr-Sushi | G93: N. Dallas, TX | H93: United States | I93: 276 | J93: 2014-12-15 | K93: 36 | L93: 46 | M93: 46 | N93: 0.13 | O93: 0.167 | P93: 1.278 | Q93: 1 | S93: 3 | T93: 50 | U93: 0.26 | V93: 120 | W93: No | X93: 4
A94: 8715 | B94: 5812 | C94: 58 | D94: 722 | E94: 722513 | F94: Fast Food-Pizza | G94: Missouri | H94: United States | I94: 264 | J94: 2014-06-02 | K94: 60 | L94: 126 | M94: 135 | N94: 0.227 | O94: 0.477 | P94: 2.1 | Q94: 0.3 | R94: 6 Mos @ 6% | S94: 4 | T94: 30 | U94: 0.087 | W94: No | X94: 4 FT/6 PT
A95: 8743 | B95: 5812 | C95: 58 | D95: 722 | E95: 722515 | F95: Fast Food-Ice Cream | G95: Missouri | H95: United States | I95: 258 | J95: 2014-05-30 | K95: -10 | L95: 45 | M95: 150 | N95: -0.039 | O95: 0.174 | Q95: 1 | S95: 5 | V95: 297 | W95: No | X95: 4 PT
A96: 6312 | B96: 5812 | C96: 58 | D96: 722 | E96: 722511 | F96: Restr-Family | G96: Florida | H96: United States | I96: 256 | J96: 2014-06-27 | K96: 44 | L96: 84 | M96: 99 | N96: 0.172 | O96: 0.328 | P96: 1.909 | Q96: 1 | S96: 2 | T96: 50 | W96: No | X96: 1 FT/1 PT
A97: 12421 | B97: 5812 | C97: 58 | D97: 722 | E97: 722513 | F97: Deli-Sandwiches | G97: Fountain Hills, AZ | H97: United States | I97: 253 | J97: 2014-07-07 | K97: 20 | L97: 176 | M97: 180 | N97: 0.079 | O97: 0.696 | P97: 8.8 | Q97: 0.43 | S97: 0 | W97: No
A98: 12415 | B98: 5812 | C98: 58 | D98: 722 | E98: 722515 | F98: Franchise-Yogurt Store | G98: Phoenix, AZ | H98: United States | I98: 250 | J98: 2014-03-10 | K98: 40 | L98: 125 | M98: 145 | N98: 0.16 | O98: 0.5 | P98: 3.125 | Q98: 1 | S98: 3 | T98: 125 | W98: No
A99: 2959 | B99: 5812 | C99: 58 | D99: 722 | E99: 722513 | F99: Bagel Restaurant | G99: Florida | H99: United States | I99: 247 | J99: 2014-05-02 | K99: 73 | L99: 115 | M99: 115 | N99: 0.296 | O99: 0.466 | P99: 1.575 | Q99: 1 | S99: 1 | T99: 50 | W99: No | X99: 4
A100: 12430 | B100: 5812 | C100: 58 | D100: 722 | E100: 722515 | F100: Coffee House | G100: Phoenix, AZ | H100: United States | I100: 245 | J100: 2014-01-14 | K100: 62 | L100: 120 | M100: 125 | N100: 0.253 | O100: 0.49 | P100: 1.935 | Q100: 0.8 | S100: 2 | T100: 36 | W100: No
A101: 8746 | B101: 5812 | C101: 58 | D101: 722 | E101: 722515 | F101: Fast Food-Ice Cream | G101: Missouri | H101: United States | I101: 245 | J101: 2014-05-30 | K101: 22 | L101: 45 | M101: 150 | N101: 0.09 | O101: 0.184 | P101: 2.045 | S101: 5 | W101: No | X101: 4 PT
A102: 12409 | B102: 5812 | C102: 58 | D102: 722 | E102: 722513 | F102: Fast Food-Pizza | G102: Prescott, AZ | H102: United States | I102: 241 | J102: 2014-11-04 | K102: 40 | L102: 75 | M102: 95 | N102: 0.166 | O102: 0.311 | P102: 1.875 | Q102: 1 | S102: 0 | W102: No
A103: 1152 | B103: 5812 | C103: 58 | D103: 722 | E103: 722515 | F103: Fast Food-Ice Cream | G103: Dallas, TX | H103: United States | I103: 240 | J103: 2014-06-03 | K103: 105 | L103: 185 | M103: 215 | N103: 0.438 | O103: 0.771 | P103: 1.762 | Q103: 1 | S103: 3 | T103: 50 | U103: 0.25 | V103: 45 | W103: No | X103: 2
A104: 12376 | B104: 5812 | C104: 58 | D104: 722 | E104: 722513 | F104: Breakfast/Lunch | G104: Sun City West, AZ | H104: United States | I104: 239 | J104: 2014-01-17 | K104: 56 | L104: 50 | M104: 55 | N104: 0.234 | O104: 0.209 | P104: 0.893 | Q104: 0.4 | S104: 0 | T104: 55 | W104: No
A105: 12414 | B105: 5812 | C105: 58 | D105: 722 | E105: 722515 | F105: Fast Food-Yogurt | G105: Fountain Hills, AZ | H105: United States | I105: 235 | J105: 2014-03-03 | K105: 45 | L105: 93 | M105: 115 | N105: 0.191 | O105: 0.396 | P105: 2.067 | Q105: 1 | S105: 2 | T105: 115 | W105: No
A106: 7979 | B106: 5812 | C106: 58 | D106: 722 | E106: 722513 | F106: Fast Food-Chicken | G106: Los Angeles, CA | H106: United States | I106: 230 | J106: 2014-11-13 | K106: 25 | L106: 55 | M106: 59 | N106: 0.109 | O106: 0.239 | P106: 2.2 | Q106: 1 | S106: 0 | W106: No | X106: 3 FT/1 PT
A107: 12364 | B107: 5812 | C107: 58 | D107: 722 | E107: 722511 | F107: Restr-Diner | G107: San Diego, CA | H107: United States | I107: 220 | J107: 2014-10-06 | K107: 40 | L107: 67 | M107: 77 | N107: 0.182 | O107: 0.305 | P107: 1.675 | Q107: 0.5 | R107: 4 Yrs @ 6% | S107: 3 | T107: 30 | U107: 0.09 | V107: 210 | W107: No | X107: 5
A108: 12370 | B108: 5812 | C108: 58 | D108: 722 | E108: 722513 | F108: Restr-Breakfast Only | G108: Gilbert, AZ | H108: United States | I108: 220 | J108: 2014-12-22 | K108: 66 | L108: 109 | M108: 109 | N108: 0.3 | O108: 0.495 | P108: 1.652 | Q108: 0.47 | S108: 2 | T108: 40 | W108: No
A109: 4645 | B109: 5812 | C109: 58 | D109: 722 | E109: 722511 | F109: Bagel Restaurant | G109: Florida | H109: United States | I109: 208 | J109: 2014-02-14 | K109: 1 | L109: 33 | M109: 60 | N109: 0.005 | O109: 0.159 | P109: 33 | Q109: 0.66 | R109: 2 Mos @ 0% | S109: 3 | U109: 0.21 | W109: No | X109: 9
A110: 4612 | B110: 5812 | C110: 58 | D110: 722 | E110: 722513 | F110: Fast Food-Ice Cream | G110: Florida | H110: United States | I110: 208 | J110: 2014-11-26 | K110: 40 | L110: 150 | M110: 159 | N110: 0.192 | O110: 0.721 | P110: 3.75 | Q110: 1 | S110: 3 | T110: 40 | V110: 360 | W110: No | X110: 9
A111: 729 | B111: 5812 | C111: 58 | D111: 722 | E111: 722511 | F111: Restr-Ethnic Food | G111: CN-Ontario | H111: Canada | I111: 207 | J111: 2014-02-07 | K111: 51 | L111: 65 | M111: 80 | N111: 0.246 | O111: 0.314 | P111: 1.275 | Q111: 1 | S111: 0 | T111: 65 | U111: 0.18 | W111: No | X111: 1
A112: 2307 | B112: 5812 | C112: 58 | D112: 722 | E112: 722513 | F112: Deli-Office Building | G112: Florida | H112: United States | I112: 200 | J112: 2014-06-30 | K112: 43 | L112: 65 | M112: 77 | N112: 0.215 | O112: 0.325 | P112: 1.512 | Q112: 0.31 | S112: 0 | T112: 20 | W112: No | X112: 3
A113: 12378 | B113: 5812 | C113: 58 | D113: 722 | E113: 722515 | F113: Restr-Coffee Shop | G113: Gold Canyon, AZ | H113: United States | I113: 195 | J113: 2014-09-29 | K113: 55 | L113: 158 | M113: 165 | N113: 0.282 | O113: 0.81 | P113: 2.873 | Q113: 0.32 | S113: 2 | T113: 3 | W113: No
A114: 8442 | B114: 5812 | C114: 58 | D114: 722 | E114: 722513 | F114: Fast Food-Italian/Pizza | G114: Minneapolis, MN | H114: United States | I114: 190 | J114: 2014-12-01 | K114: 50 | L114: 50 | M114: 50 | N114: 0.263 | O114: 0.263 | P114: 1 | Q114: 1 | S114: 0 | T114: 25 | U114: 0.11 | W114: No | X114: 4 FT/1 PT
A115: 6544 | B115: 5812 | C115: 58 | D115: 722 | E115: 722511 | F115: Bagel Restaurant | G115: Florida | H115: United States | I115: 175 | J115: 2014-05-06 | K115: 84 | L115: 80 | M115: 159 | N115: 0.48 | O115: 0.457 | P115: 0.952 | Q115: 1 | S115: 1 | T115: 50 | U115: 0.04 | V115: 147 | W115: No | X115: 1 FT/3 PT
A116: 3452 | B116: 5812 | C116: 58 | D116: 722 | E116: 722511 | F116: Restr-Family | G116: Florida | H116: United States | I116: 174 | J116: 2014-06-30 | K116: 48 | L116: 48 | M116: 59 | N116: 0.276 | O116: 0.276 | P116: 1 | Q116: 1 | S116: 1 | T116: 38 | W116: No | X116: 5
A117: 4498 | B117: 5812 | C117: 58 | D117: 722 | E117: 722511 | F117: Restr-Family | G117: Florida | H117: United States | I117: 170 | J117: 2014-06-04 | K117: 47 | L117: 35 | M117: 47 | N117: 0.276 | O117: 0.206 | P117: 0.745 | Q117: 0.2 | R117: 4Yrs @ 6% | S117: 3 | T117: 27 | W117: No | X117: 8
A118: 9420 | B118: 5812 | C118: 58 | D118: 722 | E118: 722515 | F118: Coffee/Tea House | G118: Orange County, CA | H118: United States | I118: 168 | J118: 2014-05-30 | K118: 18 | L118: 85 | M118: 105 | N118: 0.107 | O118: 0.506 | P118: 4.722 | Q118: 1 | S118: 5 | W118: No | X118: 8 FT/1 PT
A119: 12372 | B119: 5812 | C119: 58 | D119: 722 | E119: 722513 | F119: Breakfast/Lunch | G119: Mesa AZ | H119: United States | I119: 158 | J119: 2014-04-14 | K119: 51 | L119: 50 | M119: 66 | N119: 0.323 | O119: 0.316 | P119: 0.98 | S119: 1 | T119: 16 | W119: No
A120: 5289 | B120: 5812 | C120: 58 | D120: 722 | E120: 722513 | F120: Fast Food-Ice Cream | G120: Florida | H120: United States | I120: 144 | J120: 2014-01-15 | K120: 28 | L120: 26 | M120: 37 | N120: 0.194 | O120: 0.181 | P120: 0.929 | Q120: 1 | S120: 3 | T120: 16 | U120: 0.17 | W120: No | X120: 14
A121: 12394 | B121: 5812 | C121: 58 | D121: 722 | E121: 722513 | F121: Snack Stand | G121: Phoenix, AZ | H121: United States | I121: 140 | J121: 2014-03-03 | K121: 40 | L121: 50 | M121: 55 | N121: 0.286 | O121: 0.357 | P121: 1.25 | Q121: 1 | S121: 1 | T121: 50 | W121: No
A122: 1898 | B122: 5812 | C122: 58 | D122: 722 | E122: 722511 | F122: Restr-Family | G122: Florida | H122: United States | I122: 132 | J122: 2014-10-31 | K122: 38 | L122: 89 | M122: 89 | N122: 0.288 | O122: 0.674 | P122: 2.342 | Q122: 1 | S122: 1 | T122: 8 | V122: 180 | W122: No | X122: 3
A123: 12374 | B123: 5812 | C123: 58 | D123: 722 | E123: 722513 | F123: Breakfast/Lunch | G123: Scottsdale, AZ | H123: United States | I123: 125 | J123: 2014-12-15 | K123: 56 | L123: 57 | M123: 60 | N123: 0.448 | O123: 0.456 | P123: 1.018 | Q123: 0.44 | S123: 0 | T123: 35 | W123: No
A124: 12013 | B124: 5812 | C124: 58 | D124: 722 | E124: 722515 | F124: Espresso Kiosk | G124: Washington | H124: United States | I124: 125 | J124: 2014-10-31 | K124: 29 | L124: 50 | M124: 50 | N124: 0.232 | O124: 0.4 | P124: 1.724 | Q124: 1 | S124: 2 | T124: 40 | U124: 0.12 | W124: Yes
A125: 2717 | B125: 5812 | C125: 58 | D125: 722 | E125: 722515 | F125: Fast Food-Yogurt | G125: Florida | H125: United States | I125: 120 | J125: 2014-04-30 | K125: 20 | L125: 48 | M125: 85 | N125: 0.167 | O125: 0.4 | P125: 2.4 | Q125: 1 | S125: 0 | V125: 120 | W125: No | X125: 4
A126: 9421 | B126: 5812 | C126: 58 | D126: 722 | E126: 722511 | F126: Deli-Sandwiches | G126: Orange County, CA | H126: United States | I126: 85 | J126: 2014-06-25 | K126: 0 | L126: 65 | M126: 55 | N126: 0 | O126: 0.765 | Q126: 1 | S126: 3 | W126: No | X126: 8 FT/1 PT
A127: 12395 | B127: 5812 | C127: 58 | D127: 722 | E127: 722513 | F127: Hot Dog Stand | G127: Tempe, AZ | H127: United States | I127: 75 | J127: 2014-03-04 | K127: 45 | L127: 50 | M127: 60 | N127: 0.6 | O127: 0.667 | P127: 1.111 | Q127: 1 | S127: 2 | T127: 25 | W127: No
A128: 4200 | B128: 5812 | C128: 58 | D128: 722 | E128: 722513 | F128: Fast Food-Ice Cream | G128: Florida | H128: United States | I128: 73 | J128: 2014-10-03 | K128: 28 | L128: 30 | M128: 35 | N128: 0.384 | O128: 0.411 | P128: 1.071 | Q128: 1 | S128: 5 | T128: 21 | W128: No | X128: 7
A129: 9513 | B129: =TEXT("5813","0000") -> 5813 | C129: 58 | D129: 722 | E129: 722410 | F129: Adult Entertainment | G129: Oregon | H129: United States | I129: 1566 | J129: 2014-12-22 | K129: 591 | L129: 1025 | M129: 1500 | N129: 0.377 | O129: 0.655 | P129: 1.734 | Q129: 1 | S129: 2 | T129: 385 | V129: 155 | W129: No | X129: 9 FT/1 PT
A130: 10198 | B130: 5813 | C130: 58 | D130: 722 | E130: 722410 | F130: Cocktail Lounge | G130: Redwood City, CA | H130: United States | I130: 1134 | J130: 2014-10-15 | K130: 231 | L130: 650 | M130: 650 | N130: 0.204 | O130: 0.573 | P130: 2.814 | Q130: 0.3 | S130: 0 | V130: 560 | W130: No
A131: 3873 | B131: 5813 | C131: 58 | D131: 722 | E131: 722410 | F131: Cocktail Lounge | G131: Florida | H131: United States | I131: 996 | J131: 2014-02-28 | K131: 61 | L131: 435 | M131: 475 | N131: 0.061 | O131: 0.437 | P131: 7.131 | Q131: 1 | S131: 0 | T131: 55 | V131: 1992 | W131: No | X131: 6
A132: 6604 | B132: 5813 | C132: 58 | D132: 722 | E132: 722410 | F132: Brew Pub W/Food | G132: Florida | H132: United States | I132: 645 | J132: 2014-12-19 | K132: 128 | L132: 197 | M132: 272 | N132: 0.198 | O132: 0.305 | P132: 1.539 | Q132: 0.4 | S132: 3 | T132: 50 | W132: No | X132: 1 Ft/3 PT
A133: 8019 | B133: 5813 | C133: 58 | D133: 722 | E133: 722410 | F133: Cocktails W/Food | G133: Los Angeles, CA | H133: United States | I133: 576 | J133: 2014-03-12 | K133: 144 | L133: 275 | M133: 295 | N133: 0.25 | O133: 0.477 | P133: 1.91 | Q133: 1 | S133: 0 | U133: 0.09 | W133: No | X133: 3 FT/1 PT
A134: 12445 | B134: 5813 | C134: 58 | D134: 722 | E134: 722410 | F134: Sports Bar | G134: Tucson AZ | H134: United States | I134: 500 | J134: 2014-10-15 | K134: 50 | L134: 79 | M134: 89 | N134: 0.1 | O134: 0.158 | P134: 1.58 | Q134: 0.7 | S134: 7 | T134: 50 | W134: No
A135: 10719 | B135: 5813 | C135: 58 | D135: 722 | E135: 722410 | F135: Cocktail Lounge | G135: San Jose, CA | H135: United States | I135: 235 | J135: 2014-10-15 | L135: 50 | M135: 129 | O135: 0.213 | Q135: 1 | S135: 0 | W135: No
A136: 12444 | B136: 5813 | C136: 58 | D136: 722 | E136: 722410 | F136: Cocktail Lounge | G136: Phoenix, AZ | H136: United States | I136: 200 | J136: 2014-04-09 | L136: 150 | M136: 175 | O136: 0.75 | Q136: 0.1 | S136: 0 | T136: 110 | W136: No

Sheet Select Tools
B2: Selection Criteria | I2: Total Population from "All Trans" Sheet
B3: Selects transactions that meet the following criteria. Blank fields are ignored. | K3: Count = | L3: =Statistics!C19 -> 135
E5: Min | F5: Max | K5: Min | L5: Max
C6: Sale Date | J6: Sale Date | K6: =Statistics!D19 -> 2014-01-02 | L6: =Statistics!E19 -> 2014-12-31
C7: Sale Price | J7: Sale Price | K7: =Statistics!D24 -> 25 | L7: =Statistics!E24 -> 2200
C8: Annual Gross Sales | J8: Annual Gross Sales | K8: =Statistics!D20 -> 73 | L8: =Statistics!E20 -> 2550
C9: SDE to Annual Gross | J9: SDE to Annual Gross | K9: =Statistics!D25 -> -0.039 | L9: =Statistics!E25 -> 0.6
C10: Rent to Annual Gross | J10: Rent to Annual Gross | K10: =Statistics!D26 -> 0.009 | L10: =Statistics!E26 -> 13
C11: SDE | J11: SDE | K11: =Statistics!D21 -> -10 | L11: =Statistics!E22 -> 61
C12: Inventory Value | J12: Inventory Value | K12: =Statistics!D22 -> 0 | L12: =Statistics!E23 -> 385
C13: FF&E | J13: FF&E | K13: =Statistics!D23 -> 3 | L13: =Statistics!E24 -> 2200
C15: SIC
C18: NAICS
B26: Note: Enter currency fields in thousands (example: for $1 million, you would enter $1,000).

Sheet Manual Select
A1: Select | B1: TransactionID | C1: SICCode | D1: SICCodeGeneral | E1: NAICSGeneral | F1: NAICSCode | G1: BusinessDescription | H1: Area | I1: Country | J1: AnnualGross | K1: SaleDate | L1: SDE | M1: SalePrice | N1: AskPrice | O1: SDEtoAnnualGross | P1: SalePriceToAnnualGross | Q1: SalePriceToSDE | R1: PercentDown | S1: Terms | T1: InventoryAmount | U1: FFE | V1: RentToAnnualGross | W1: DaysOnMarket | X1: FranchiseRoyalty | Y1: NumberOfEmployees
A2: Yes | B2: 11351 | C2: =TEXT("5812","0000") -> 5812 | D2: =TEXT("58","00") -> 58 | E2: =TEXT("722","000") -> 722 | F2: 722513 | G2: Fast Food-Burgers | H2: Southeast | I2: United States | J2: 2550 | K2: 2014-03-31 | L2: 315 | M2: 1300 | N2: 1300 | O2: 0.124 | P2: 0.51 | Q2: 4.127 | T2: 13 | X2: No
A3: Yes | B3: 10989 | C3: 5812 | D3: 58 | E3: 722 | F3: 722513 | G3: Fast Food-Burgers | H3: South Atlantic | I3: United States | J3: 2500 | K3: 2014-02-28 | L3: 505 | M3: 2200 | N3: 2400 | O3: 0.202 | P3: 0.88 | Q3: 4.356 | T3: 15 | X3: No
A4: Yes | B4: 4033 | C4: 5812 | D4: 58 | E4: 722 | F4: 722511 | G4: Restr-Family | H4: Florida | I4: United States | J4: 2235 | K4: 2014-04-14 | L4: 342 | M4: 650 | N4: 975 | O4: 0.153 | P4: 0.291 | Q4: 1.901 | R4: 1 | T4: 0 | U4: 50 | W4: 120 | X4: No | Y4: 7
A5: Yes | B5: 5394 | C5: 5812 | D5: 58 | E5: 722 | F5: 722511 | G5: Restr-Ethnic | H5: Florida | I5: United States | J5: 2190 | K5: 2014-05-05 | L5: 413 | M5: 492 | N5: 642 | O5: 0.189 | P5: 0.225 | Q5: 1.191 | R5: 0.2 | S5: 1 Yr @ 4% | T5: 8 | U5: 89 | W5: 65 | X5: Y-5% | Y5: 15
A6: Yes | B6: 11659 | C6: 5812 | D6: 58 | E6: 722 | F6: 722511 | G6: Restr W/Cocktails | H6: Texas | I6: United States | J6: 1702 | K6: 2014-07-14 | L6: 143 | M6: 388 | N6: 783 | O6: 0.084 | P6: 0.228 | Q6: 2.713 | R6: 0.3 | T6: 0 | U6: 15 | X6: No
A7: Yes | B7: 1059 | C7: 5812 | D7: 58 | E7: 722 | F7: 722513 | G7: Bakery-Restaurant | H7: Colorado | I7: United States | J7: 1588 | K7: 2014-02-28 | L7: 247 | M7: 500 | N7: 500 | O7: 0.156 | P7: 0.315 | Q7: 2.024 | R7: 0.48 | T7: 25 | U7: 100 | W7: 150 | X7: No | Y7: 2
A8: Yes | B8: 10765 | C8: 5812 | D8: 58 | E8: 722 | F8: 722511 | G8: Restr-Family | H8: San Jose, CA | I8: United States | J8: 1543 | K8: 2014-04-28 | L8: 180 | M8: 250 | N8: 395 | O8: 0.117 | P8: 0.162 | Q8: 1.389 | T8: 0 | X8: No
A9: Yes | B9: 7403 | C9: 5812 | D9: 58 | E9: 722 | F9: 722511 | G9: Restr W/Cocktails | H9: Houston, TX | I9: United States | J9: 1527 | K9: 2014-12-05 | L9: 356 | M9: 700 | N9: 750 | O9: 0.233 | P9: 0.458 | Q9: 1.966 | T9: 0 | U9: 359 | X9: No | Y9: 2 FT/10 PT
A10: Yes | B10: 8932 | C10: 5812 | D10: 58 | E10: 722 | F10: 722511 | G10: Restr-Family | H10: New England | I10: United States | J10: 1411 | K10: 2014-05-19 | L10: 258 | M10: 325 | N10: 775 | O10: 0.183 | P10: 0.23 | Q10: 1.26 | R10: 0.16 | S10: 20 Yrs @ 2% | T10: 11 | U10: 259 | W10: 36 | X10: No | Y10: 5 FT/3 PT
A11: Yes | B11: 3538 | C11: 5812 | D11: 58 | E11: 722 | F11: 722511 | G11: Restr-Italian | H11: Florida | I11: United States | J11: 1381 | K11: 2014-06-30 | L11: 219 | M11: 400 | N11: 450 | O11: 0.159 | P11: 0.29 | Q11: 1.826 | R11: 0.45 | S11: 5 Yrs @ 5% | T11: 1 | U11: 80 | X11: No | Y11: 5
A12: Yes | B12: 11837 | C12: 5812 | D12: 58 | E12: 722 | F12: 722511 | G12: Mexican Buffett | H12: Tyler, TX | I12: United States | J12: 1363 | K12: 2014-03-28 | L12: 229 | M12: 229 | N12: 239 | O12: 0.168 | P12: 0.168 | Q12: 1 | R12: 1 | T12: 10 | U12: 130 | V12: 0.009 | X12: No
A13: Yes | B13: 6513 | C13: 5812 | D13: 58 | E13: 722 | F13: 722511 | G13: Bagel Restaurant | H13: Florida | I13: United States | J13: 1200 | K13: 2014-09-08 | L13: 315 | M13: 575 | N13: 650 | O13: 0.263 | P13: 0.479 | Q13: 1.825 | R13: 1 | T13: 0 | U13: 125 | X13: No | Y13: 1 FT/2 PT
A14: Yes | B14: 10692 | C14: 5812 | D14: 58 | E14: 722 | F14: 722513 | G14: Fast Food Cafe | H14: San Francisco, CA | I14: United States | J14: 1134 | K14: 2014-10-15 | L14: 231 | M14: 650 | N14: 650 | O14: 0.204 | P14: 0.573 | Q14: 2.814 | R14: 0.3 | T14: 0 | V14: 0.05 | X14: No
A15: Yes | B15: 4137 | C15: 5812 | D15: 58 | E15: 722 | F15: 722511 | G15: Restr-Family | H15: Florida | I15: United States | J15: 1100 | K15: 2014-07-07 | L15: 150 | M15: 345 | N15: 384 | O15: 0.136 | P15: 0.314 | Q15: 2.3 | R15: 1 | T15: 15 | U15: 50 | W15: 292 | X15: No | Y15: 7
A16: Yes | B16: 11035 | C16: 5812 | D16: 58 | E16: 722 | F16: 722511 | G16: Restr-Family | H16: South Dakota | I16: United States | J16: 1100 | K16: 2014-05-21 | L16: 148 | M16: 532 | N16: 542 | O16: 0.135 | P16: 0.484 | Q16: 3.595 | S16: 5.5 Yrs @ 5.5% | T16: 8 | X16: No
A17: Yes | B17: 9321 | C17: 5812 | D17: 58 | E17: 722 | F17: 722511 | G17: Restr-Family | H17: Oklahoma | I17: United States | J17: 1078 | K17: 2014-08-04 | L17: 118 | M17: 341 | N17: 391 | O17: 0.109 | P17: 0.316 | Q17: 2.89 | R17: 1 | T17: 9 | U17: 164 | X17: No | Y17: 7 FT/2 PT
A18: Yes | B18: 3777 | C18: 5812 | D18: 58 | E18: 722 | F18: 722511 | G18: Restr W/Cocktails | H18: Florida | I18: United States | J18: 1050 | K18: 2014-09-10 | L18: 97 | M18: 100 | N18: 115 | O18: 0.092 | P18: 0.095 | Q18: 1.031 | R18: 0.5 | S18: 4 Yrs @ 6% | T18: 10 | U18: 50 | W18: 192 | X18: No | Y18: 6
A19: Yes | B19: 6688 | C19: 5812 | D19: 58 | E19: 722 | F19: 722511 | G19: Restr-Italian/Pizza | H19: Florida | I19: United States | J19: 1036 | K19: 2014-08-25 | L19: 174 | M19: 115 | N19: 190 | O19: 0.168 | P19: 0.111 | Q19: 0.661 | R19: 1 | T19: 35 | X19: No | Y19: 1 FT/5 PT
A20: Yes | B20: 7525 | C20: 5812 | D20: 58 | E20: 722 | F20: 722511 | G20: Restr-Family | H20: Incline Village, NV | I20: United States | J20: 991 | K20: 2014-09-02 | L20: 117 | M20: 200 | N20: 259 | O20: 0.118 | P20: 0.202 | Q20: 1.709 | R20: 0.26 | T20: 0 | X20: No | Y20: 2 FT/2 PT
A21: Yes | B21: 9210 | C21: 5812 | D21: 58 | E21: 722 | F21: 722511 | G21: Restr-Family | H21: Northern Nevada | I21: United States | J21: 991 | K21: 2014-09-02 | L21: 117 | M21: 200 | N21: 255 | O21: 0.118 | P21: 0.202 | Q21: 1.709 | R21: 0.26 | S21: 5 Yrs @ 6% | T21: 4 | V21: 0.042 | W21: 100 | X21: No | Y21: 6 FT/6 PT
A22: Yes | B22: 7580 | C22: 5812 | D22: 58 | E22: 722 | F22: 722511 | G22: Restr-Family | H22: Iowa | I22: United States | J22: 960 | K22: 2014-02-28 | L22: 203 | M22: 408 | N22: 417 | O22: 0.211 | P22: 0.425 | Q22: 2.01 | T22: 0 | U22: 175 | W22: 231 | X22: No | Y22: 2 FT/3 PT
A23: Yes | B23: 12361 | C23: 5812 | D23: 58 | E23: 722 | F23: 722511 | G23: Restr-Family | H23: Peoria, AZ | I23: United States | J23: 932 | K23: 2014-12-03 | M23: 295 | N23: 295 | P23: 0.317 | R23: 1 | T23: 0 | X23: No
A24: Yes | B24: 5389 | C24: 5812 | D24: 58 | E24: 722 | F24: 722511 | G24: Restr-Family | H24: Florida | I24: United States | J24: 858 | K24: 2014-01-09 | L24: 42 | M24: 92 | N24: 85 | O24: 0.049 | P24: 0.107 | Q24: 2.19 | R24: 0.6 | T24: 8 | X24: No | Y24: 15
A25: Yes | B25: 4034 | C25: 5812 | D25: 58 | E25: 722 | F25: 722511 | G25: Restr-Barbeque | H25: Florida | I25: United States | J25: 850 | K25: 2014-11-30 | L25: 80 | M25: 100 | N25: 175 | O25: 0.094 | P25: 0.118 | Q25: 1.25 | R25: 0.75 | S25: 2 Yrs @ 0% | T25: 0 | W25: 120 | X25: No | Y25: 7
A26: Yes | B26: 3983 | C26: 5812 | D26: 58 | E26: 722 | F26: 722513 | G26: Fast Food Franchise | H26: Florida | I26: United States | J26: 840 | K26: 2014-09-30 | L26: 85 | M26: 120 | N26: 145 | O26: 0.101 | P26: 0.143 | Q26: 1.412 | R26: 0.92 | S26: 1 Yr | T26: 0 | X26: No | Y26: 6
A27: Yes | B27: 3996 | C27: 5812 | D27: 58 | E27: 722 | F27: 722511 | G27: Restr-Italian/Pizza | H27: Florida | I27: United States | J27: 814 | K27: 2014-08-04 | L27: 58 | M27: 130 | N27: 145 | O27: 0.071 | P27: 0.16 | Q27: 2.241 | R27: 1 | T27: 5 | U27: 35 | X27: Y-12.5% | Y27: 6
A28: Yes | B28: 10694 | C28: 5812 | D28: 58 | E28: 722 | F28: 722515 | G28: Franchise-Soft Serve | H28: San Francisco, CA | I28: United States | J28: 790 | K28: 2014-08-01 | L28: 114 | M28: 185 | N28: 194 | O28: 0.144 | P28: 0.234 | Q28: 1.623 | T28: 5 | V28: 0.038 | X28: No
A29: Yes | B29: 8230 | C29: 5812 | D29: 58 | E29: 722 | F29: 722513 | G29: Fast Food-Yogurt | H29: Massachusetts | I29: United States | J29: 775 | K29: 2014-06-13 | L29: 193 | M29: 550 | N29: 550 | O29: 0.249 | P29: 0.71 | Q29: 2.85 | R29: 1 | T29: 0 | U29: 125 | X29: No | Y29: 3 FT/4 PT
A30: Yes | B30: 11721 | C30: 5812 | D30: 58 | E30: 722 | F30: 722511 | G30: Restr-Family | H30: Texas | I30: United States | J30: 752 | K30: 2014-04-30 | L30: 40 | M30: 355 | N30: 432 | O30: 0.053 | P30: 0.472 | Q30: 8.875 | T30: 18 | U30: 59 | V30: 0.08 | X30: No
A31: Yes | B31: 3660 | C31: 5812 | D31: 58 | E31: 722 | F31: 722511 | G31: Restr-Family | H31: Florida | I31: United States | J31: 735 | K31: 2014-01-31 | L31: 251 | M31: 350 | N31: 450 | O31: 0.341 | P31: 0.476 | Q31: 1.394 | R31: 0.46 | S31: 3 Yrs @ 5% | T31: 0 | U31: 50 | W31: 240 | X31: No | Y31: 6
A32: Yes | B32: 7944 | C32: 5812 | D32: 58 | E32: 722 | F32: 722511 | G32: Restr-Japanese | H32: Los Angeles, CA | I32: United States | J32: 720 | K32: 2014-10-31 | L32: 12 | M32: 149 | N32: 149 | O32: 0.017 | P32: 0.207 | Q32: 12.417 | R32: 1 | T32: 0 | W32: 258 | X32: No | Y32: 3 FT/1 PT
A33: Yes | B33: 12426 | C33: 5812 | D33: 58 | E33: 722 | F33: 722513 | G33: Deli W/Starbucks | H33: Tempe, AZ | I33: United States | J33: 720 | K33: 2014-03-28 | L33: 204 | M33: 400 | N33: 475 | O33: 0.283 | P33: 0.556 | Q33: 1.961 | R33: 1 | T33: 0 | U33: 35 | X33: No
A34: Yes | B34: 3788 | C34: 5812 | D34: 58 | E34: 722 | F34: 722511 | G34: Restr-Steakhouse | H34: Florida | I34: United States | J34: 720 | K34: 2014-02-28 | L34: 240 | M34: 182 | N34: 195 | O34: 0.333 | P34: 0.253 | Q34: 0.758 | R34: 0.48 | S34: 2 Mos @ 0% | T34: 5 | W34: 210 | X34: No | Y34: 6
A35: Yes | B35: 1061 | C35: 5812 | D35: 58 | E35: 722 | F35: 722513 | G35: Restr-Breakfast Only | H35: Colorado | I35: United States | J35: 701 | K35: 2014-03-31 | L35: 86 | M35: 222 | N35: 222 | O35: 0.123 | P35: 0.317 | Q35: 2.581 | R35: 1 | T35: 3 | U35: 35 | W35: 150 | X35: No | Y35: 2
A36: Yes | B36: 12332 | C36: 5812 | D36: 58 | E36: 722 | F36: 722511 | G36: Restr-Barbeque | H36: Casa Grande, AZ | I36: United States | J36: 700 | K36: 2014-12-16 | L36: 59 | M36: 30 | N36: 60 | O36: 0.084 | P36: 0.043 | Q36: 0.508 | R36: 1 | T36: 0 | U36: 10 | X36: No
A37: Yes | B37: 5313 | C37: 5812 | D37: 58 | E37: 722 | F37: 722511 | G37: Restr-Family | H37: Florida | I37: United States | J37: 700 | K37: 2014-04-24 | L37: 75 | M37: 95 | N37: 140 | O37: 0.107 | P37: 0.136 | Q37: 1.267 | R37: 1 | T37: 0 | U37: 50 | V37: 0.07 | W37: 85 | X37: No | Y37: 15
A38: Yes | B38: 7408 | C38: 5812 | D38: 58 | E38: 722 | F38: 722513 | G38: Fast Food-Mexican | H38: Houston, TX | I38: United States | J38: 658 | K38: 2014-01-02 | L38: 183 | M38: 450 | N38: 500 | O38: 0.278 | P38: 0.684 | Q38: 2.459 | R38: 1 | T38: 0 | U38: 293 | V38: 0.12 | W38: 948 | X38: No | Y38: 2 FT/11 PT
A39: Yes | B39: 4838 | C39: 5812 | D39: 58 | E39: 722 | F39: 722513 | G39: Fast Food-Pizza | H39: Florida | I39: United States | J39: 653 | K39: 2014-06-09 | L39: 97 | M39: 162 | N39: 194 | O39: 0.149 | P39: 0.248 | Q39: 1.67 | R39: 0.77 | S39: 3 Yrs @ 5% | T39: 5 | U39: 66 | X39: No | Y39: 10
A40: Yes | B40: 3532 | C40: 5812 | D40: 58 | E40: 722 | F40: 722513 | G40: Fast Food-Pizza | H40: Florida | I40: United States | J40: 650 | K40: 2014-04-30 | L40: 195 | M40: 168 | N40: 210 | O40: 0.3 | P40: 0.258 | Q40: 0.862 | R40: 1 | T40: 0 | U40: 150 | X40: No | Y40: 5
A41: Yes | B41: 11018 | C41: 5812 | D41: 58 | E41: 722 | F41: 722511 | G41: Restr W/Cocktails | H41: South Dakota | I41: United States | J41: 644 | K41: 2014-08-12 | L41: 82 | M41: 25 | N41: 328 | O41: 0.127 | P41: 0.039 | Q41: 0.305 | S41: 1 | T41: 61 | U41: 25 | X41: No
A42: Yes | B42: 10769 | C42: 5812 | D42: 58 | E42: 722 | F42: 722513 | G42: Franch-Sandwiches | H42: San Jose, CA | I42: United States | J42: 633 | K42: 2014-03-11 | L42: 113 | M42: 490 | N42: 550 | O42: 0.179 | P42: 0.774 | Q42: 4.336 | T42: 0 | X42: No
A43: Yes | B43: 9425 | C43: 5812 | D43: 58 | E43: 722 | F43: 722515 | G43: Fast Food-Yogurt | H43: Orange County, CA | I43: United States | J43: 603 | K43: 2014-02-21 | L43: 52 | M43: 104 | N43: 104 | O43: 0.086 | P43: 0.172 | Q43: 2 | T43: 0 | X43: No | Y43: 8 FT/1 PT
A44: Yes | B44: 7923 | C44: 5812 | D44: 58 | E44: 722 | F44: 722511 | G44: Restr-Family | H44: Los Angeles, CA | I44: United States | J44: 600 | K44: 2014-10-21 | L44: 180 | M44: 450 | N44: 450 | O44: 0.3 | P44: 0.75 | Q44: 2.5 | R44: 1 | T44: 0 | W44: 160 | X44: No | Y44: 3 FT/1 PT
A45: Yes | B45: 7921 | C45: 5812 | D45: 58 | E45: 722 | F45: 722515 | G45: Coffee/Sandwiches | H45: Los Angeles, CA | I45: United States | J45: 576 | K45: 2014-03-10 | L45: 144 | M45: 275 | N45: 295 | O45: 0.25 | P45: 0.477 | Q45: 1.91 | R45: 1 | T45: 0 | W45: 158 | X45: No | Y45: 3 FT/1 PT
A46: Yes | B46: 5111 | C46: 5812 | D46: 58 | E46: 722 | F46: 722511 | G46: Restr-Family | H46: Florida | I46: United States | J46: 575 | K46: 2014-12-05 | L46: 115 | M46: 140 | N46: 204 | O46: 0.2 | P46: 0.243 | Q46: 1.217 | R46: 0.93 | S46: 10 Yrs @ 6% | T46: 5 | U46: 50 | X46: No | Y46: 12
A47: Yes | B47: 3779 | C47: 5812 | D47: 58 | E47: 722 | F47: 722511 | G47: Restr-Family | H47: Florida | I47: United States | J47: 575 | K47: 2014-12-31 | L47: 136 | M47: 161 | N47: 162 | O47: 0.237 | P47: 0.28 | Q47: 1.184 | T47: 3 | U47: 45 | W47: 200 | X47: No | Y47: 6
A48: Yes | B48: 12362 | C48: 5812 | D48: 58 | E48: 722 | F48: 722511 | G48: Restr-Family | H48: Phoenix, AZ | I48: United States | J48: 560 | K48: 2014-03-28 | L48: 71 | M48: 70 | N48: 100 | O48: 0.127 | P48: 0.125 | Q48: 0.986 | R48: 1 | T48: 0 | U48: 50 | X48: No
A49: Yes | B49: 6374 | C49: 5812 | D49: 58 | E49: 722 | F49: 722511 | G49: Restr-Family | H49: Florida | I49: United States | J49: 550 | K49: 2014-09-19 | L49: 190 | M49: 251 | N49: 271 | O49: 0.345 | P49: 0.456 | Q49: 1.321 | R49: 1 | T49: 4 | U49: 55 | W49: 7 | X49: No | Y49: 1 FT/2 PT
A50: Yes | B50: 8030 | C50: 5812 | D50: 58 | E50: 722 | F50: 722511 | G50: Restr-Family | H50: Los Angeles, CA | I50: United States | J50: 550 | K50: 2014-07-22 | L50: 0 | M50: 195 | N50: 195 | O50: 0 | P50: 0.355 | R50: 1 | T50: 3 | U50: 45 | X50: No | Y50: 3 FT/1 PT
A51: Yes | B51: 10997 | C51: 5812 | D51: 58 | E51: 722 | F51: 722513 | G51: Bakery Restaurant | H51: South Carolina | I51: United States | J51: 525 | K51: 2014-06-06 | L51: 110 | M51: 225 | N51: 225 | O51: 0.21 | P51: 0.429 | Q51: 2.045 | R51: 0.22 | S51: 5 Yrs @ 6% | T51: 2 | U51: 25 | V51: 0.069 | X51: No
A52: Yes | B52: 3146 | C52: 5812 | D52: 58 | E52: 722 | F52: 722511 | G52: Restr-Italian/Pizza | H52: Florida | I52: United States | J52: 519 | K52: 2014-08-31 | L52: 138 | M52: 115 | N52: 140 | O52: 0.266 | P52: 0.222 | Q52: 0.833 | R52: 1 | T52: 5 | U52: 80 | W52: 360 | X52: Yes | Y52: 4
A53: Yes | B53: 12327 | C53: 5812 | D53: 58 | E53: 722 | F53: 722511 | G53: Restr W/Cocktails | H53: Tempe, AZ | I53: United States | J53: 515 | K53: 2014-02-14 | L53: 75 | M53: 100 | N53: 160 | O53: 0.146 | P53: 0.194 | Q53: 1.333 | R53: 1 | T53: 0 | U53: 160 | X53: No
A54: Yes | B54: 3453 | C54: 5812 | D54: 58 | E54: 722 | F54: 722511 | G54: Restr-Family | H54: Florida | I54: United States | J54: 514 | K54: 2014-11-30 | L54: 137 | M54: 219 | N54: 244 | O54: 0.267 | P54: 0.426 | Q54: 1.599 | R54: 0.67 | S54: 3 Yrs @ 6% | T54: 6 | U54: 33 | X54: No | Y54: 5
A55: Yes | B55: 10668 | C55: 5812 | D55: 58 | E55: 722 | F55: 722515 | G55: Tea House | H55: San Francisco, CA | I55: United States | J55: 477 | K55: 2014-06-13 | L55: 80 | M55: 97 | N55: 132 | O55: 0.168 | P55: 0.203 | Q55: 1.213 | R55: 0.8 | S55: 3 Yrs@ 5% | T55: 28 | V55: 0.25 | X55: No
A56: Yes | B56: 10748 | C56: 5812 | D56: 58 | E56: 722 | F56: 722515 | G56: Tea House | H56: San Jose, CA | I56: United States | J56: 477 | K56: 2014-06-13 | L56: 80 | M56: 125 | N56: 160 | O56: 0.168 | P56: 0.262 | Q56: 1.563 | T56: 0 | X56: No
A57: Yes | B57: 5547 | C57: 5812 | D57: 58 | E57: 722 | F57: 722513 | G57: Fast Food-Yogurt | H57: Florida | I57: United States | J57: 475 | K57: 2014-08-28 | L57: 135 | M57: 413 | N57: 425 | O57: 0.284 | P57: 0.869 | Q57: 3.059 | T57: 0 | U57: 125 | X57: No | Y57: 18
A58: Yes | B58: 3446 | C58: 5812 | D58: 58 | E58: 722 | F58: 722513 | G58: Restr-Breakfast/Lunch | H58: Florida | I58: United States | J58: 470 | K58: 2014-04-30 | L58: 95 | M58: 139 | N58: 149 | O58: 0.202 | P58: 0.296 | Q58: 1.463 | R58: 1 | T58: 10 | U58: 60 | X58: No | Y58: 5
A59: Yes | B59: 12425 | C59: 5812 | D59: 58 | E59: 722 | F59: 722513 | G59: Deli W/Starbucks | H59: Phoenix, AZ | I59: United States | J59: 468 | K59: 2014-03-28 | L59: 132 | M59: 260 | N59: 275 | O59: 0.282 | P59: 0.556 | Q59: 1.97 | R59: 0.81 | T59: 0 | U59: 60 | X59: No
A60: Yes | B60: 9291 | C60: 5812 | D60: 58 | E60: 722 | F60: 722511 | G60: Restr-Family | H60: Ohio | I60: United States | J60: 450 | K60: 2014-09-29 | L60: 62 | M60: 112 | N60: 104 | O60: 0.138 | P60: 0.249 | Q60: 1.806 | R60: 0.1 | S60: 7 Yrs @ 6% | T60: 5 | U60: 30 | W60: 138 | X60: No | Y60: 7 FT/10 PT
A61: Yes | B61: 42 | C61: 5812 | D61: 58 | E61: 722 | F61: 722515 | G61: Coffee House | H61: Aptos, CA | I61: United States | J61: 438 | K61: 2014-07-13 | L61: 62 | M61: 150 | N61: 200 | O61: 0.142 | P61: 0.342 | Q61: 2.419 | T61: 0 | W61: 75 | X61: No | Y61: 1
A62: Yes | B62: 2654 | C62: 5812 | D62: 58 | E62: 722 | F62: 722511 | G62: Restr-Barbeque | H62: Florida | I62: United States | J62: 423 | K62: 2014-02-24 | L62: 65 | M62: 120 | N62: 120 | O62: 0.154 | P62: 0.284 | Q62: 1.846 | R62: 0.83 | S62: 1.5 Yrs @ 6% | T62: 0 | U62: 30 | W62: 60 | X62: No | Y62: 4
A63: Yes | B63: 12375 | C63: 5812 | D63: 58 | E63: 722 | F63: 722513 | G63: Restr-Breakfast Only | H63: Scottsdale, AZ | I63: United States | J63: 421 | K63: 2014-03-04 | L63: 37 | M63: 37 | N63: 37 | O63: 0.088 | P63: 0.088 | Q63: 1 | R63: 1 | T63: 3 | U63: 40 | X63: No
A64: Yes | B64: 12381 | C64: 5812 | D64: 58 | E64: 722 | F64: 722511 | G64: Restr-Sushi | H64: Phoenix, AZ | I64: United States | J64: 420 | K64: 2014-07-28 | L64: 137 | M64: 100 | N64: 150 | O64: 0.326 | P64: 0.238 | Q64: 0.73 | R64: 1 | T64: 0 | U64: 45 | X64: No
A65: Yes | B65: 5623 | C65: 5812 | D65: 58 | E65: 722 | F65: 722511 | G65: Restr-Family | H65: Florida | I65: United States | J65: 420 | K65: 2014-06-16 | L65: 82 | M65: 86 | N65: 91 | O65: 0.195 | P65: 0.205 | Q65: 1.049 | R65: 0.55 | S65: 3 Yrs @ 6% | T65: 4 | U65: 15 | W65: 425 | X65: No | Y65: 20
A66: Yes | B66: 8443 | C66: 5812 | D66: 58 | E66: 722 | F66: 722513 | G66: Fast Food-Pizza | H66: Minneapolis, MN | I66: United States | J66: 414 | K66: 2014-05-16 | L66: 78 | M66: 215 | N66: 215 | O66: 0.188 | P66: 0.519 | Q66: 2.756 | R66: 0.9 | S66: 1Yr @ 0% | T66: 5 | U66: 25 | X66: No | Y66: 4 FT/1 PT
A67: Yes | B67: 3441 | C67: 5812 | D67: 58 | E67: 722 | F67: 722515 | G67: Fast Food-Yogurt | H67: Florida | I67: United States | J67: 401 | K67: 2014-07-31 | L67: 120 | M67: 205 | N67: 295 | O67: 0.299 | P67: 0.511 | Q67: 1.708 | R67: 1 | T67: 4 | U67: 135 | X67: No | Y67: 5
A68: Yes | B68: 12382 | C68: 5812 | D68: 58 | E68: 722 | F68: 722511 | G68: Restr-Sushi | H68: Tucson, AZ | I68: United States | J68: 400 | K68: 2014-09-29 | L68: 55 | M68: 150 | N68: 150 | O68: 0.138 | P68: 0.375 | Q68: 2.727 | R68: 0.27 | T68: 5 | U68: 83 | X68: No
A69: Yes | B69: 3182 | C69: 5812 | D69: 58 | E69: 722 | F69: 722515 | G69: Self Serv-Yogurt | H69: Florida | I69: United States | J69: 395 | K69: 2014-04-01 | L69: 90 | M69: 215 | N69: 295 | O69: 0.228 | P69: 0.544 | Q69: 2.389 | T69: 2 | W69: 293 | X69: No | Y69: 5
A70: Yes | B70: 12373 | C70: 5812 | D70: 58 | E70: 722 | F70: 722513 | G70: Breakfast/Lunch | H70: Phoenix, AZ | I70: United States | J70: 394 | K70: 2014-01-31 | L70: 120 | M70: 220 | N70: 220 | O70: 0.305 | P70: 0.558 | Q70: 1.833 | R70: 0.73 | T70: 0 | U70: 75 | X70: No
A71: Yes | B71: 12365 | C71: 5812 | D71: 58 | E71: 722 | F71: 722511 | G71: Restr-Family | H71: Scottsdale, AZ | I71: United States | J71: 384 | K71: 2014-10-02 | M71: 155 | N71: 195 | P71: 0.404 | R71: 1 | T71: 0 | X71: No
A72: Yes | B72: 9372 | C72: 5812 | D72: 58 | E72: 722 | F72: 722511 | G72: Restr-Japanese | H72: Orange County, CA | I72: United States | J72: 384 | K72: 2014-08-27 | L72: 36 | M72: 99 | N72: 99 | O72: 0.094 | P72: 0.258 | Q72: 2.75 | R72: 0.5 | S72: 2 Yrs | T72: 5 | X72: No | Y72: 7 FT/6 PT
A73: Yes | B73: 1135 | C73: 5812 | D73: 58 | E73: 722 | F73: 722511 | G73: Fast Food-Sushi | H73: Costa Mesa, CA | I73: United States | J73: 380 | K73: 2014-03-26 | L73: 45 | M73: 195 | N73: 195 | O73: 0.118 | P73: 0.513 | Q73: 4.333 | R73: 1 | T73: 0 | V73: 0.12 | W73: 32 | X73: No | Y73: 2
A74: Yes | B74: 5965 | C74: 5812 | D74: 58 | E74: 722 | F74: 722513 | G74: Fast Food-Smoothies | H74: Florida | I74: United States | J74: 375 | K74: 2014-11-10 | L74: 28 | M74: 125 | N74: 148 | O74: 0.075 | P74: 0.333 | Q74: 4.464 | R74: 0.62 | S74: 3 Yrs @ 0% | T74: 2 | X74: No | Y74: 40
A75: Yes | B75: 3451 | C75: 5812 | D75: 58 | E75: 722 | F75: 722511 | G75: Restr-Seafood | H75: Florida | I75: United States | J75: 360 | K75: 2014-01-17 | L75: 90 | M75: 73 | N75: 86 | O75: 0.25 | P75: 0.203 | Q75: 0.811 | R75: 0.8 | S75: 2 Yrs @ 4% | T75: 2 | U75: 42 | X75: No | Y75: 5
A76: Yes | B76: 8037 | C76: 5812 | D76: 58 | E76: 722 | F76: 722511 | G76: Restr-Mexican | H76: Los Angeles, CA | I76: United States | J76: 360 | K76: 2014-03-11 | L76: 90 | M76: 87 | N76: 92 | O76: 0.25 | P76: 0.242 | Q76: 0.967 | R76: 0.39 | T76: 3 | W76: 211 | X76: No | Y76: 3 FT/10 PT
A77: Yes | B77: 7867 | C77: 5812 | D77: 58 | E77: 722 | F77: 722511 | G77: Restr-Mexican | H77: Los Angeles, CA | I77: United States | J77: 360 | K77: 2014-03-11 | L77: 90 | M77: 35 | N77: 95 | O77: 0.25 | P77: 0.097 | Q77: 0.389 | R77: 1 | T77: 4 | X77: No | Y77: 3 Ft/ 2 PT
A78: Yes | B78: 10652 | C78: 5812 | D78: 58 | E78: 722 | F78: 722513 | G78: Bakery Restaurant | H78: San Francisco, CA | I78: United States | J78: 350 | K78: 2014-07-31 | L78: 31 | M78: 70 | N78: 130 | O78: 0.089 | P78: 0.2 | Q78: 2.258 | T78: 0 | V78: 0.13 | X78: No
A79: Yes | B79: 7913 | C79: 5812 | D79: 58 | E79: 722 | F79: 722511 | G79: Restr-Japanese | H79: Los Angeles, CA | I79: United States | J79: 350 | K79: 2014-08-12 | L79: 20 | M79: 50 | N79: 50 | O79: 0.057 | P79: 0.143 | Q79: 2.5 | R79: 1 | T79: 0 | W79: 125 | X79: No | Y79: 3 FT/1 PT
A80: Yes | B80: 11672 | C80: 5812 | D80: 58 | E80: 722 | F80: 722515 | G80: Fast Food-Yogurt | H80: Texas | I80: United States | J80: 348 | K80: 2014-12-19 | L80: 75 | M80: 137 | N80: 170 | O80: 0.216 | P80: 0.394 | Q80: 1.827 | T80: 0 | X80: No
A81: Yes | B81: 2652 | C81: 5812 | D81: 58 | E81: 722 | F81: 722513 | G81: Deli-Submarines | H81: Florida | I81: United States | J81: 345 | K81: 2014-08-31 | L81: 48 | M81: 64 | N81: 89 | O81: 0.139 | P81: 0.186 | Q81: 1.333 | R81: 0.55 | S81: 2 Yrs @ 4% | T81: 1 | U81: 30 | W81: 57 | X81: No | Y81: 4
A82: Yes | B82: 9399 | C82: 5812 | D82: 58 | E82: 722 | F82: 722515 | G82: Fast Food-Ice Cream | H82: Orange County, CA | I82: United States | J82: 317 | K82: 2014-07-09 | L82: 65 | M82: 124 | N82: 124 | O82: 0.205 | P82: 0.391 | Q82: 1.908 | R82: 1 | T82: 4 | U82: 20 | V82: 0.14 | X82: No | Y82: 8 FT/ 5 PT
A83: Yes | B83: 7576 | C83: 5812 | D83: 58 | E83: 722 | F83: 722511 | G83: Restr-Steakhouse | H83: Iowa | I83: United States | J83: 316 | K83: 2014-10-22 | L83: 33 | M83: 71 | N83: 233 | O83: 0.104 | P83: 0.225 | Q83: 2.152 | R83: 1 | T83: 9 | U83: 33 | W83: 178 | X83: No | Y83: 2 FT/3 PT
A84: Yes | B84: 11723 | C84: 5812 | D84: 58 | E84: 722 | F84: 722511 | G84: Restr-Family | H84: Texas | I84: United States | J84: 315 | K84: 2014-03-31 | L84: 18 | M84: 70 | N84: 99 | O84: 0.057 | P84: 0.222 | Q84: 3.889 | R84: 1 | T84: 1 | U84: 70 | V84: 13 | X84: No
A85: Yes | B85: 2964 | C85: 5812 | D85: 58 | E85: 722 | F85: 722513 | G85: Fast Food-Pizza | H85: Florida | I85: United States | J85: 312 | K85: 2014-06-17 | L85: 68 | M85: 79 | N85: 85 | O85: 0.218 | P85: 0.253 | Q85: 1.162 | R85: 1 | T85: 1 | U85: 35 | X85: No | Y85: 4
A86: Yes | B86: 12363 | C86: 5812 | D86: 58 | E86: 722 | F86: 722511 | G86: Restr-Family | H86: Prescott, AZ | I86: United States | J86: 304 | K86: 2014-09-12 | L86: 44 | M86: 90 | N86: 240 | O86: 0.145 | P86: 0.296 | Q86: 2.045 | R86: 1 | T86: 0 | X86: No
A87: Yes | B87: 1866 | C87: 5812 | D87: 58 | E87: 722 | F87: 722511 | G87: Bagel Restaurant | H87: Florida | I87: United States | J87: 300 | K87: 2014-12-12 | L87: 60 | M87: 83 | N87: 90 | O87: 0.2 | P87: 0.277 | Q87: 1.383 | R87: 1 | T87: 0 | U87: 25 | W87: 30 | X87: No | Y87: 3
A88: Yes | B88: 9506 | C88: 5812 | D88: 58 | E88: 722 | F88: 722511 | G88: Restr W/Cocktails | H88: Oregon | I88: United States | J88: 295 | K88: 2014-09-02 | L88: 55 | M88: 110 | N88: 107 | O88: 0.186 | P88: 0.373 | Q88: 2 | T88: 8 | X88: No | Y88: 9 FT/`14 PT
A89: Yes | B89: 10327 | C89: 5812 | D89: 58 | E89: 722 | F89: 722511 | G89: Restr-Chinese | H89: Riverside, CA | I89: United States | J89: 288 | K89: 2014-09-19 | L89: 24 | M89: 60 | N89: 125 | O89: 0.083 | P89: 0.208 | Q89: 2.5 | R89: 1 | T89: 0 | X89: No
A90: Yes | B90: 12408 | C90: 5812 | D90: 58 | E90: 722 | F90: 722513 | G90: Fast Food-Pizza | H90: Gilbert, AZ | I90: United States | J90: 288 | K90: 2014-06-09 | L90: 55 | M90: 55 | N90: 70 | O90: 0.191 | P90: 0.191 | Q90: 1 | R90: 1 | T90: 3 | U90: 30 | X90: No
A91: Yes | B91: 10326 | C91: 5812 | D91: 58 | E91: 722 | F91: 722511 | G91: Fast Food-Chinese | H91: Riverside, CA | I91: United States | J91: 288 | K91: 2014-04-09 | L91: 24 | M91: 55 | N91: 120 | O91: 0.083 | P91: 0.191 | Q91: 2.292 | R91: 1 | T91: 5 | V91: 0.1 | X91: No
A92: Yes | B92: 12424 | C92: 5812 | D92: 58 | E92: 722 | F92: 722513 | G92: Deli W/Starbucks | H92: Phoenix, AZ | I92: United States | J92: 288 | K92: 2014-02-13 | L92: 60 | M92: 115 | N92: 170 | O92: 0.208 | P92: 0.399 | Q92: 1.917 | R92: 1 | T92: 0 | U92: 25 | X92: No
A93: Yes | B93: 12380 | C93: 5812 | D93: 58 | E93: 722 | F93: 722511 | G93: Restr-Sushi | H93: N. Dallas, TX | I93: United States | J93: 276 | K93: 2014-12-15 | L93: 36 | M93: 46 | N93: 46 | O93: 0.13 | P93: 0.167 | Q93: 1.278 | R93: 1 | T93: 3 | U93: 50 | V93: 0.26 | W93: 120 | X93: No | Y93: 4
A94: Yes | B94: 8715 | C94: 5812 | D94: 58 | E94: 722 | F94: 722513 | G94: Fast Food-Pizza | H94: Missouri | I94: United States | J94: 264 | K94: 2014-06-02 | L94: 60 | M94: 126 | N94: 135 | O94: 0.227 | P94: 0.477 | Q94: 2.1 | R94: 0.3 | S94: 6 Mos @ 6% | T94: 4 | U94: 30 | V94: 0.087 | X94: No | Y94: 4 FT/6 PT
A95: Yes | B95: 8743 | C95: 5812 | D95: 58 | E95: 722 | F95: 722515 | G95: Fast Food-Ice Cream | H95: Missouri | I95: United States | J95: 258 | K95: 2014-05-30 | L95: -10 | M95: 45 | N95: 150 | O95: -0.039 | P95: 0.174 | R95: 1 | T95: 5 | W95: 297 | X95: No | Y95: 4 PT
A96: Yes | B96: 6312 | C96: 5812 | D96: 58 | E96: 722 | F96: 722511 | G96: Restr-Family | H96: Florida | I96: United States | J96: 256 | K96: 2014-06-27 | L96: 44 | M96: 84 | N96: 99 | O96: 0.172 | P96: 0.328 | Q96: 1.909 | R96: 1 | T96: 2 | U96: 50 | X96: No | Y96: 1 FT/1 PT
A97: Yes | B97: 12421 | C97: 5812 | D97: 58 | E97: 722 | F97: 722513 | G97: Deli-Sandwiches | H97: Fountain Hills, AZ | I97: United States | J97: 253 | K97: 2014-07-07 | L97: 20 | M97: 176 | N97: 180 | O97: 0.079 | P97: 0.696 | Q97: 8.8 | R97: 0.43 | T97: 0 | X97: No
A98: Yes | B98: 12415 | C98: 5812 | D98: 58 | E98: 722 | F98: 722515 | G98: Franchise-Yogurt Store | H98: Phoenix, AZ | I98: United States | J98: 250 | K98: 2014-03-10 | L98: 40 | M98: 125 | N98: 145 | O98: 0.16 | P98: 0.5 | Q98: 3.125 | R98: 1 | T98: 3 | U98: 125 | X98: No
A99: Yes | B99: 2959 | C99: 5812 | D99: 58 | E99: 722 | F99: 722513 | G99: Bagel Restaurant | H99: Florida | I99: United States | J99: 247 | K99: 2014-05-02 | L99: 73 | M99: 115 | N99: 115 | O99: 0.296 | P99: 0.466 | Q99: 1.575 | R99: 1 | T99: 1 | U99: 50 | X99: No | Y99: 4
A100: Yes | B100: 12430 | C100: 5812 | D100: 58 | E100: 722 | F100: 722515 | G100: Coffee House | H100: Phoenix, AZ | I100: United States | J100: 245 | K100: 2014-01-14 | L100: 62 | M100: 120 | N100: 125 | O100: 0.253 | P100: 0.49 | Q100: 1.935 | R100: 0.8 | T100: 2 | U100: 36 | X100: No
A101: Yes | B101: 8746 | C101: 5812 | D101: 58 | E101: 722 | F101: 722515 | G101: Fast Food-Ice Cream | H101: Missouri | I101: United States | J101: 245 | K101: 2014-05-30 | L101: 22 | M101: 45 | N101: 150 | O101: 0.09 | P101: 0.184 | Q101: 2.045 | T101: 5 | X101: No | Y101: 4 PT
A102: Yes | B102: 12409 | C102: 5812 | D102: 58 | E102: 722 | F102: 722513 | G102: Fast Food-Pizza | H102: Prescott, AZ | I102: United States | J102: 241 | K102: 2014-11-04 | L102: 40 | M102: 75 | N102: 95 | O102: 0.166 | P102: 0.311 | Q102: 1.875 | R102: 1 | T102: 0 | X102: No
A103: Yes | B103: 1152 | C103: 5812 | D103: 58 | E103: 722 | F103: 722515 | G103: Fast Food-Ice Cream | H103: Dallas, TX | I103: United States | J103: 240 | K103: 2014-06-03 | L103: 105 | M103: 185 | N103: 215 | O103: 0.438 | P103: 0.771 | Q103: 1.762 | R103: 1 | T103: 3 | U103: 50 | V103: 0.25 | W103: 45 | X103: No | Y103: 2
A104: Yes | B104: 12376 | C104: 5812 | D104: 58 | E104: 722 | F104: 722513 | G104: Breakfast/Lunch | H104: Sun City West, AZ | I104: United States | J104: 239 | K104: 2014-01-17 | L104: 56 | M104: 50 | N104: 55 | O104: 0.234 | P104: 0.209 | Q104: 0.893 | R104: 0.4 | T104: 0 | U104: 55 | X104: No
A105: Yes | B105: 12414 | C105: 5812 | D105: 58 | E105: 722 | F105: 722515 | G105: Fast Food-Yogurt | H105: Fountain Hills, AZ | I105: United States | J105: 235 | K105: 2014-03-03 | L105: 45 | M105: 93 | N105: 115 | O105: 0.191 | P105: 0.396 | Q105: 2.067 | R105: 1 | T105: 2 | U105: 115 | X105: No
A106: Yes | B106: 7979 | C106: 5812 | D106: 58 | E106: 722 | F106: 722513 | G106: Fast Food-Chicken | H106: Los Angeles, CA | I106: United States | J106: 230 | K106: 2014-11-13 | L106: 25 | M106: 55 | N106: 59 | O106: 0.109 | P106: 0.239 | Q106: 2.2 | R106: 1 | T106: 0 | X106: No | Y106: 3 FT/1 PT
A107: Yes | B107: 12364 | C107: 5812 | D107: 58 | E107: 722 | F107: 722511 | G107: Restr-Diner | H107: San Diego, CA | I107: United States | J107: 220 | K107: 2014-10-06 | L107: 40 | M107: 67 | N107: 77 | O107: 0.182 | P107: 0.305 | Q107: 1.675 | R107: 0.5 | S107: 4 Yrs @ 6% | T107: 3 | U107: 30 | V107: 0.09 | W107: 210 | X107: No | Y107: 5
A108: Yes | B108: 12370 | C108: 5812 | D108: 58 | E108: 722 | F108: 722513 | G108: Restr-Breakfast Only | H108: Gilbert, AZ | I108: United States | J108: 220 | K108: 2014-12-22 | L108: 66 | M108: 109 | N108: 109 | O108: 0.3 | P108: 0.495 | Q108: 1.652 | R108: 0.47 | T108: 2 | U108: 40 | X108: No
A109: Yes | B109: 4645 | C109: 5812 | D109: 58 | E109: 722 | F109: 722511 | G109: Bagel Restaurant | H109: Florida | I109: United States | J109: 208 | K109: 2014-02-14 | L109: 1 | M109: 33 | N109: 60 | O109: 0.005 | P109: 0.159 | Q109: 33 | R109: 0.66 | S109: 2 Mos @ 0% | T109: 3 | V109: 0.21 | X109: No | Y109: 9
A110: Yes | B110: 4612 | C110: 5812 | D110: 58 | E110: 722 | F110: 722513 | G110: Fast Food-Ice Cream | H110: Florida | I110: United States | J110: 208 | K110: 2014-11-26 | L110: 40 | M110: 150 | N110: 159 | O110: 0.192 | P110: 0.721 | Q110: 3.75 | R110: 1 | T110: 3 | U110: 40 | W110: 360 | X110: No | Y110: 9
A111: Yes | B111: 729 | C111: 5812 | D111: 58 | E111: 722 | F111: 722511 | G111: Restr-Ethnic Food | H111: CN-Ontario | I111: Canada | J111: 207 | K111: 2014-02-07 | L111: 51 | M111: 65 | N111: 80 | O111: 0.246 | P111: 0.314 | Q111: 1.275 | R111: 1 | T111: 0 | U111: 65 | V111: 0.18 | X111: No | Y111: 1
A112: Yes | B112: 2307 | C112: 5812 | D112: 58 | E112: 722 | F112: 722513 | G112: Deli-Office Building | H112: Florida | I112: United States | J112: 200 | K112: 2014-06-30 | L112: 43 | M112: 65 | N112: 77 | O112: 0.215 | P112: 0.325 | Q112: 1.512 | R112: 0.31 | T112: 0 | U112: 20 | X112: No | Y112: 3
A113: Yes | B113: 12378 | C113: 5812 | D113: 58 | E113: 722 | F113: 722515 | G113: Restr-Coffee Shop | H113: Gold Canyon, AZ | I113: United States | J113: 195 | K113: 2014-09-29 | L113: 55 | M113: 158 | N113: 165 | O113: 0.282 | P113: 0.81 | Q113: 2.873 | R113: 0.32 | T113: 2 | U113: 3 | X113: No
A114: Yes | B114: 8442 | C114: 5812 | D114: 58 | E114: 722 | F114: 722513 | G114: Fast Food-Italian/Pizza | H114: Minneapolis, MN | I114: United States | J114: 190 | K114: 2014-12-01 | L114: 50 | M114: 50 | N114: 50 | O114: 0.263 | P114: 0.263 | Q114: 1 | R114: 1 | T114: 0 | U114: 25 | V114: 0.11 | X114: No | Y114: 4 FT/1 PT
A115: Yes | B115: 6544 | C115: 5812 | D115: 58 | E115: 722 | F115: 722511 | G115: Bagel Restaurant | H115: Florida | I115: United States | J115: 175 | K115: 2014-05-06 | L115: 84 | M115: 80 | N115: 159 | O115: 0.48 | P115: 0.457 | Q115: 0.952 | R115: 1 | T115: 1 | U115: 50 | V115: 0.04 | W115: 147 | X115: No | Y115: 1 FT/3 PT
A116: Yes | B116: 3452 | C116: 5812 | D116: 58 | E116: 722 | F116: 722511 | G116: Restr-Family | H116: Florida | I116: United States | J116: 174 | K116: 2014-06-30 | L116: 48 | M116: 48 | N116: 59 | O116: 0.276 | P116: 0.276 | Q116: 1 | R116: 1 | T116: 1 | U116: 38 | X116: No | Y116: 5
A117: Yes | B117: 4498 | C117: 5812 | D117: 58 | E117: 722 | F117: 722511 | G117: Restr-Family | H117: Florida | I117: United States | J117: 170 | K117: 2014-06-04 | L117: 47 | M117: 35 | N117: 47 | O117: 0.276 | P117: 0.206 | Q117: 0.745 | R117: 0.2 | S117: 4Yrs @ 6% | T117: 3 | U117: 27 | X117: No | Y117: 8
A118: Yes | B118: 9420 | C118: 5812 | D118: 58 | E118: 722 | F118: 722515 | G118: Coffee/Tea House | H118: Orange County, CA | I118: United States | J118: 168 | K118: 2014-05-30 | L118: 18 | M118: 85 | N118: 105 | O118: 0.107 | P118: 0.506 | Q118: 4.722 | R118: 1 | T118: 5 | X118: No | Y118: 8 FT/1 PT
A119: Yes | B119: 12372 | C119: 5812 | D119: 58 | E119: 722 | F119: 722513 | G119: Breakfast/Lunch | H119: Mesa AZ | I119: United States | J119: 158 | K119: 2014-04-14 | L119: 51 | M119: 50 | N119: 66 | O119: 0.323 | P119: 0.316 | Q119: 0.98 | T119: 1 | U119: 16 | X119: No
A120: Yes | B120: 5289 | C120: 5812 | D120: 58 | E120: 722 | F120: 722513 | G120: Fast Food-Ice Cream | H120: Florida | I120: United States | J120: 144 | K120: 2014-01-15 | L120: 28 | M120: 26 | N120: 37 | O120: 0.194 | P120: 0.181 | Q120: 0.929 | R120: 1 | T120: 3 | U120: 16 | V120: 0.17 | X120: No | Y120: 14
A121: Yes | B121: 12394 | C121: 5812 | D121: 58 | E121: 722 | F121: 722513 | G121: Snack Stand | H121: Phoenix, AZ | I121: United States | J121: 140 | K121: 2014-03-03 | L121: 40 | M121: 50 | N121: 55 | O121: 0.286 | P121: 0.357 | Q121: 1.25 | R121: 1 | T121: 1 | U121: 50 | X121: No
A122: Yes | B122: 1898 | C122: 5812 | D122: 58 | E122: 722 | F122: 722511 | G122: Restr-Family | H122: Florida | I122: United States | J122: 132 | K122: 2014-10-31 | L122: 38 | M122: 89 | N122: 89 | O122: 0.288 | P122: 0.674 | Q122: 2.342 | R122: 1 | T122: 1 | U122: 8 | W122: 180 | X122: No | Y122: 3
A123: Yes | B123: 12374 | C123: 5812 | D123: 58 | E123: 722 | F123: 722513 | G123: Breakfast/Lunch | H123: Scottsdale, AZ | I123: United States | J123: 125 | K123: 2014-12-15 | L123: 56 | M123: 57 | N123: 60 | O123: 0.448 | P123: 0.456 | Q123: 1.018 | R123: 0.44 | T123: 0 | U123: 35 | X123: No
A124: Yes | B124: 12013 | C124: 5812 | D124: 58 | E124: 722 | F124: 722515 | G124: Espresso Kiosk | H124: Washington | I124: United States | J124: 125 | K124: 2014-10-31 | L124: 29 | M124: 50 | N124: 50 | O124: 0.232 | P124: 0.4 | Q124: 1.724 | R124: 1 | T124: 2 | U124: 40 | V124: 0.12 | X124: Yes
A125: Yes | B125: 2717 | C125: 5812 | D125: 58 | E125: 722 | F125: 722515 | G125: Fast Food-Yogurt | H125: Florida | I125: United States | J125: 120 | K125: 2014-04-30 | L125: 20 | M125: 48 | N125: 85 | O125: 0.167 | P125: 0.4 | Q125: 2.4 | R125: 1 | T125: 0 | W125: 120 | X125: No | Y125: 4
A126: Yes | B126: 9421 | C126: 5812 | D126: 58 | E126: 722 | F126: 722511 | G126: Deli-Sandwiches | H126: Orange County, CA | I126: United States | J126: 85 | K126: 2014-06-25 | L126: 0 | M126: 65 | N126: 55 | O126: 0 | P126: 0.765 | R126: 1 | T126: 3 | X126: No | Y126: 8 FT/1 PT
A127: Yes | B127: 12395 | C127: 5812 | D127: 58 | E127: 722 | F127: 722513 | G127: Hot Dog Stand | H127: Tempe, AZ | I127: United States | J127: 75 | K127: 2014-03-04 | L127: 45 | M127: 50 | N127: 60 | O127: 0.6 | P127: 0.667 | Q127: 1.111 | R127: 1 | T127: 2 | U127: 25 | X127: No
A128: Yes | B128: 4200 | C128: 5812 | D128: 58 | E128: 722 | F128: 722513 | G128: Fast Food-Ice Cream | H128: Florida | I128: United States | J128: 73 | K128: 2014-10-03 | L128: 28 | M128: 30 | N128: 35 | O128: 0.384 | P128: 0.411 | Q128: 1.071 | R128: 1 | T128: 5 | U128: 21 | X128: No | Y128: 7
A129: Yes | B129: 9513 | C129: =TEXT("5813","0000") -> 5813 | D129: 58 | E129: 722 | F129: 722410 | G129: Adult Entertainment | H129: Oregon | I129: United States | J129: 1566 | K129: 2014-12-22 | L129: 591 | M129: 1025 | N129: 1500 | O129: 0.377 | P129: 0.655 | Q129: 1.734 | R129: 1 | T129: 2 | U129: 385 | W129: 155 | X129: No | Y129: 9 FT/1 PT
A130: Yes | B130: 10198 | C130: 5813 | D130: 58 | E130: 722 | F130: 722410 | G130: Cocktail Lounge | H130: Redwood City, CA | I130: United States | J130: 1134 | K130: 2014-10-15 | L130: 231 | M130: 650 | N130: 650 | O130: 0.204 | P130: 0.573 | Q130: 2.814 | R130: 0.3 | T130: 0 | W130: 560 | X130: No
A131: Yes | B131: 3873 | C131: 5813 | D131: 58 | E131: 722 | F131: 722410 | G131: Cocktail Lounge | H131: Florida | I131: United States | J131: 996 | K131: 2014-02-28 | L131: 61 | M131: 435 | N131: 475 | O131: 0.061 | P131: 0.437 | Q131: 7.131 | R131: 1 | T131: 0 | U131: 55 | W131: 1992 | X131: No | Y131: 6
A132: Yes | B132: 6604 | C132: 5813 | D132: 58 | E132: 722 | F132: 722410 | G132: Brew Pub W/Food | H132: Florida | I132: United States | J132: 645 | K132: 2014-12-19 | L132: 128 | M132: 197 | N132: 272 | O132: 0.198 | P132: 0.305 | Q132: 1.539 | R132: 0.4 | T132: 3 | U132: 50 | X132: No | Y132: 1 Ft/3 PT
A133: Yes | B133: 8019 | C133: 5813 | D133: 58 | E133: 722 | F133: 722410 | G133: Cocktails W/Food | H133: Los Angeles, CA | I133: United States | J133: 576 | K133: 2014-03-12 | L133: 144 | M133: 275 | N133: 295 | O133: 0.25 | P133: 0.477 | Q133: 1.91 | R133: 1 | T133: 0 | V133: 0.09 | X133: No | Y133: 3 FT/1 PT
A134: Yes | B134: 12445 | C134: 5813 | D134: 58 | E134: 722 | F134: 722410 | G134: Sports Bar | H134: Tucson AZ | I134: United States | J134: 500 | K134: 2014-10-15 | L134: 50 | M134: 79 | N134: 89 | O134: 0.1 | P134: 0.158 | Q134: 1.58 | R134: 0.7 | T134: 7 | U134: 50 | X134: No
A135: Yes | B135: 10719 | C135: 5813 | D135: 58 | E135: 722 | F135: 722410 | G135: Cocktail Lounge | H135: San Jose, CA | I135: United States | J135: 235 | K135: 2014-10-15 | M135: 50 | N135: 129 | P135: 0.213 | R135: 1 | T135: 0 | X135: No
A136: Yes | B136: 12444 | C136: 5813 | D136: 58 | E136: 722 | F136: 722410 | G136: Cocktail Lounge | H136: Phoenix, AZ | I136: United States | J136: 200 | K136: 2014-04-09 | M136: 150 | N136: 175 | P136: 0.75 | R136: 0.1 | T136: 0 | U136: 110 | X136: No

Sheet Trans Selected
A1: TransactionID | B1: SICCode | C1: SICCodeGeneral | D1: NAICSGeneral | E1: NAICSCode | F1: BusinessDescription | G1: Area | H1: Country | I1: AnnualGross | J1: SaleDate | K1: SDE | L1: SalePrice | M1: AskPrice | N1: SDEtoAnnualGross | O1: SalePriceToAnnualGross | P1: SalePriceToSDE | Q1: PercentDown | R1: Terms | S1: InventoryAmount | T1: FFE | U1: RentToAnnualGross | V1: DaysOnMarket | W1: FranchiseRoyalty | X1: NumberOfEmployees
A2: 11351 | B2: =TEXT("5812","0000") -> 5812 | C2: =TEXT("58","00") -> 58 | D2: =TEXT("722","000") -> 722 | E2: 722513 | F2: Fast Food-Burgers | G2: Southeast | H2: United States | I2: 2550 | J2: 2014-03-31 | K2: 315 | L2: 1300 | M2: 1300 | N2: 0.124 | O2: 0.51 | P2: 4.127 | S2: 13 | W2: No
A3: 10989 | B3: 5812 | C3: 58 | D3: 722 | E3: 722513 | F3: Fast Food-Burgers | G3: South Atlantic | H3: United States | I3: 2500 | J3: 2014-02-28 | K3: 505 | L3: 2200 | M3: 2400 | N3: 0.202 | O3: 0.88 | P3: 4.356 | S3: 15 | W3: No
A4: 4033 | B4: 5812 | C4: 58 | D4: 722 | E4: 722511 | F4: Restr-Family | G4: Florida | H4: United States | I4: 2235 | J4: 2014-04-14 | K4: 342 | L4: 650 | M4: 975 | N4: 0.153 | O4: 0.291 | P4: 1.901 | Q4: 1 | S4: 0 | T4: 50 | V4: 120 | W4: No | X4: 7
A5: 5394 | B5: 5812 | C5: 58 | D5: 722 | E5: 722511 | F5: Restr-Ethnic | G5: Florida | H5: United States | I5: 2190 | J5: 2014-05-05 | K5: 413 | L5: 492 | M5: 642 | N5: 0.189 | O5: 0.225 | P5: 1.191 | Q5: 0.2 | R5: 1 Yr @ 4% | S5: 8 | T5: 89 | V5: 65 | W5: Y-5% | X5: 15
A6: 11659 | B6: 5812 | C6: 58 | D6: 722 | E6: 722511 | F6: Restr W/Cocktails | G6: Texas | H6: United States | I6: 1702 | J6: 2014-07-14 | K6: 143 | L6: 388 | M6: 783 | N6: 0.084 | O6: 0.228 | P6: 2.713 | Q6: 0.3 | S6: 0 | T6: 15 | W6: No
A7: 1059 | B7: 5812 | C7: 58 | D7: 722 | E7: 722513 | F7: Bakery-Restaurant | G7: Colorado | H7: United States | I7: 1588 | J7: 2014-02-28 | K7: 247 | L7: 500 | M7: 500 | N7: 0.156 | O7: 0.315 | P7: 2.024 | Q7: 0.48 | S7: 25 | T7: 100 | V7: 150 | W7: No | X7: 2
A8: 10765 | B8: 5812 | C8: 58 | D8: 722 | E8: 722511 | F8: Restr-Family | G8: San Jose, CA | H8: United States | I8: 1543 | J8: 2014-04-28 | K8: 180 | L8: 250 | M8: 395 | N8: 0.117 | O8: 0.162 | P8: 1.389 | S8: 0 | W8: No
A9: 7403 | B9: 5812 | C9: 58 | D9: 722 | E9: 722511 | F9: Restr W/Cocktails | G9: Houston, TX | H9: United States | I9: 1527 | J9: 2014-12-05 | K9: 356 | L9: 700 | M9: 750 | N9: 0.233 | O9: 0.458 | P9: 1.966 | S9: 0 | T9: 359 | W9: No | X9: 2 FT/10 PT
A10: 8932 | B10: 5812 | C10: 58 | D10: 722 | E10: 722511 | F10: Restr-Family | G10: New England | H10: United States | I10: 1411 | J10: 2014-05-19 | K10: 258 | L10: 325 | M10: 775 | N10: 0.183 | O10: 0.23 | P10: 1.26 | Q10: 0.16 | R10: 20 Yrs @ 2% | S10: 11 | T10: 259 | V10: 36 | W10: No | X10: 5 FT/3 PT
A11: 3538 | B11: 5812 | C11: 58 | D11: 722 | E11: 722511 | F11: Restr-Italian | G11: Florida | H11: United States | I11: 1381 | J11: 2014-06-30 | K11: 219 | L11: 400 | M11: 450 | N11: 0.159 | O11: 0.29 | P11: 1.826 | Q11: 0.45 | R11: 5 Yrs @ 5% | S11: 1 | T11: 80 | W11: No | X11: 5
A12: 11837 | B12: 5812 | C12: 58 | D12: 722 | E12: 722511 | F12: Mexican Buffett | G12: Tyler, TX | H12: United States | I12: 1363 | J12: 2014-03-28 | K12: 229 | L12: 229 | M12: 239 | N12: 0.168 | O12: 0.168 | P12: 1 | Q12: 1 | S12: 10 | T12: 130 | U12: 0.009 | W12: No
A13: 6513 | B13: 5812 | C13: 58 | D13: 722 | E13: 722511 | F13: Bagel Restaurant | G13: Florida | H13: United States | I13: 1200 | J13: 2014-09-08 | K13: 315 | L13: 575 | M13: 650 | N13: 0.263 | O13: 0.479 | P13: 1.825 | Q13: 1 | S13: 0 | T13: 125 | W13: No | X13: 1 FT/2 PT
A14: 10692 | B14: 5812 | C14: 58 | D14: 722 | E14: 722513 | F14: Fast Food Cafe | G14: San Francisco, CA | H14: United States | I14: 1134 | J14: 2014-10-15 | K14: 231 | L14: 650 | M14: 650 | N14: 0.204 | O14: 0.573 | P14: 2.814 | Q14: 0.3 | S14: 0 | U14: 0.05 | W14: No
A15: 4137 | B15: 5812 | C15: 58 | D15: 722 | E15: 722511 | F15: Restr-Family | G15: Florida | H15: United States | I15: 1100 | J15: 2014-07-07 | K15: 150 | L15: 345 | M15: 384 | N15: 0.136 | O15: 0.314 | P15: 2.3 | Q15: 1 | S15: 15 | T15: 50 | V15: 292 | W15: No | X15: 7
A16: 11035 | B16: 5812 | C16: 58 | D16: 722 | E16: 722511 | F16: Restr-Family | G16: South Dakota | H16: United States | I16: 1100 | J16: 2014-05-21 | K16: 148 | L16: 532 | M16: 542 | N16: 0.135 | O16: 0.484 | P16: 3.595 | R16: 5.5 Yrs @ 5.5% | S16: 8 | W16: No
A17: 9321 | B17: 5812 | C17: 58 | D17: 722 | E17: 722511 | F17: Restr-Family | G17: Oklahoma | H17: United States | I17: 1078 | J17: 2014-08-04 | K17: 118 | L17: 341 | M17: 391 | N17: 0.109 | O17: 0.316 | P17: 2.89 | Q17: 1 | S17: 9 | T17: 164 | W17: No | X17: 7 FT/2 PT
A18: 3777 | B18: 5812 | C18: 58 | D18: 722 | E18: 722511 | F18: Restr W/Cocktails | G18: Florida | H18: United States | I18: 1050 | J18: 2014-09-10 | K18: 97 | L18: 100 | M18: 115 | N18: 0.092 | O18: 0.095 | P18: 1.031 | Q18: 0.5 | R18: 4 Yrs @ 6% | S18: 10 | T18: 50 | V18: 192 | W18: No | X18: 6
A19: 6688 | B19: 5812 | C19: 58 | D19: 722 | E19: 722511 | F19: Restr-Italian/Pizza | G19: Florida | H19: United States | I19: 1036 | J19: 2014-08-25 | K19: 174 | L19: 115 | M19: 190 | N19: 0.168 | O19: 0.111 | P19: 0.661 | Q19: 1 | S19: 35 | W19: No | X19: 1 FT/5 PT
A20: 7525 | B20: 5812 | C20: 58 | D20: 722 | E20: 722511 | F20: Restr-Family | G20: Incline Village, NV | H20: United States | I20: 991 | J20: 2014-09-02 | K20: 117 | L20: 200 | M20: 259 | N20: 0.118 | O20: 0.202 | P20: 1.709 | Q20: 0.26 | S20: 0 | W20: No | X20: 2 FT/2 PT
A21: 9210 | B21: 5812 | C21: 58 | D21: 722 | E21: 722511 | F21: Restr-Family | G21: Northern Nevada | H21: United States | I21: 991 | J21: 2014-09-02 | K21: 117 | L21: 200 | M21: 255 | N21: 0.118 | O21: 0.202 | P21: 1.709 | Q21: 0.26 | R21: 5 Yrs @ 6% | S21: 4 | U21: 0.042 | V21: 100 | W21: No | X21: 6 FT/6 PT
A22: 7580 | B22: 5812 | C22: 58 | D22: 722 | E22: 722511 | F22: Restr-Family | G22: Iowa | H22: United States | I22: 960 | J22: 2014-02-28 | K22: 203 | L22: 408 | M22: 417 | N22: 0.211 | O22: 0.425 | P22: 2.01 | S22: 0 | T22: 175 | V22: 231 | W22: No | X22: 2 FT/3 PT
A23: 12361 | B23: 5812 | C23: 58 | D23: 722 | E23: 722511 | F23: Restr-Family | G23: Peoria, AZ | H23: United States | I23: 932 | J23: 2014-12-03 | L23: 295 | M23: 295 | O23: 0.317 | Q23: 1 | S23: 0 | W23: No
A24: 5389 | B24: 5812 | C24: 58 | D24: 722 | E24: 722511 | F24: Restr-Family | G24: Florida | H24: United States | I24: 858 | J24: 2014-01-09 | K24: 42 | L24: 92 | M24: 85 | N24: 0.049 | O24: 0.107 | P24: 2.19 | Q24: 0.6 | S24: 8 | W24: No | X24: 15
A25: 4034 | B25: 5812 | C25: 58 | D25: 722 | E25: 722511 | F25: Restr-Barbeque | G25: Florida | H25: United States | I25: 850 | J25: 2014-11-30 | K25: 80 | L25: 100 | M25: 175 | N25: 0.094 | O25: 0.118 | P25: 1.25 | Q25: 0.75 | R25: 2 Yrs @ 0% | S25: 0 | V25: 120 | W25: No | X25: 7
A26: 3983 | B26: 5812 | C26: 58 | D26: 722 | E26: 722513 | F26: Fast Food Franchise | G26: Florida | H26: United States | I26: 840 | J26: 2014-09-30 | K26: 85 | L26: 120 | M26: 145 | N26: 0.101 | O26: 0.143 | P26: 1.412 | Q26: 0.92 | R26: 1 Yr | S26: 0 | W26: No | X26: 6
A27: 3996 | B27: 5812 | C27: 58 | D27: 722 | E27: 722511 | F27: Restr-Italian/Pizza | G27: Florida | H27: United States | I27: 814 | J27: 2014-08-04 | K27: 58 | L27: 130 | M27: 145 | N27: 0.071 | O27: 0.16 | P27: 2.241 | Q27: 1 | S27: 5 | T27: 35 | W27: Y-12.5% | X27: 6
A28: 10694 | B28: 5812 | C28: 58 | D28: 722 | E28: 722515 | F28: Franchise-Soft Serve | G28: San Francisco, CA | H28: United States | I28: 790 | J28: 2014-08-01 | K28: 114 | L28: 185 | M28: 194 | N28: 0.144 | O28: 0.234 | P28: 1.623 | S28: 5 | U28: 0.038 | W28: No
A29: 8230 | B29: 5812 | C29: 58 | D29: 722 | E29: 722513 | F29: Fast Food-Yogurt | G29: Massachusetts | H29: United States | I29: 775 | J29: 2014-06-13 | K29: 193 | L29: 550 | M29: 550 | N29: 0.249 | O29: 0.71 | P29: 2.85 | Q29: 1 | S29: 0 | T29: 125 | W29: No | X29: 3 FT/4 PT
A30: 11721 | B30: 5812 | C30: 58 | D30: 722 | E30: 722511 | F30: Restr-Family | G30: Texas | H30: United States | I30: 752 | J30: 2014-04-30 | K30: 40 | L30: 355 | M30: 432 | N30: 0.053 | O30: 0.472 | P30: 8.875 | S30: 18 | T30: 59 | U30: 0.08 | W30: No
A31: 3660 | B31: 5812 | C31: 58 | D31: 722 | E31: 722511 | F31: Restr-Family | G31: Florida | H31: United States | I31: 735 | J31: 2014-01-31 | K31: 251 | L31: 350 | M31: 450 | N31: 0.341 | O31: 0.476 | P31: 1.394 | Q31: 0.46 | R31: 3 Yrs @ 5% | S31: 0 | T31: 50 | V31: 240 | W31: No | X31: 6
A32: 7944 | B32: 5812 | C32: 58 | D32: 722 | E32: 722511 | F32: Restr-Japanese | G32: Los Angeles, CA | H32: United States | I32: 720 | J32: 2014-10-31 | K32: 12 | L32: 149 | M32: 149 | N32: 0.017 | O32: 0.207 | P32: 12.417 | Q32: 1 | S32: 0 | V32: 258 | W32: No | X32: 3 FT/1 PT
A33: 12426 | B33: 5812 | C33: 58 | D33: 722 | E33: 722513 | F33: Deli W/Starbucks | G33: Tempe, AZ | H33: United States | I33: 720 | J33: 2014-03-28 | K33: 204 | L33: 400 | M33: 475 | N33: 0.283 | O33: 0.556 | P33: 1.961 | Q33: 1 | S33: 0 | T33: 35 | W33: No
A34: 3788 | B34: 5812 | C34: 58 | D34: 722 | E34: 722511 | F34: Restr-Steakhouse | G34: Florida | H34: United States | I34: 720 | J34: 2014-02-28 | K34: 240 | L34: 182 | M34: 195 | N34: 0.333 | O34: 0.253 | P34: 0.758 | Q34: 0.48 | R34: 2 Mos @ 0% | S34: 5 | V34: 210 | W34: No | X34: 6
A35: 1061 | B35: 5812 | C35: 58 | D35: 722 | E35: 722513 | F35: Restr-Breakfast Only | G35: Colorado | H35: United States | I35: 701 | J35: 2014-03-31 | K35: 86 | L35: 222 | M35: 222 | N35: 0.123 | O35: 0.317 | P35: 2.581 | Q35: 1 | S35: 3 | T35: 35 | V35: 150 | W35: No | X35: 2
A36: 12332 | B36: 5812 | C36: 58 | D36: 722 | E36: 722511 | F36: Restr-Barbeque | G36: Casa Grande, AZ | H36: United States | I36: 700 | J36: 2014-12-16 | K36: 59 | L36: 30 | M36: 60 | N36: 0.084 | O36: 0.043 | P36: 0.508 | Q36: 1 | S36: 0 | T36: 10 | W36: No
A37: 5313 | B37: 5812 | C37: 58 | D37: 722 | E37: 722511 | F37: Restr-Family | G37: Florida | H37: United States | I37: 700 | J37: 2014-04-24 | K37: 75 | L37: 95 | M37: 140 | N37: 0.107 | O37: 0.136 | P37: 1.267 | Q37: 1 | S37: 0 | T37: 50 | U37: 0.07 | V37: 85 | W37: No | X37: 15
A38: 7408 | B38: 5812 | C38: 58 | D38: 722 | E38: 722513 | F38: Fast Food-Mexican | G38: Houston, TX | H38: United States | I38: 658 | J38: 2014-01-02 | K38: 183 | L38: 450 | M38: 500 | N38: 0.278 | O38: 0.684 | P38: 2.459 | Q38: 1 | S38: 0 | T38: 293 | U38: 0.12 | V38: 948 | W38: No | X38: 2 FT/11 PT
A39: 4838 | B39: 5812 | C39: 58 | D39: 722 | E39: 722513 | F39: Fast Food-Pizza | G39: Florida | H39: United States | I39: 653 | J39: 2014-06-09 | K39: 97 | L39: 162 | M39: 194 | N39: 0.149 | O39: 0.248 | P39: 1.67 | Q39: 0.77 | R39: 3 Yrs @ 5% | S39: 5 | T39: 66 | W39: No | X39: 10
A40: 3532 | B40: 5812 | C40: 58 | D40: 722 | E40: 722513 | F40: Fast Food-Pizza | G40: Florida | H40: United States | I40: 650 | J40: 2014-04-30 | K40: 195 | L40: 168 | M40: 210 | N40: 0.3 | O40: 0.258 | P40: 0.862 | Q40: 1 | S40: 0 | T40: 150 | W40: No | X40: 5
A41: 11018 | B41: 5812 | C41: 58 | D41: 722 | E41: 722511 | F41: Restr W/Cocktails | G41: South Dakota | H41: United States | I41: 644 | J41: 2014-08-12 | K41: 82 | L41: 25 | M41: 328 | N41: 0.127 | O41: 0.039 | P41: 0.305 | R41: 1 | S41: 61 | T41: 25 | W41: No
A42: 10769 | B42: 5812 | C42: 58 | D42: 722 | E42: 722513 | F42: Franch-Sandwiches | G42: San Jose, CA | H42: United States | I42: 633 | J42: 2014-03-11 | K42: 113 | L42: 490 | M42: 550 | N42: 0.179 | O42: 0.774 | P42: 4.336 | S42: 0 | W42: No
A43: 9425 | B43: 5812 | C43: 58 | D43: 722 | E43: 722515 | F43: Fast Food-Yogurt | G43: Orange County, CA | H43: United States | I43: 603 | J43: 2014-02-21 | K43: 52 | L43: 104 | M43: 104 | N43: 0.086 | O43: 0.172 | P43: 2 | S43: 0 | W43: No | X43: 8 FT/1 PT
A44: 7923 | B44: 5812 | C44: 58 | D44: 722 | E44: 722511 | F44: Restr-Family | G44: Los Angeles, CA | H44: United States | I44: 600 | J44: 2014-10-21 | K44: 180 | L44: 450 | M44: 450 | N44: 0.3 | O44: 0.75 | P44: 2.5 | Q44: 1 | S44: 0 | V44: 160 | W44: No | X44: 3 FT/1 PT
A45: 7921 | B45: 5812 | C45: 58 | D45: 722 | E45: 722515 | F45: Coffee/Sandwiches | G45: Los Angeles, CA | H45: United States | I45: 576 | J45: 2014-03-10 | K45: 144 | L45: 275 | M45: 295 | N45: 0.25 | O45: 0.477 | P45: 1.91 | Q45: 1 | S45: 0 | V45: 158 | W45: No | X45: 3 FT/1 PT
A46: 5111 | B46: 5812 | C46: 58 | D46: 722 | E46: 722511 | F46: Restr-Family | G46: Florida | H46: United States | I46: 575 | J46: 2014-12-05 | K46: 115 | L46: 140 | M46: 204 | N46: 0.2 | O46: 0.243 | P46: 1.217 | Q46: 0.93 | R46: 10 Yrs @ 6% | S46: 5 | T46: 50 | W46: No | X46: 12
A47: 3779 | B47: 5812 | C47: 58 | D47: 722 | E47: 722511 | F47: Restr-Family | G47: Florida | H47: United States | I47: 575 | J47: 2014-12-31 | K47: 136 | L47: 161 | M47: 162 | N47: 0.237 | O47: 0.28 | P47: 1.184 | S47: 3 | T47: 45 | V47: 200 | W47: No | X47: 6
A48: 12362 | B48: 5812 | C48: 58 | D48: 722 | E48: 722511 | F48: Restr-Family | G48: Phoenix, AZ | H48: United States | I48: 560 | J48: 2014-03-28 | K48: 71 | L48: 70 | M48: 100 | N48: 0.127 | O48: 0.125 | P48: 0.986 | Q48: 1 | S48: 0 | T48: 50 | W48: No
A49: 6374 | B49: 5812 | C49: 58 | D49: 722 | E49: 722511 | F49: Restr-Family | G49: Florida | H49: United States | I49: 550 | J49: 2014-09-19 | K49: 190 | L49: 251 | M49: 271 | N49: 0.345 | O49: 0.456 | P49: 1.321 | Q49: 1 | S49: 4 | T49: 55 | V49: 7 | W49: No | X49: 1 FT/2 PT
A50: 8030 | B50: 5812 | C50: 58 | D50: 722 | E50: 722511 | F50: Restr-Family | G50: Los Angeles, CA | H50: United States | I50: 550 | J50: 2014-07-22 | K50: 0 | L50: 195 | M50: 195 | N50: 0 | O50: 0.355 | Q50: 1 | S50: 3 | T50: 45 | W50: No | X50: 3 FT/1 PT
A51: 10997 | B51: 5812 | C51: 58 | D51: 722 | E51: 722513 | F51: Bakery Restaurant | G51: South Carolina | H51: United States | I51: 525 | J51: 2014-06-06 | K51: 110 | L51: 225 | M51: 225 | N51: 0.21 | O51: 0.429 | P51: 2.045 | Q51: 0.22 | R51: 5 Yrs @ 6% | S51: 2 | T51: 25 | U51: 0.069 | W51: No
A52: 3146 | B52: 5812 | C52: 58 | D52: 722 | E52: 722511 | F52: Restr-Italian/Pizza | G52: Florida | H52: United States | I52: 519 | J52: 2014-08-31 | K52: 138 | L52: 115 | M52: 140 | N52: 0.266 | O52: 0.222 | P52: 0.833 | Q52: 1 | S52: 5 | T52: 80 | V52: 360 | W52: Yes | X52: 4
A53: 12327 | B53: 5812 | C53: 58 | D53: 722 | E53: 722511 | F53: Restr W/Cocktails | G53: Tempe, AZ | H53: United States | I53: 515 | J53: 2014-02-14 | K53: 75 | L53: 100 | M53: 160 | N53: 0.146 | O53: 0.194 | P53: 1.333 | Q53: 1 | S53: 0 | T53: 160 | W53: No
A54: 3453 | B54: 5812 | C54: 58 | D54: 722 | E54: 722511 | F54: Restr-Family | G54: Florida | H54: United States | I54: 514 | J54: 2014-11-30 | K54: 137 | L54: 219 | M54: 244 | N54: 0.267 | O54: 0.426 | P54: 1.599 | Q54: 0.67 | R54: 3 Yrs @ 6% | S54: 6 | T54: 33 | W54: No | X54: 5
A55: 10668 | B55: 5812 | C55: 58 | D55: 722 | E55: 722515 | F55: Tea House | G55: San Francisco, CA | H55: United States | I55: 477 | J55: 2014-06-13 | K55: 80 | L55: 97 | M55: 132 | N55: 0.168 | O55: 0.203 | P55: 1.213 | Q55: 0.8 | R55: 3 Yrs@ 5% | S55: 28 | U55: 0.25 | W55: No
A56: 10748 | B56: 5812 | C56: 58 | D56: 722 | E56: 722515 | F56: Tea House | G56: San Jose, CA | H56: United States | I56: 477 | J56: 2014-06-13 | K56: 80 | L56: 125 | M56: 160 | N56: 0.168 | O56: 0.262 | P56: 1.563 | S56: 0 | W56: No
A57: 5547 | B57: 5812 | C57: 58 | D57: 722 | E57: 722513 | F57: Fast Food-Yogurt | G57: Florida | H57: United States | I57: 475 | J57: 2014-08-28 | K57: 135 | L57: 413 | M57: 425 | N57: 0.284 | O57: 0.869 | P57: 3.059 | S57: 0 | T57: 125 | W57: No | X57: 18
A58: 3446 | B58: 5812 | C58: 58 | D58: 722 | E58: 722513 | F58: Restr-Breakfast/Lunch | G58: Florida | H58: United States | I58: 470 | J58: 2014-04-30 | K58: 95 | L58: 139 | M58: 149 | N58: 0.202 | O58: 0.296 | P58: 1.463 | Q58: 1 | S58: 10 | T58: 60 | W58: No | X58: 5
A59: 12425 | B59: 5812 | C59: 58 | D59: 722 | E59: 722513 | F59: Deli W/Starbucks | G59: Phoenix, AZ | H59: United States | I59: 468 | J59: 2014-03-28 | K59: 132 | L59: 260 | M59: 275 | N59: 0.282 | O59: 0.556 | P59: 1.97 | Q59: 0.81 | S59: 0 | T59: 60 | W59: No
A60: 9291 | B60: 5812 | C60: 58 | D60: 722 | E60: 722511 | F60: Restr-Family | G60: Ohio | H60: United States | I60: 450 | J60: 2014-09-29 | K60: 62 | L60: 112 | M60: 104 | N60: 0.138 | O60: 0.249 | P60: 1.806 | Q60: 0.1 | R60: 7 Yrs @ 6% | S60: 5 | T60: 30 | V60: 138 | W60: No | X60: 7 FT/10 PT
A61: 42 | B61: 5812 | C61: 58 | D61: 722 | E61: 722515 | F61: Coffee House | G61: Aptos, CA | H61: United States | I61: 438 | J61: 2014-07-13 | K61: 62 | L61: 150 | M61: 200 | N61: 0.142 | O61: 0.342 | P61: 2.419 | S61: 0 | V61: 75 | W61: No | X61: 1
A62: 2654 | B62: 5812 | C62: 58 | D62: 722 | E62: 722511 | F62: Restr-Barbeque | G62: Florida | H62: United States | I62: 423 | J62: 2014-02-24 | K62: 65 | L62: 120 | M62: 120 | N62: 0.154 | O62: 0.284 | P62: 1.846 | Q62: 0.83 | R62: 1.5 Yrs @ 6% | S62: 0 | T62: 30 | V62: 60 | W62: No | X62: 4
A63: 12375 | B63: 5812 | C63: 58 | D63: 722 | E63: 722513 | F63: Restr-Breakfast Only | G63: Scottsdale, AZ | H63: United States | I63: 421 | J63: 2014-03-04 | K63: 37 | L63: 37 | M63: 37 | N63: 0.088 | O63: 0.088 | P63: 1 | Q63: 1 | S63: 3 | T63: 40 | W63: No
A64: 12381 | B64: 5812 | C64: 58 | D64: 722 | E64: 722511 | F64: Restr-Sushi | G64: Phoenix, AZ | H64: United States | I64: 420 | J64: 2014-07-28 | K64: 137 | L64: 100 | M64: 150 | N64: 0.326 | O64: 0.238 | P64: 0.73 | Q64: 1 | S64: 0 | T64: 45 | W64: No
A65: 5623 | B65: 5812 | C65: 58 | D65: 722 | E65: 722511 | F65: Restr-Family | G65: Florida | H65: United States | I65: 420 | J65: 2014-06-16 | K65: 82 | L65: 86 | M65: 91 | N65: 0.195 | O65: 0.205 | P65: 1.049 | Q65: 0.55 | R65: 3 Yrs @ 6% | S65: 4 | T65: 15 | V65: 425 | W65: No | X65: 20
A66: 8443 | B66: 5812 | C66: 58 | D66: 722 | E66: 722513 | F66: Fast Food-Pizza | G66: Minneapolis, MN | H66: United States | I66: 414 | J66: 2014-05-16 | K66: 78 | L66: 215 | M66: 215 | N66: 0.188 | O66: 0.519 | P66: 2.756 | Q66: 0.9 | R66: 1Yr @ 0% | S66: 5 | T66: 25 | W66: No | X66: 4 FT/1 PT
A67: 3441 | B67: 5812 | C67: 58 | D67: 722 | E67: 722515 | F67: Fast Food-Yogurt | G67: Florida | H67: United States | I67: 401 | J67: 2014-07-31 | K67: 120 | L67: 205 | M67: 295 | N67: 0.299 | O67: 0.511 | P67: 1.708 | Q67: 1 | S67: 4 | T67: 135 | W67: No | X67: 5
A68: 12382 | B68: 5812 | C68: 58 | D68: 722 | E68: 722511 | F68: Restr-Sushi | G68: Tucson, AZ | H68: United States | I68: 400 | J68: 2014-09-29 | K68: 55 | L68: 150 | M68: 150 | N68: 0.138 | O68: 0.375 | P68: 2.727 | Q68: 0.27 | S68: 5 | T68: 83 | W68: No
A69: 3182 | B69: 5812 | C69: 58 | D69: 722 | E69: 722515 | F69: Self Serv-Yogurt | G69: Florida | H69: United States | I69: 395 | J69: 2014-04-01 | K69: 90 | L69: 215 | M69: 295 | N69: 0.228 | O69: 0.544 | P69: 2.389 | S69: 2 | V69: 293 | W69: No | X69: 5
A70: 12373 | B70: 5812 | C70: 58 | D70: 722 | E70: 722513 | F70: Breakfast/Lunch | G70: Phoenix, AZ | H70: United States | I70: 394 | J70: 2014-01-31 | K70: 120 | L70: 220 | M70: 220 | N70: 0.305 | O70: 0.558 | P70: 1.833 | Q70: 0.73 | S70: 0 | T70: 75 | W70: No
A71: 12365 | B71: 5812 | C71: 58 | D71: 722 | E71: 722511 | F71: Restr-Family | G71: Scottsdale, AZ | H71: United States | I71: 384 | J71: 2014-10-02 | L71: 155 | M71: 195 | O71: 0.404 | Q71: 1 | S71: 0 | W71: No
A72: 9372 | B72: 5812 | C72: 58 | D72: 722 | E72: 722511 | F72: Restr-Japanese | G72: Orange County, CA | H72: United States | I72: 384 | J72: 2014-08-27 | K72: 36 | L72: 99 | M72: 99 | N72: 0.094 | O72: 0.258 | P72: 2.75 | Q72: 0.5 | R72: 2 Yrs | S72: 5 | W72: No | X72: 7 FT/6 PT
A73: 1135 | B73: 5812 | C73: 58 | D73: 722 | E73: 722511 | F73: Fast Food-Sushi | G73: Costa Mesa, CA | H73: United States | I73: 380 | J73: 2014-03-26 | K73: 45 | L73: 195 | M73: 195 | N73: 0.118 | O73: 0.513 | P73: 4.333 | Q73: 1 | S73: 0 | U73: 0.12 | V73: 32 | W73: No | X73: 2
A74: 5965 | B74: 5812 | C74: 58 | D74: 722 | E74: 722513 | F74: Fast Food-Smoothies | G74: Florida | H74: United States | I74: 375 | J74: 2014-11-10 | K74: 28 | L74: 125 | M74: 148 | N74: 0.075 | O74: 0.333 | P74: 4.464 | Q74: 0.62 | R74: 3 Yrs @ 0% | S74: 2 | W74: No | X74: 40
A75: 3451 | B75: 5812 | C75: 58 | D75: 722 | E75: 722511 | F75: Restr-Seafood | G75: Florida | H75: United States | I75: 360 | J75: 2014-01-17 | K75: 90 | L75: 73 | M75: 86 | N75: 0.25 | O75: 0.203 | P75: 0.811 | Q75: 0.8 | R75: 2 Yrs @ 4% | S75: 2 | T75: 42 | W75: No | X75: 5
A76: 8037 | B76: 5812 | C76: 58 | D76: 722 | E76: 722511 | F76: Restr-Mexican | G76: Los Angeles, CA | H76: United States | I76: 360 | J76: 2014-03-11 | K76: 90 | L76: 87 | M76: 92 | N76: 0.25 | O76: 0.242 | P76: 0.967 | Q76: 0.39 | S76: 3 | V76: 211 | W76: No | X76: 3 FT/10 PT
A77: 7867 | B77: 5812 | C77: 58 | D77: 722 | E77: 722511 | F77: Restr-Mexican | G77: Los Angeles, CA | H77: United States | I77: 360 | J77: 2014-03-11 | K77: 90 | L77: 35 | M77: 95 | N77: 0.25 | O77: 0.097 | P77: 0.389 | Q77: 1 | S77: 4 | W77: No | X77: 3 Ft/ 2 PT
A78: 10652 | B78: 5812 | C78: 58 | D78: 722 | E78: 722513 | F78: Bakery Restaurant | G78: San Francisco, CA | H78: United States | I78: 350 | J78: 2014-07-31 | K78: 31 | L78: 70 | M78: 130 | N78: 0.089 | O78: 0.2 | P78: 2.258 | S78: 0 | U78: 0.13 | W78: No
A79: 7913 | B79: 5812 | C79: 58 | D79: 722 | E79: 722511 | F79: Restr-Japanese | G79: Los Angeles, CA | H79: United States | I79: 350 | J79: 2014-08-12 | K79: 20 | L79: 50 | M79: 50 | N79: 0.057 | O79: 0.143 | P79: 2.5 | Q79: 1 | S79: 0 | V79: 125 | W79: No | X79: 3 FT/1 PT
A80: 11672 | B80: 5812 | C80: 58 | D80: 722 | E80: 722515 | F80: Fast Food-Yogurt | G80: Texas | H80: United States | I80: 348 | J80: 2014-12-19 | K80: 75 | L80: 137 | M80: 170 | N80: 0.216 | O80: 0.394 | P80: 1.827 | S80: 0 | W80: No
A81: 2652 | B81: 5812 | C81: 58 | D81: 722 | E81: 722513 | F81: Deli-Submarines | G81: Florida | H81: United States | I81: 345 | J81: 2014-08-31 | K81: 48 | L81: 64 | M81: 89 | N81: 0.139 | O81: 0.186 | P81: 1.333 | Q81: 0.55 | R81: 2 Yrs @ 4% | S81: 1 | T81: 30 | V81: 57 | W81: No | X81: 4
A82: 9399 | B82: 5812 | C82: 58 | D82: 722 | E82: 722515 | F82: Fast Food-Ice Cream | G82: Orange County, CA | H82: United States | I82: 317 | J82: 2014-07-09 | K82: 65 | L82: 124 | M82: 124 | N82: 0.205 | O82: 0.391 | P82: 1.908 | Q82: 1 | S82: 4 | T82: 20 | U82: 0.14 | W82: No | X82: 8 FT/ 5 PT
A83: 7576 | B83: 5812 | C83: 58 | D83: 722 | E83: 722511 | F83: Restr-Steakhouse | G83: Iowa | H83: United States | I83: 316 | J83: 2014-10-22 | K83: 33 | L83: 71 | M83: 233 | N83: 0.104 | O83: 0.225 | P83: 2.152 | Q83: 1 | S83: 9 | T83: 33 | V83: 178 | W83: No | X83: 2 FT/3 PT
A84: 11723 | B84: 5812 | C84: 58 | D84: 722 | E84: 722511 | F84: Restr-Family | G84: Texas | H84: United States | I84: 315 | J84: 2014-03-31 | K84: 18 | L84: 70 | M84: 99 | N84: 0.057 | O84: 0.222 | P84: 3.889 | Q84: 1 | S84: 1 | T84: 70 | U84: 13 | W84: No
A85: 2964 | B85: 5812 | C85: 58 | D85: 722 | E85: 722513 | F85: Fast Food-Pizza | G85: Florida | H85: United States | I85: 312 | J85: 2014-06-17 | K85: 68 | L85: 79 | M85: 85 | N85: 0.218 | O85: 0.253 | P85: 1.162 | Q85: 1 | S85: 1 | T85: 35 | W85: No | X85: 4
A86: 12363 | B86: 5812 | C86: 58 | D86: 722 | E86: 722511 | F86: Restr-Family | G86: Prescott, AZ | H86: United States | I86: 304 | J86: 2014-09-12 | K86: 44 | L86: 90 | M86: 240 | N86: 0.145 | O86: 0.296 | P86: 2.045 | Q86: 1 | S86: 0 | W86: No
A87: 1866 | B87: 5812 | C87: 58 | D87: 722 | E87: 722511 | F87: Bagel Restaurant | G87: Florida | H87: United States | I87: 300 | J87: 2014-12-12 | K87: 60 | L87: 83 | M87: 90 | N87: 0.2 | O87: 0.277 | P87: 1.383 | Q87: 1 | S87: 0 | T87: 25 | V87: 30 | W87: No | X87: 3
A88: 9506 | B88: 5812 | C88: 58 | D88: 722 | E88: 722511 | F88: Restr W/Cocktails | G88: Oregon | H88: United States | I88: 295 | J88: 2014-09-02 | K88: 55 | L88: 110 | M88: 107 | N88: 0.186 | O88: 0.373 | P88: 2 | S88: 8 | W88: No | X88: 9 FT/`14 PT
A89: 10327 | B89: 5812 | C89: 58 | D89: 722 | E89: 722511 | F89: Restr-Chinese | G89: Riverside, CA | H89: United States | I89: 288 | J89: 2014-09-19 | K89: 24 | L89: 60 | M89: 125 | N89: 0.083 | O89: 0.208 | P89: 2.5 | Q89: 1 | S89: 0 | W89: No
A90: 12408 | B90: 5812 | C90: 58 | D90: 722 | E90: 722513 | F90: Fast Food-Pizza | G90: Gilbert, AZ | H90: United States | I90: 288 | J90: 2014-06-09 | K90: 55 | L90: 55 | M90: 70 | N90: 0.191 | O90: 0.191 | P90: 1 | Q90: 1 | S90: 3 | T90: 30 | W90: No
A91: 10326 | B91: 5812 | C91: 58 | D91: 722 | E91: 722511 | F91: Fast Food-Chinese | G91: Riverside, CA | H91: United States | I91: 288 | J91: 2014-04-09 | K91: 24 | L91: 55 | M91: 120 | N91: 0.083 | O91: 0.191 | P91: 2.292 | Q91: 1 | S91: 5 | U91: 0.1 | W91: No
A92: 12424 | B92: 5812 | C92: 58 | D92: 722 | E92: 722513 | F92: Deli W/Starbucks | G92: Phoenix, AZ | H92: United States | I92: 288 | J92: 2014-02-13 | K92: 60 | L92: 115 | M92: 170 | N92: 0.208 | O92: 0.399 | P92: 1.917 | Q92: 1 | S92: 0 | T92: 25 | W92: No
A93: 12380 | B93: 5812 | C93: 58 | D93: 722 | E93: 722511 | F93: Restr-Sushi | G93: N. Dallas, TX | H93: United States | I93: 276 | J93: 2014-12-15 | K93: 36 | L93: 46 | M93: 46 | N93: 0.13 | O93: 0.167 | P93: 1.278 | Q93: 1 | S93: 3 | T93: 50 | U93: 0.26 | V93: 120 | W93: No | X93: 4
A94: 8715 | B94: 5812 | C94: 58 | D94: 722 | E94: 722513 | F94: Fast Food-Pizza | G94: Missouri | H94: United States | I94: 264 | J94: 2014-06-02 | K94: 60 | L94: 126 | M94: 135 | N94: 0.227 | O94: 0.477 | P94: 2.1 | Q94: 0.3 | R94: 6 Mos @ 6% | S94: 4 | T94: 30 | U94: 0.087 | W94: No | X94: 4 FT/6 PT
A95: 8743 | B95: 5812 | C95: 58 | D95: 722 | E95: 722515 | F95: Fast Food-Ice Cream | G95: Missouri | H95: United States | I95: 258 | J95: 2014-05-30 | K95: -10 | L95: 45 | M95: 150 | N95: -0.039 | O95: 0.174 | Q95: 1 | S95: 5 | V95: 297 | W95: No | X95: 4 PT
A96: 6312 | B96: 5812 | C96: 58 | D96: 722 | E96: 722511 | F96: Restr-Family | G96: Florida | H96: United States | I96: 256 | J96: 2014-06-27 | K96: 44 | L96: 84 | M96: 99 | N96: 0.172 | O96: 0.328 | P96: 1.909 | Q96: 1 | S96: 2 | T96: 50 | W96: No | X96: 1 FT/1 PT
A97: 12421 | B97: 5812 | C97: 58 | D97: 722 | E97: 722513 | F97: Deli-Sandwiches | G97: Fountain Hills, AZ | H97: United States | I97: 253 | J97: 2014-07-07 | K97: 20 | L97: 176 | M97: 180 | N97: 0.079 | O97: 0.696 | P97: 8.8 | Q97: 0.43 | S97: 0 | W97: No
A98: 12415 | B98: 5812 | C98: 58 | D98: 722 | E98: 722515 | F98: Franchise-Yogurt Store | G98: Phoenix, AZ | H98: United States | I98: 250 | J98: 2014-03-10 | K98: 40 | L98: 125 | M98: 145 | N98: 0.16 | O98: 0.5 | P98: 3.125 | Q98: 1 | S98: 3 | T98: 125 | W98: No
A99: 2959 | B99: 5812 | C99: 58 | D99: 722 | E99: 722513 | F99: Bagel Restaurant | G99: Florida | H99: United States | I99: 247 | J99: 2014-05-02 | K99: 73 | L99: 115 | M99: 115 | N99: 0.296 | O99: 0.466 | P99: 1.575 | Q99: 1 | S99: 1 | T99: 50 | W99: No | X99: 4
A100: 12430 | B100: 5812 | C100: 58 | D100: 722 | E100: 722515 | F100: Coffee House | G100: Phoenix, AZ | H100: United States | I100: 245 | J100: 2014-01-14 | K100: 62 | L100: 120 | M100: 125 | N100: 0.253 | O100: 0.49 | P100: 1.935 | Q100: 0.8 | S100: 2 | T100: 36 | W100: No
A101: 8746 | B101: 5812 | C101: 58 | D101: 722 | E101: 722515 | F101: Fast Food-Ice Cream | G101: Missouri | H101: United States | I101: 245 | J101: 2014-05-30 | K101: 22 | L101: 45 | M101: 150 | N101: 0.09 | O101: 0.184 | P101: 2.045 | S101: 5 | W101: No | X101: 4 PT
A102: 12409 | B102: 5812 | C102: 58 | D102: 722 | E102: 722513 | F102: Fast Food-Pizza | G102: Prescott, AZ | H102: United States | I102: 241 | J102: 2014-11-04 | K102: 40 | L102: 75 | M102: 95 | N102: 0.166 | O102: 0.311 | P102: 1.875 | Q102: 1 | S102: 0 | W102: No
A103: 1152 | B103: 5812 | C103: 58 | D103: 722 | E103: 722515 | F103: Fast Food-Ice Cream | G103: Dallas, TX | H103: United States | I103: 240 | J103: 2014-06-03 | K103: 105 | L103: 185 | M103: 215 | N103: 0.438 | O103: 0.771 | P103: 1.762 | Q103: 1 | S103: 3 | T103: 50 | U103: 0.25 | V103: 45 | W103: No | X103: 2
A104: 12376 | B104: 5812 | C104: 58 | D104: 722 | E104: 722513 | F104: Breakfast/Lunch | G104: Sun City West, AZ | H104: United States | I104: 239 | J104: 2014-01-17 | K104: 56 | L104: 50 | M104: 55 | N104: 0.234 | O104: 0.209 | P104: 0.893 | Q104: 0.4 | S104: 0 | T104: 55 | W104: No
A105: 12414 | B105: 5812 | C105: 58 | D105: 722 | E105: 722515 | F105: Fast Food-Yogurt | G105: Fountain Hills, AZ | H105: United States | I105: 235 | J105: 2014-03-03 | K105: 45 | L105: 93 | M105: 115 | N105: 0.191 | O105: 0.396 | P105: 2.067 | Q105: 1 | S105: 2 | T105: 115 | W105: No
A106: 7979 | B106: 5812 | C106: 58 | D106: 722 | E106: 722513 | F106: Fast Food-Chicken | G106: Los Angeles, CA | H106: United States | I106: 230 | J106: 2014-11-13 | K106: 25 | L106: 55 | M106: 59 | N106: 0.109 | O106: 0.239 | P106: 2.2 | Q106: 1 | S106: 0 | W106: No | X106: 3 FT/1 PT
A107: 12364 | B107: 5812 | C107: 58 | D107: 722 | E107: 722511 | F107: Restr-Diner | G107: San Diego, CA | H107: United States | I107: 220 | J107: 2014-10-06 | K107: 40 | L107: 67 | M107: 77 | N107: 0.182 | O107: 0.305 | P107: 1.675 | Q107: 0.5 | R107: 4 Yrs @ 6% | S107: 3 | T107: 30 | U107: 0.09 | V107: 210 | W107: No | X107: 5
A108: 12370 | B108: 5812 | C108: 58 | D108: 722 | E108: 722513 | F108: Restr-Breakfast Only | G108: Gilbert, AZ | H108: United States | I108: 220 | J108: 2014-12-22 | K108: 66 | L108: 109 | M108: 109 | N108: 0.3 | O108: 0.495 | P108: 1.652 | Q108: 0.47 | S108: 2 | T108: 40 | W108: No
A109: 4645 | B109: 5812 | C109: 58 | D109: 722 | E109: 722511 | F109: Bagel Restaurant | G109: Florida | H109: United States | I109: 208 | J109: 2014-02-14 | K109: 1 | L109: 33 | M109: 60 | N109: 0.005 | O109: 0.159 | P109: 33 | Q109: 0.66 | R109: 2 Mos @ 0% | S109: 3 | U109: 0.21 | W109: No | X109: 9
A110: 4612 | B110: 5812 | C110: 58 | D110: 722 | E110: 722513 | F110: Fast Food-Ice Cream | G110: Florida | H110: United States | I110: 208 | J110: 2014-11-26 | K110: 40 | L110: 150 | M110: 159 | N110: 0.192 | O110: 0.721 | P110: 3.75 | Q110: 1 | S110: 3 | T110: 40 | V110: 360 | W110: No | X110: 9
A111: 729 | B111: 5812 | C111: 58 | D111: 722 | E111: 722511 | F111: Restr-Ethnic Food | G111: CN-Ontario | H111: Canada | I111: 207 | J111: 2014-02-07 | K111: 51 | L111: 65 | M111: 80 | N111: 0.246 | O111: 0.314 | P111: 1.275 | Q111: 1 | S111: 0 | T111: 65 | U111: 0.18 | W111: No | X111: 1
A112: 2307 | B112: 5812 | C112: 58 | D112: 722 | E112: 722513 | F112: Deli-Office Building | G112: Florida | H112: United States | I112: 200 | J112: 2014-06-30 | K112: 43 | L112: 65 | M112: 77 | N112: 0.215 | O112: 0.325 | P112: 1.512 | Q112: 0.31 | S112: 0 | T112: 20 | W112: No | X112: 3
A113: 12378 | B113: 5812 | C113: 58 | D113: 722 | E113: 722515 | F113: Restr-Coffee Shop | G113: Gold Canyon, AZ | H113: United States | I113: 195 | J113: 2014-09-29 | K113: 55 | L113: 158 | M113: 165 | N113: 0.282 | O113: 0.81 | P113: 2.873 | Q113: 0.32 | S113: 2 | T113: 3 | W113: No
A114: 8442 | B114: 5812 | C114: 58 | D114: 722 | E114: 722513 | F114: Fast Food-Italian/Pizza | G114: Minneapolis, MN | H114: United States | I114: 190 | J114: 2014-12-01 | K114: 50 | L114: 50 | M114: 50 | N114: 0.263 | O114: 0.263 | P114: 1 | Q114: 1 | S114: 0 | T114: 25 | U114: 0.11 | W114: No | X114: 4 FT/1 PT
A115: 6544 | B115: 5812 | C115: 58 | D115: 722 | E115: 722511 | F115: Bagel Restaurant | G115: Florida | H115: United States | I115: 175 | J115: 2014-05-06 | K115: 84 | L115: 80 | M115: 159 | N115: 0.48 | O115: 0.457 | P115: 0.952 | Q115: 1 | S115: 1 | T115: 50 | U115: 0.04 | V115: 147 | W115: No | X115: 1 FT/3 PT
A116: 3452 | B116: 5812 | C116: 58 | D116: 722 | E116: 722511 | F116: Restr-Family | G116: Florida | H116: United States | I116: 174 | J116: 2014-06-30 | K116: 48 | L116: 48 | M116: 59 | N116: 0.276 | O116: 0.276 | P116: 1 | Q116: 1 | S116: 1 | T116: 38 | W116: No | X116: 5
A117: 4498 | B117: 5812 | C117: 58 | D117: 722 | E117: 722511 | F117: Restr-Family | G117: Florida | H117: United States | I117: 170 | J117: 2014-06-04 | K117: 47 | L117: 35 | M117: 47 | N117: 0.276 | O117: 0.206 | P117: 0.745 | Q117: 0.2 | R117: 4Yrs @ 6% | S117: 3 | T117: 27 | W117: No | X117: 8
A118: 9420 | B118: 5812 | C118: 58 | D118: 722 | E118: 722515 | F118: Coffee/Tea House | G118: Orange County, CA | H118: United States | I118: 168 | J118: 2014-05-30 | K118: 18 | L118: 85 | M118: 105 | N118: 0.107 | O118: 0.506 | P118: 4.722 | Q118: 1 | S118: 5 | W118: No | X118: 8 FT/1 PT
A119: 12372 | B119: 5812 | C119: 58 | D119: 722 | E119: 722513 | F119: Breakfast/Lunch | G119: Mesa AZ | H119: United States | I119: 158 | J119: 2014-04-14 | K119: 51 | L119: 50 | M119: 66 | N119: 0.323 | O119: 0.316 | P119: 0.98 | S119: 1 | T119: 16 | W119: No
A120: 5289 | B120: 5812 | C120: 58 | D120: 722 | E120: 722513 | F120: Fast Food-Ice Cream | G120: Florida | H120: United States | I120: 144 | J120: 2014-01-15 | K120: 28 | L120: 26 | M120: 37 | N120: 0.194 | O120: 0.181 | P120: 0.929 | Q120: 1 | S120: 3 | T120: 16 | U120: 0.17 | W120: No | X120: 14
A121: 12394 | B121: 5812 | C121: 58 | D121: 722 | E121: 722513 | F121: Snack Stand | G121: Phoenix, AZ | H121: United States | I121: 140 | J121: 2014-03-03 | K121: 40 | L121: 50 | M121: 55 | N121: 0.286 | O121: 0.357 | P121: 1.25 | Q121: 1 | S121: 1 | T121: 50 | W121: No
A122: 1898 | B122: 5812 | C122: 58 | D122: 722 | E122: 722511 | F122: Restr-Family | G122: Florida | H122: United States | I122: 132 | J122: 2014-10-31 | K122: 38 | L122: 89 | M122: 89 | N122: 0.288 | O122: 0.674 | P122: 2.342 | Q122: 1 | S122: 1 | T122: 8 | V122: 180 | W122: No | X122: 3
A123: 12374 | B123: 5812 | C123: 58 | D123: 722 | E123: 722513 | F123: Breakfast/Lunch | G123: Scottsdale, AZ | H123: United States | I123: 125 | J123: 2014-12-15 | K123: 56 | L123: 57 | M123: 60 | N123: 0.448 | O123: 0.456 | P123: 1.018 | Q123: 0.44 | S123: 0 | T123: 35 | W123: No
A124: 12013 | B124: 5812 | C124: 58 | D124: 722 | E124: 722515 | F124: Espresso Kiosk | G124: Washington | H124: United States | I124: 125 | J124: 2014-10-31 | K124: 29 | L124: 50 | M124: 50 | N124: 0.232 | O124: 0.4 | P124: 1.724 | Q124: 1 | S124: 2 | T124: 40 | U124: 0.12 | W124: Yes
A125: 2717 | B125: 5812 | C125: 58 | D125: 722 | E125: 722515 | F125: Fast Food-Yogurt | G125: Florida | H125: United States | I125: 120 | J125: 2014-04-30 | K125: 20 | L125: 48 | M125: 85 | N125: 0.167 | O125: 0.4 | P125: 2.4 | Q125: 1 | S125: 0 | V125: 120 | W125: No | X125: 4
A126: 9421 | B126: 5812 | C126: 58 | D126: 722 | E126: 722511 | F126: Deli-Sandwiches | G126: Orange County, CA | H126: United States | I126: 85 | J126: 2014-06-25 | K126: 0 | L126: 65 | M126: 55 | N126: 0 | O126: 0.765 | Q126: 1 | S126: 3 | W126: No | X126: 8 FT/1 PT
A127: 12395 | B127: 5812 | C127: 58 | D127: 722 | E127: 722513 | F127: Hot Dog Stand | G127: Tempe, AZ | H127: United States | I127: 75 | J127: 2014-03-04 | K127: 45 | L127: 50 | M127: 60 | N127: 0.6 | O127: 0.667 | P127: 1.111 | Q127: 1 | S127: 2 | T127: 25 | W127: No
A128: 4200 | B128: 5812 | C128: 58 | D128: 722 | E128: 722513 | F128: Fast Food-Ice Cream | G128: Florida | H128: United States | I128: 73 | J128: 2014-10-03 | K128: 28 | L128: 30 | M128: 35 | N128: 0.384 | O128: 0.411 | P128: 1.071 | Q128: 1 | S128: 5 | T128: 21 | W128: No | X128: 7
A129: 9513 | B129: =TEXT("5813","0000") -> 5813 | C129: 58 | D129: 722 | E129: 722410 | F129: Adult Entertainment | G129: Oregon | H129: United States | I129: 1566 | J129: 2014-12-22 | K129: 591 | L129: 1025 | M129: 1500 | N129: 0.377 | O129: 0.655 | P129: 1.734 | Q129: 1 | S129: 2 | T129: 385 | V129: 155 | W129: No | X129: 9 FT/1 PT
A130: 10198 | B130: 5813 | C130: 58 | D130: 722 | E130: 722410 | F130: Cocktail Lounge | G130: Redwood City, CA | H130: United States | I130: 1134 | J130: 2014-10-15 | K130: 231 | L130: 650 | M130: 650 | N130: 0.204 | O130: 0.573 | P130: 2.814 | Q130: 0.3 | S130: 0 | V130: 560 | W130: No
A131: 3873 | B131: 5813 | C131: 58 | D131: 722 | E131: 722410 | F131: Cocktail Lounge | G131: Florida | H131: United States | I131: 996 | J131: 2014-02-28 | K131: 61 | L131: 435 | M131: 475 | N131: 0.061 | O131: 0.437 | P131: 7.131 | Q131: 1 | S131: 0 | T131: 55 | V131: 1992 | W131: No | X131: 6
A132: 6604 | B132: 5813 | C132: 58 | D132: 722 | E132: 722410 | F132: Brew Pub W/Food | G132: Florida | H132: United States | I132: 645 | J132: 2014-12-19 | K132: 128 | L132: 197 | M132: 272 | N132: 0.198 | O132: 0.305 | P132: 1.539 | Q132: 0.4 | S132: 3 | T132: 50 | W132: No | X132: 1 Ft/3 PT
A133: 8019 | B133: 5813 | C133: 58 | D133: 722 | E133: 722410 | F133: Cocktails W/Food | G133: Los Angeles, CA | H133: United States | I133: 576 | J133: 2014-03-12 | K133: 144 | L133: 275 | M133: 295 | N133: 0.25 | O133: 0.477 | P133: 1.91 | Q133: 1 | S133: 0 | U133: 0.09 | W133: No | X133: 3 FT/1 PT
A134: 12445 | B134: 5813 | C134: 58 | D134: 722 | E134: 722410 | F134: Sports Bar | G134: Tucson AZ | H134: United States | I134: 500 | J134: 2014-10-15 | K134: 50 | L134: 79 | M134: 89 | N134: 0.1 | O134: 0.158 | P134: 1.58 | Q134: 0.7 | S134: 7 | T134: 50 | W134: No
A135: 10719 | B135: 5813 | C135: 58 | D135: 722 | E135: 722410 | F135: Cocktail Lounge | G135: San Jose, CA | H135: United States | I135: 235 | J135: 2014-10-15 | L135: 50 | M135: 129 | O135: 0.213 | Q135: 1 | S135: 0 | W135: No
A136: 12444 | B136: 5813 | C136: 58 | D136: 722 | E136: 722410 | F136: Cocktail Lounge | G136: Phoenix, AZ | H136: United States | I136: 200 | J136: 2014-04-09 | L136: 150 | M136: 175 | O136: 0.75 | Q136: 0.1 | S136: 0 | T136: 110 | W136: No

Sheet Statistics
B2: Selected Transactions
C4: Count | D4: Min | E4: Max | F4: 10th Percentile | G4: 25th Percentile | H4: Median | I4: 75th Percentile | J4: 90th Percentile | K4: Mean | L4: Harmonic Mean | M4: Coefficient of Variation
B5: Sale Date | C5: =COUNT(Selected.SaleDate) -> 135 | D5: =IF(C5>0,MIN(Selected.SaleDate),"N/A") -> 2014-01-02 | E5: =IF(C5>0,MAX(Selected.SaleDate),"N/A") -> 2014-12-31
B6: Annual Gross Sales | C6: =COUNT(Selected.AnnualGross) -> 135 | D6: =IF(C6>0,MIN(Selected.AnnualGross),"N/A") -> 73 | E6: =IF(C6>0,MAX(Selected.AnnualGross),"N/A") -> 2550 | F6: =IF(C6>8,PERCENTILE(Selected.AnnualGross,0.1),"N/A") -> 181 | G6: =IF(C6>2,PERCENTILE(Selected.AnnualGross,0.25),"N/A") -> 254.5 | H6: =IF(C6>1,MEDIAN(Selected.AnnualGross),"N/A") -> 421 | I6: =IF(C6>2,PERCENTILE(Selected.AnnualGross,0.75),"N/A") -> 720 | J6: =IF(C6>8,PERCENTILE(Selected.AnnualGross,0.9),"N/A") -> 1134 | K6: =IF(C6>1,AVERAGE(Selected.AnnualGross),"N/A") -> 586.8888889
B7: SDE | C7: =COUNT(Selected.SDE) -> 131 | D7: =IF(C7>0,MIN(Selected.SDE),"N/A") -> -10 | E7: =IF(C7>0,MAX(Selected.SDE),"N/A") -> 591 | F7: =IF(C7>8,PERCENTILE(Selected.SDE,0.1),"N/A") -> 25 | G7: =IF(C7>2,PERCENTILE(Selected.SDE,0.25),"N/A") -> 44 | H7: =IF(C7>1,MEDIAN(Selected.SDE),"N/A") -> 73 | I7: =IF(C7>2,PERCENTILE(Selected.SDE,0.75),"N/A") -> 135.5 | J7: =IF(C7>8,PERCENTILE(Selected.SDE,0.9),"N/A") -> 229 | K7: =IF(C7>1,AVERAGE(Selected.SDE),"N/A") -> 104
B8: Inventory Value | C8: =COUNT(Selected.InventoryAmount) -> 135 | D8: =IF(C8>0,MIN(Selected.InventoryAmount),"N/A") -> 0 | E8: =IF(C8>0,MAX(Selected.InventoryAmount),"N/A") -> 61 | F8: =IF(C8>8,PERCENTILE(Selected.InventoryAmount,0.1),"N/A") -> 0 | G8: =IF(C8>2,PERCENTILE(Selected.InventoryAmount,0.25),"N/A") -> 0 | H8: =IF(C8>1,MEDIAN(Selected.InventoryAmount),"N/A") -> 2 | I8: =IF(C8>2,PERCENTILE(Selected.InventoryAmount,0.75),"N/A") -> 5 | J8: =IF(C8>8,PERCENTILE(Selected.InventoryAmount,0.9),"N/A") -> 8.6 | K8: =IF(C8>1,AVERAGE(Selected.InventoryAmount),"N/A") -> 3.696296296
B9: FF&E | C9: =COUNT(Selected.FFE) -> 87 | D9: =IF(C9>0,MIN(Selected.FFE),"N/A") -> 3 | E9: =IF(C9>0,MAX(Selected.FFE),"N/A") -> 385 | F9: =IF(C9>8,PERCENTILE(Selected.FFE,0.1),"N/A") -> 20.6 | G9: =IF(C9>2,PERCENTILE(Selected.FFE,0.25),"N/A") -> 30 | H9: =IF(C9>1,MEDIAN(Selected.FFE),"N/A") -> 50 | I9: =IF(C9>2,PERCENTILE(Selected.FFE,0.75),"N/A") -> 72.5 | J9: =IF(C9>8,PERCENTILE(Selected.FFE,0.9),"N/A") -> 132 | K9: =IF(C9>1,AVERAGE(Selected.FFE),"N/A") -> 67.98850575
B10: Sale Price (Excludes Inventory) | C10: =COUNT(Selected.SalePrice) -> 135 | D10: =IF(C10>0,MIN(Selected.SalePrice),"N/A") -> 25 | E10: =IF(C10>0,MAX(Selected.SalePrice),"N/A") -> 2200 | F10: =IF(C10>8,PERCENTILE(Selected.SalePrice,0.1),"N/A") -> 50 | G10: =IF(C10>2,PERCENTILE(Selected.SalePrice,0.25),"N/A") -> 70.5 | H10: =IF(C10>1,MEDIAN(Selected.SalePrice),"N/A") -> 124 | I10: =IF(C10>2,PERCENTILE(Selected.SalePrice,0.75),"N/A") -> 223.5 | J10: =IF(C10>8,PERCENTILE(Selected.SalePrice,0.9),"N/A") -> 450 | K10: =IF(C10>1,AVERAGE(Selected.SalePrice),"N/A") -> 207.8666667
B11: SDE To Annual Gross | C11: =COUNT(Selected.SDEToAnnualGross) -> 131 | D11: =IF(C11>0,MIN(Selected.SDEToAnnualGross),"N/A") -> -0.039 | E11: =IF(C11>0,MAX(Selected.SDEToAnnualGross),"N/A") -> 0.6 | F11: =IF(C11>8,PERCENTILE(Selected.SDEToAnnualGross,0.1),"N/A") -> 0.083 | G11: =IF(C11>2,PERCENTILE(Selected.SDEToAnnualGross,0.25),"N/A") -> 0.118 | H11: =IF(C11>1,MEDIAN(Selected.SDEToAnnualGross),"N/A") -> 0.186 | I11: =IF(C11>2,PERCENTILE(Selected.SDEToAnnualGross,0.75),"N/A") -> 0.25 | J11: =IF(C11>8,PERCENTILE(Selected.SDEToAnnualGross,0.9),"N/A") -> 0.3 | K11: =IF(C11>1,AVERAGE(Selected.SDEToAnnualGross),"N/A") -> 0.1893358779
B12: Rent To Annual Gross | C12: =COUNT(Selected.RentToAnnualGross) -> 25 | D12: =IF(C12>0,MIN(Selected.RentToAnnualGross),"N/A") -> 0.009 | E12: =IF(C12>0,MAX(Selected.RentToAnnualGross),"N/A") -> 13 | F12: =IF(C12>8,PERCENTILE(Selected.RentToAnnualGross,0.1),"N/A") -> 0.0408 | G12: =IF(C12>2,PERCENTILE(Selected.RentToAnnualGross,0.25),"N/A") -> 0.07 | H12: =IF(C12>1,MEDIAN(Selected.RentToAnnualGross),"N/A") -> 0.11 | I12: =IF(C12>2,PERCENTILE(Selected.RentToAnnualGross,0.75),"N/A") -> 0.17 | J12: =IF(C12>8,PERCENTILE(Selected.RentToAnnualGross,0.9),"N/A") -> 0.25 | K12: =IF(C12>1,AVERAGE(Selected.RentToAnnualGross),"N/A") -> 0.633
B13: Sale Price To Annual Gross | C13: =COUNT(Selected.SalePriceToAnnualGross) -> 135 | D13: =IF(C13>0,MIN(Selected.SalePriceToAnnualGross),"N/A") -> 0.039 | E13: =IF(C13>0,MAX(Selected.SalePriceToAnnualGross),"N/A") -> 0.88 | F13: =IF(C13>8,PERCENTILE(Selected.SalePriceToAnnualGross,0.1),"N/A") -> 0.1594 | G13: =IF(C13>2,PERCENTILE(Selected.SalePriceToAnnualGross,0.25),"N/A") -> 0.2075 | H13: =IF(C13>1,MEDIAN(Selected.SalePriceToAnnualGross),"N/A") -> 0.314 | I13: =IF(C13>2,PERCENTILE(Selected.SalePriceToAnnualGross,0.75),"N/A") -> 0.4765 | J13: =IF(C13>8,PERCENTILE(Selected.SalePriceToAnnualGross,0.9),"N/A") -> 0.6622 | K13: =IF(C13>1,AVERAGE(Selected.SalePriceToAnnualGross),"N/A") -> 0.3546444444 | L13: =IF(C13>1,HARMEAN(Selected.SalePriceToAnnualGross),"N/A") -> 0.2523671046 | M13: =IF(C13>1,(STDEV((Selected.SalePriceToAnnualGross))/K13),"N/A") -> 0.5315298436
B14: Sale Price To SDE | C14: =COUNT(Selected.SalePriceToSDE) -> 128 | D14: =IF(C14>0,MIN(Selected.SalePriceToSDE),"N/A") -> 0.305 | E14: =IF(C14>0,MAX(Selected.SalePriceToSDE),"N/A") -> 33 | F14: =IF(C14>8,PERCENTILE(Selected.SalePriceToSDE,0.1),"N/A") -> 0.9625 | G14: =IF(C14>2,PERCENTILE(Selected.SalePriceToSDE,0.25),"N/A") -> 1.25 | H14: =IF(C14>1,MEDIAN(Selected.SalePriceToSDE),"N/A") -> 1.8265 | I14: =IF(C14>2,PERCENTILE(Selected.SalePriceToSDE,0.75),"N/A") -> 2.39175 | J14: =IF(C14>8,PERCENTILE(Selected.SalePriceToSDE,0.9),"N/A") -> 3.6415 | K14: =IF(C14>1,AVERAGE(Selected.SalePriceToSDE),"N/A") -> 2.350375 | L14: =IF(C14>1,HARMEAN(Selected.SalePriceToSDE),"N/A") -> 1.519427728 | M14: =IF(C14>1,(STDEV((Selected.SalePriceToSDE))/K14),"N/A") -> 1.347588519
B16: All Transactions (from "All Trans" sheet)
C18: Count | D18: Min | E18: Max | F18: 10th Percentile | G18: 25th Percentile | H18: Median | I18: 75th Percentile | J18: 90th Percentile | K18: Mean | L18: Harmonic Mean | M18: Coefficient of Variation
B19: Sale Date | C19: =COUNT(All.SaleDate) -> 135 | D19: =IF(C19>0,MIN(All.SaleDate),"N/A") -> 2014-01-02 | E19: =IF(C19>0,MAX(All.SaleDate),"N/A") -> 2014-12-31
B20: Annual Gross Sales | C20: =COUNT(All.AnnualGross) -> 135 | D20: =IF(C20>0,MIN(All.AnnualGross),"N/A") -> 73 | E20: =IF(C20>0,MAX(All.AnnualGross),"N/A") -> 2550 | F20: =IF(C20>8,PERCENTILE(All.AnnualGross,0.1),"N/A") -> 181 | G20: =IF(C20>2,PERCENTILE(All.AnnualGross,0.25),"N/A") -> 254.5 | H20: =IF(C20>1,MEDIAN(All.AnnualGross),"N/A") -> 421 | I20: =IF(C20>2,PERCENTILE(All.AnnualGross,0.75),"N/A") -> 720 | J20: =IF(C20>8,PERCENTILE(All.AnnualGross,0.9),"N/A") -> 1134 | K20: =IF(C20>1,AVERAGE(All.AnnualGross),"N/A") -> 586.8888889
B21: SDE | C21: =COUNT(All.SDE) -> 131 | D21: =IF(C21>0,MIN(All.SDE),"N/A") -> -10 | E21: =IF(C21>0,MAX(All.SDE),"N/A") -> 591 | F21: =IF(C21>8,PERCENTILE(All.SDE,0.1),"N/A") -> 25 | G21: =IF(C21>2,PERCENTILE(All.SDE,0.25),"N/A") -> 44 | H21: =IF(C21>1,MEDIAN(All.SDE),"N/A") -> 73 | I21: =IF(C21>2,PERCENTILE(All.SDE,0.75),"N/A") -> 135.5 | J21: =IF(C21>8,PERCENTILE(All.SDE,0.9),"N/A") -> 229 | K21: =IF(C21>1,AVERAGE(All.SDE),"N/A") -> 104
B22: Inventory Value | C22: =COUNT(All.InventoryAmount) -> 135 | D22: =IF(C22>0,MIN(All.InventoryAmount),"N/A") -> 0 | E22: =IF(C22>0,MAX(All.InventoryAmount),"N/A") -> 61 | F22: =IF(C22>8,PERCENTILE(All.InventoryAmount,0.1),"N/A") -> 0 | G22: =IF(C22>2,PERCENTILE(All.InventoryAmount,0.25),"N/A") -> 0 | H22: =IF(C22>1,MEDIAN(All.InventoryAmount),"N/A") -> 2 | I22: =IF(C22>2,PERCENTILE(All.InventoryAmount,0.75),"N/A") -> 5 | J22: =IF(C22>8,PERCENTILE(All.InventoryAmount,0.9),"N/A") -> 8.6 | K22: =IF(C22>1,AVERAGE(All.InventoryAmount),"N/A") -> 3.696296296
B23: FF&E | C23: =COUNT(All.FFE) -> 87 | D23: =IF(C23>0,MIN(All.FFE),"N/A") -> 3 | E23: =IF(C23>0,MAX(All.FFE),"N/A") -> 385 | F23: =IF(C23>8,PERCENTILE(All.FFE,0.1),"N/A") -> 20.6 | G23: =IF(C23>2,PERCENTILE(All.FFE,0.25),"N/A") -> 30 | H23: =IF(C23>1,MEDIAN(All.FFE),"N/A") -> 50 | I23: =IF(C23>2,PERCENTILE(All.FFE,0.75),"N/A") -> 72.5 | J23: =IF(C23>8,PERCENTILE(All.FFE,0.9),"N/A") -> 132 | K23: =IF(C23>1,AVERAGE(All.FFE),"N/A") -> 67.98850575
B24: Sale Price (Excludes Inventory) | C24: =COUNT(All.SalePrice) -> 135 | D24: =IF(C24>0,MIN(All.SalePrice),"N/A") -> 25 | E24: =IF(C24>0,MAX(All.SalePrice),"N/A") -> 2200 | F24: =IF(C24>8,PERCENTILE(All.SalePrice,0.1),"N/A") -> 50 | G24: =IF(C24>2,PERCENTILE(All.SalePrice,0.25),"N/A") -> 70.5 | H24: =IF(C24>1,MEDIAN(All.SalePrice),"N/A") -> 124 | I24: =IF(C24>2,PERCENTILE(All.SalePrice,0.75),"N/A") -> 223.5 | J24: =IF(C24>8,PERCENTILE(All.SalePrice,0.9),"N/A") -> 450 | K24: =IF(C24>1,AVERAGE(All.SalePrice),"N/A") -> 207.8666667
B25: SDE To Annual Gross | C25: =COUNT(All.SDEToAnnualGross) -> 131 | D25: =IF(C25>0,MIN(All.SDEToAnnualGross),"N/A") -> -0.039 | E25: =IF(C25>0,MAX(All.SDEToAnnualGross),"N/A") -> 0.6 | F25: =IF(C25>8,PERCENTILE(All.SDEToAnnualGross,0.1),"N/A") -> 0.083 | G25: =IF(C25>2,PERCENTILE(All.SDEToAnnualGross,0.25),"N/A") -> 0.118 | H25: =IF(C25>1,MEDIAN(All.SDEToAnnualGross),"N/A") -> 0.186 | I25: =IF(C25>2,PERCENTILE(All.SDEToAnnualGross,0.75),"N/A") -> 0.25 | J25: =IF(C25>8,PERCENTILE(All.SDEToAnnualGross,0.9),"N/A") -> 0.3 | K25: =IF(C25>1,AVERAGE(All.SDEToAnnualGross),"N/A") -> 0.1893358779
B26: Rent To Annual Gross | C26: =COUNT(All.RentToAnnualGross) -> 25 | D26: =IF(C26>0,MIN(All.RentToAnnualGross),"N/A") -> 0.009 | E26: =IF(C26>0,MAX(All.RentToAnnualGross),"N/A") -> 13 | F26: =IF(C26>8,PERCENTILE(All.RentToAnnualGross,0.1),"N/A") -> 0.0408 | G26: =IF(C26>2,PERCENTILE(All.RentToAnnualGross,0.25),"N/A") -> 0.07 | H26: =IF(C26>1,MEDIAN(All.RentToAnnualGross),"N/A") -> 0.11 | I26: =IF(C26>2,PERCENTILE(All.RentToAnnualGross,0.75),"N/A") -> 0.17 | J26: =IF(C26>8,PERCENTILE(All.RentToAnnualGross,0.9),"N/A") -> 0.25 | K26: =IF(C26>1,AVERAGE(All.RentToAnnualGross),"N/A") -> 0.633
B27: Sale Price To Annual Gross | C27: =COUNT(All.SalePriceToAnnualGross) -> 135 | D27: =IF(C27>0,MIN(All.SalePriceToAnnualGross),"N/A") -> 0.039 | E27: =IF(C27>0,MAX(All.SalePriceToAnnualGross),"N/A") -> 0.88 | F27: =IF(C27>8,PERCENTILE(All.SalePriceToAnnualGross,0.1),"N/A") -> 0.1594 | G27: =IF(C27>2,PERCENTILE(All.SalePriceToAnnualGross,0.25),"N/A") -> 0.2075 | H27: =IF(C27>1,MEDIAN(All.SalePriceToAnnualGross),"N/A") -> 0.314 | I27: =IF(C27>2,PERCENTILE(All.SalePriceToAnnualGross,0.75),"N/A") -> 0.4765 | J27: =IF(C27>8,PERCENTILE(All.SalePriceToAnnualGross,0.9),"N/A") -> 0.6622 | K27: =IF(C27>1,AVERAGE(All.SalePriceToAnnualGross),"N/A") -> 0.3546444444 | L27: =IF(C27>1,HARMEAN(All.SalePriceToAnnualGross),"N/A") -> 0.2523671046 | M27: =IF(C27>1,(STDEV((All.SalePriceToAnnualGross))/K27),"N/A") -> 0.5315298436
B28: Sale Price To SDE | C28: =COUNT(All.SalePriceToSDE) -> 128 | D28: =IF(C28>0,MIN(All.SalePriceToSDE),"N/A") -> 0.305 | E28: =IF(C28>0,MAX(All.SalePriceToSDE),"N/A") -> 33 | F28: =IF(C28>8,PERCENTILE(All.SalePriceToSDE,0.1),"N/A") -> 0.9625 | G28: =IF(C28>2,PERCENTILE(All.SalePriceToSDE,0.25),"N/A") -> 1.25 | H28: =IF(C28>1,MEDIAN(All.SalePriceToSDE),"N/A") -> 1.8265 | I28: =IF(C28>2,PERCENTILE(All.SalePriceToSDE,0.75),"N/A") -> 2.39175 | J28: =IF(C28>8,PERCENTILE(All.SalePriceToSDE,0.9),"N/A") -> 3.6415 | K28: =IF(C28>1,AVERAGE(All.SalePriceToSDE),"N/A") -> 2.350375 | L28: =IF(C28>1,HARMEAN(All.SalePriceToSDE),"N/A") -> 1.519427728 | M28: =IF(C28>1,(STDEV((All.SalePriceToSDE))/K28),"N/A") -> 1.347588519
B30: Note: Currency fields are in thousands (example: $1 million would be displayed as $1,000).

Sheet Export Tools
B2: Export Worksheets
B3: Select the optional worksheets to export.
C5: About | F5: Yes
C6: Definitions | F6: Yes
C7: All Trans | F7: Yes
C8: Statistics | F8: Yes
C9: Multiples Analysis | F9: Yes
C10: Equity Value & Minority Int | F10: Yes
B13: Export Graphs
B14: Select the graphs to export.
C16: Price to Annual Gross | F16: Yes
C17: Price to SDE | F17: Yes

Sheet Multiples Analysis
A1: BIZCOMPS® Multiples Analysis
B4: Subject Company Information | I4: The Analyzer contains two methods of calculating a value using the Weighted Multiples Application section or the Contribution Multiples Application section – with one section using weights, the other using percentages. The user can use one or the other or both in their analysis. On this sheet, the grey cells are input cells (cells that accept inputs from you). INSTRUCTIONS: Enter your subject company information in the "Subject Company Information" section. Leave any fields blank that you do not wish to use. Do not enter any financial information that is negative (if you do, it will not be considered). Enter dollar figures in whole numbers. Enter currency figures in thousands (example: for $1 million, you would enter $1,000). Next, select which type of valuation multiples you want to use from the “Select Statistical Measure to Use” section. In the "Weighted Multiples Application" section, select your desired weights (the higher the number selected, the greater the weight given). Select "N/A" if you do not wish to use that valuation multiple. In the "Contribution Multiples Application" section, select your desired percentage to allocate towards the indicated value. Select "0%" if you do not wish to use that value.
B6: Annual Gross Sales ($000s)
B7: SDE ($000s)
A14: Weighted Multiples Application
B16: Valuation Multiple | F16: Count of Multiples | H16: Coefficient of Variation | K16: Select Statistical Measure to Use | P16: Valuation Multiples | S16: Select Weights | V16: Value from Multiples | Z16: Weights Selected
B19: Sale Price/Annual Gross | F19: =COUNT(Selected.SalePriceToAnnualGross) -> 135 | H19: =Statistics!M13 -> 0.5315298436 | K19: N/A | P19: =IF($K$19="10th Percentile",Statistics!F13,IF($K$19="25th Percentile",Statistics!G13,IF($K$19="75th Percentile",Statistics!I13,IF($K$19="90th Percentile",Statistics!J13,IF($K$19="Harmonic Mean",Statistics!L13,IF($K$19="Median",Statistics!H13,IF($K$19="Mean",Statistics!K13,"N/A"))))))) -> N/A | S19: N/A | V19: =IF(P19="N/A","N/A",IF(F6<1,"N/A",IF(S19="N/A","N/A",IF(F6="","N/A",F6*P19)))) -> N/A | Z19: =IF(P19="N/A","N/A",IF(F6<1,"N/A",IF(S19="N/A","N/A",IF(F6="","N/A",S19)))) -> N/A
B20: Sale Price/SDE | F20: =COUNT(Selected.SalePriceToSDE) -> 128 | H20: =Statistics!M14 -> 1.347588519 | P20: =IF($K$19="10th Percentile",Statistics!F14,IF($K$19="25th Percentile",Statistics!G14,IF($K$19="75th Percentile",Statistics!I14,IF($K$19="90th Percentile",Statistics!J14,IF($K$19="Harmonic Mean",Statistics!L14,IF($K$19="Median",Statistics!H14,IF($K$19="Mean",Statistics!K14,"N/A"))))))) -> N/A | S20: N/A | V20: N/A | Z20: N/A
Q22: Weighted Average ($000s): | V22: =IF(MA.Weighted.Measure="N/A","N/A",IF(SUM(Z19:Z20) = 0, 0, SUMPRODUCT(V19:V20,Z19:Z20)/SUM(Z19:Z20))) -> N/A
R24: High Value ($000s): | V24: =IF(MA.Weighted.Measure="N/A","N/A",MAX(V19:V20)) -> N/A
R26: Low Value ($000s): | V26: =IF(MA.Weighted.Measure="N/A","N/A",MIN(V19:V20)) -> N/A
A28: Contribution Multiples Application
B30: Valuation Multiple | F30: Count of Multiples | H30: Coefficient of Variation | K30: Select Statistical Measure to Use | P30: Valuation Multiples | S30: Value from Multiples | V30: Select Percentage | X30: Contribution
B33: Sale Price/Annual Gross | F33: =COUNT(Selected.SalePriceToAnnualGross) -> 135 | H33: =Statistics!M13 -> 0.5315298436 | K33: N/A | P33: =IF($K$33="10th Percentile",Statistics!F13,IF($K$33="25th Percentile",Statistics!G13,IF($K$33="75th Percentile",Statistics!I13,IF($K$33="90th Percentile",Statistics!J13,IF($K$33="Harmonic Mean",Statistics!L13,IF($K$33="Median",Statistics!H13,IF($K$33="Mean",Statistics!K13,"N/A"))))))) -> N/A | S33: =IF(P33="N/A","N/A",IF(F6<1,"N/A",IF(F6="","N/A",F6*P33))) -> N/A | V33: 0 | X33: =IF(S33="N/A","N/A",IF(V33=0%,"N/A",S33*V33)) -> N/A
B34: Sale Price/SDE | F34: =COUNT(Selected.SalePriceToSDE) -> 128 | H34: =Statistics!M14 -> 1.347588519 | P34: =IF($K$33="10th Percentile",Statistics!F14,IF($K$33="25th Percentile",Statistics!G14,IF($K$33="75th Percentile",Statistics!I14,IF($K$33="90th Percentile",Statistics!J14,IF($K$33="Harmonic Mean",Statistics!L14,IF($K$33="Median",Statistics!H14,IF($K$33="Mean",Statistics!K14,"N/A"))))))) -> N/A | S34: N/A | V34: 0 | X34: N/A
R36: Total Percentage: | V36: =SUM(V33:V34) -> 0
V38: Total Value ($000s): | X38: =IF(V36<100%,"N/A",IF(V36>100%,"N/A",SUM(X33:X34))) -> N/A

Sheet Equity Value & Minority Int
A1: Equity Value and Minority Interest Analysis | M1: Note: The sale price in BIZCOMPS does not include the value of inventory acquired. Currency fields are in thousands (example: $1 million would be displayed as $1,000).
M3: Typical application of Asset Multiples
B4: BIZCOMPS® multiples yield Market Value of Invested Capital (MVIC) values. Many appraisers, ultimately, are attempting to get to an equity value for their subject company. Doing so requires adding back some assets and subtracting some liabilities. The typical treatment of the MVIC price is outlined to the right and is based on The Comprehensive Guide to the Use and Application of the Transaction Databases, by Nancy J. Fannon and Heidi P. Walker. Further, BIZCOMPS® data is comprised of 100% private business sales, and some appraisers seek to value a minority interest. As a result, some appraisers valuing a minority interest may wish to apply a discount for lack of marketability and/or a discount for lack of control to a pro rate value resulting from the application of the BIZCOMPS® valuation multiples. This section gives you the opportunity to do that, if you wish. Also, if you need to modify any sale prices or valuation multiples (to add or remove any assets or liabilities), remember you can do so on the "All Trans" worksheet–changes on that worksheet will flow through the rest of this workbook. On the right is a tool to help you in reaching a 100% equity value or a less than 100% equity value. Depending on your analysis, various fields may not be relevant to you. All grey cells are input cells You may choose to enter $0 into an input cell or if the cell is the dropdown menu, you may select "N/A". Enter all numeric values as a positive number. Your values from the "Multiples Analysis" worksheet have been brought over.
M5: Subject Company Revenue or Earnings
M6: X Pricing Multiple (as selected by appraiser)
M7: = Indicated Market Value of Invested Capital
M8: + Assets not included in the multiple (usually AR and cash)
M9: - Liabilities excluded from the multiple (usually all)
M10: + Real estate
M11: + Non-operating assets
M12: - Non-operating liabilities
M13: = Indicated Value of Equity
M15: Using Asset Sales
M17: Value using Weighted Average | Q17: ='Multiples Analysis'!V22 -> N/A
M19: Value using Percentage Contributions | Q19: ='Multiples Analysis'!X38 -> N/A
B20: Additional Resources
B21: Using Transaction Databases - | M21: Select MVIC Value
B22: • The Comprehensive Guide to the Use and Application of the Transaction Databases
M23: + Assets not included in the multiple
B25: Lack of Marketability Discounts - | M25: - Liabilities excluded from the multiple
B26: • The FMV Restricted Stock Study™
M27: + Real estate
B28: • Valuation Advisors Lack of Marketability Discount Study™
M29: + Non-operating assets
B31: Lack of Control Discounts - | M31: - Non-operating liabilities
B32: • FactSet Mergerstat®/BVR Control Premium Study™
M33: = Indicated Value of Equity | Q33: =IF(Q21="","",(Q21+Q23-Q25+Q27+Q29-Q31)) -> 
B35: For combination or group pricing, please contact an Account Executive at: | M35: Minority interest?
B37: Phone: | C37: (503) 291-7963 ext. 2 | M37: = Pro Rata Equity Value | Q37: =IF(Q35="","",IF(Q21="","",IF(Q35="N/A",Q33,(Q33*Q35)))) -> 
B39: Email: | C39: Sales@bvresources.com | M39: Lack of control discount
M41: Marketable Minority Value | Q41: =IF(Q37="","",IF(Q39="","",IF(Q39="N/A",Q37,(Q37*(1-Q39))))) -> 
M43: Lack of marketability discount
M45: = Non-Marketable Minority Value | Q45: =IF(Q41="","",IF(Q43="","",IF(Q43="N/A",Q41,(Q41*(1-Q43))))) -> 
M47: Appraiser Selected Final Value*
M49: *The appraiser has the option of selecting a final value dependant on specific characteristics of the subject company or the nature of the appraisal. The above template is intended to be used as a guideline – while it provides things to consider, it is not all-inclusive. Ultimately, the appraiser is responsible for considering all relevant factors in determining the value of a business interest.
